Workbook

Sheet ANFANG
B1: ÜBER DIESE VORLAGE
B2: Verwenden Sie diese Geschäftskostenbudget-Arbeitsmappe zum Nachverfolgen geplanter und tatsächlicher Kosten und Abweichungen.
B3: Setzen Sie den Firmenname ein, und fügen Sie Ihr Logo hinzu.
B4: Geben Sie Details auf dem Arbeitsblatt "Geplante Kosten" und dem Arbeitsblatt "Tatsächliche Kosten" ein.
B5: Die Tabellen auf dem Arbeitsblatt "Kostenabweichungen" und die Diagramme auf dem Arbeitsblatt "Ausgabenanalyse" werden automatisch aktualisiert.
B6: Anmerkung:
B7: Weitere Anweisungen wurden in Spalte A auf jedem Arbeitsblatt bereitgestellt. Diese Texte wurden absichtlich ausgeblendet. Um die Texte zu entfernen, wählen Sie Spalte A und dann ENTF aus. Um die Texte einzublenden, wählen Sie Spalte A aus, und ändern Sie die Schriftfarbe.
B8: Um mehr über Tabellen zu erfahren, drücken Sie die UMSCHALTTASTE und dann F10 innerhalb einer Tabelle, und wählen Sie die Option TABELLE und dann ALTERNATIVTEXT aus.

Sheet GEPLANTE KOSTEN
B2: Firmenname | K2: Detaillierte Kostenschätzungen
K3: Schattierte Zellen stellen Berechnungen dar.
B4: GEPLANTE KOSTEN | C4: JAN | D4: FEB | E4: MRZ | F4: APR | G4: MAI | H4: JUN | I4: JUL | J4: AUG | K4: SEP | L4: OKT | M4: NOV | N4: DEZ | O4: JAHR
B5: Mitarbeiterkosten | C5: Jan | D5: Feb | E5: Mrz | F5: Apr | G5: Mai | H5: Jun | I5: Jul | J5: Aug | K5: Sep | L5: Okt | M5: Nov | N5: Dez | O5: JAHR
B6: Gehälter | C6: 85,000.00 € | D6: 85,000.00 € | E6: 85,000.00 € | F6: 87,500.00 € | G6: 87,500.00 € | H6: 87,500.00 € | I6: 87,500.00 € | J6: 92,400.00 € | K6: 92,400.00 € | L6: 92,400.00 € | M6: 92,400.00 € | N6: 92,400.00 € | O6: =SUM(C6:N6) -> 1,067,000.00 €
B7: Vorteile | C7: =C6*0.27 -> 22,950.00 € | D7: 22,950.00 € | E7: 22,950.00 € | F7: 23,625.00 € | G7: 23,625.00 € | H7: 23,625.00 € | I7: 23,625.00 € | J7: 24,948.00 € | K7: 24,948.00 € | L7: 24,948.00 € | M7: 24,948.00 € | N7: 24,948.00 € | O7: =SUM(C7:N7) -> 288,090.00 €
B8: Zwischensumme | C8: =SUBTOTAL(109,MitarbeiterPlan[Jan]) -> 107,950.00 € | D8: =SUBTOTAL(109,MitarbeiterPlan[Feb]) -> 107,950.00 € | E8: =SUBTOTAL(109,MitarbeiterPlan[Mrz]) -> 107,950.00 € | F8: =SUBTOTAL(109,MitarbeiterPlan[Apr]) -> 111,125.00 € | G8: =SUBTOTAL(109,MitarbeiterPlan[Mai]) -> 111,125.00 € | H8: =SUBTOTAL(109,MitarbeiterPlan[Jun]) -> 111,125.00 € | I8: =SUBTOTAL(109,MitarbeiterPlan[Jul]) -> 111,125.00 € | J8: =SUBTOTAL(109,MitarbeiterPlan[Aug]) -> 117,348.00 € | K8: =SUBTOTAL(109,MitarbeiterPlan[Sep]) -> 117,348.00 € | L8: =SUBTOTAL(109,MitarbeiterPlan[Okt]) -> 117,348.00 € | M8: =SUBTOTAL(109,MitarbeiterPlan[Nov]) -> 117,348.00 € | N8: =SUBTOTAL(109,MitarbeiterPlan[Dez]) -> 117,348.00 € | O8: =SUBTOTAL(109,MitarbeiterPlan[JAHR]) -> 1,355,090.00 €
B10: Bürokosten | C10: Jan | D10: Feb | E10: Mrz | F10: Apr | G10: Mai | H10: Jun | I10: Jul | J10: Aug | K10: Sep | L10: Okt | M10: Nov | N10: Dez | O10: JAHR
B11: Büromiete | C11: 9,800.00 € | D11: 9,800.00 € | E11: 9,800.00 € | F11: 9,800.00 € | G11: 9,800.00 € | H11: 9,800.00 € | I11: 9,800.00 € | J11: 9,800.00 € | K11: 9,800.00 € | L11: 9,800.00 € | M11: 9,800.00 € | N11: 9,800.00 € | O11: =SUM(C11:N11) -> 117,600.00 €
B12: Gas | D12: 400.00 € | E12: 400.00 € | F12: 100.00 € | G12: 100.00 € | H12: 100.00 € | I12: 100.00 € | J12: 100.00 € | K12: 100.00 € | L12: 100.00 € | M12: 400.00 € | N12: 400.00 € | O12: 2,300.00 €
B13: Strom | C13: 300.00 € | D13: 300.00 € | E13: 300.00 € | F13: 300.00 € | G13: 300.00 € | H13: 300.00 € | I13: 300.00 € | J13: 300.00 € | K13: 300.00 € | L13: 300.00 € | M13: 300.00 € | N13: 300.00 € | O13: 3,600.00 €
B14: Wasser | C14: 40.00 € | D14: 40.00 € | E14: 40.00 € | F14: 40.00 € | G14: 40.00 € | H14: 40.00 € | I14: 40.00 € | J14: 40.00 € | K14: 40.00 € | L14: 40.00 € | M14: 40.00 € | N14: 40.00 € | O14: 480.00 €
B15: Telefon | C15: 250.00 € | D15: 250.00 € | E15: 250.00 € | F15: 250.00 € | G15: 250.00 € | H15: 250.00 € | I15: 250.00 € | J15: 250.00 € | K15: 250.00 € | L15: 250.00 € | M15: 250.00 € | N15: 250.00 € | O15: 3,000.00 €
B16: Internetzugang | C16: 180.00 € | D16: 180.00 € | E16: 180.00 € | F16: 180.00 € | G16: 180.00 € | H16: 180.00 € | I16: 180.00 € | J16: 180.00 € | K16: 180.00 € | L16: 180.00 € | M16: 180.00 € | N16: 180.00 € | O16: 2,160.00 €
B17: Büromaterial | C17: 200.00 € | D17: 200.00 € | E17: 200.00 € | F17: 200.00 € | G17: 200.00 € | H17: 200.00 € | I17: 200.00 € | J17: 200.00 € | K17: 200.00 € | L17: 200.00 € | M17: 200.00 € | N17: 200.00 € | O17: 2,400.00 €
B18: Sicherheit | C18: 600.00 € | D18: 600.00 € | E18: 600.00 € | F18: 600.00 € | G18: 600.00 € | H18: 600.00 € | I18: 600.00 € | J18: 600.00 € | K18: 600.00 € | L18: 600.00 € | M18: 600.00 € | N18: 600.00 € | O18: 7,200.00 €
B19: Zwischensumme | C19: =SUBTOTAL(109,BüroPlan[Jan]) -> 11,370.00 € | D19: =SUBTOTAL(109,BüroPlan[Feb]) -> 11,770.00 € | E19: =SUBTOTAL(109,BüroPlan[Mrz]) -> 11,770.00 € | F19: =SUBTOTAL(109,BüroPlan[Apr]) -> 11,470.00 € | G19: =SUBTOTAL(109,BüroPlan[Mai]) -> 11,470.00 € | H19: =SUBTOTAL(109,BüroPlan[Jun]) -> 11,470.00 € | I19: =SUBTOTAL(109,BüroPlan[Jul]) -> 11,470.00 € | J19: =SUBTOTAL(109,BüroPlan[Aug]) -> 11,470.00 € | K19: =SUBTOTAL(109,BüroPlan[Sep]) -> 11,470.00 € | L19: =SUBTOTAL(109,BüroPlan[Okt]) -> 11,470.00 € | M19: =SUBTOTAL(109,BüroPlan[Nov]) -> 11,770.00 € | N19: =SUBTOTAL(109,BüroPlan[Dez]) -> 11,770.00 € | O19: =SUBTOTAL(109,BüroPlan[JAHR]) -> 138,740.00 €
B21: Marketingkosten | C21: Jan | D21: Feb | E21: Mrz | F21: Apr | G21: Mai | H21: Jun | I21: Jul | J21: Aug | K21: Sep | L21: Okt | M21: Nov | N21: Dez | O21: JAHR
B22: Websitehosting | C22: 500.00 € | D22: 500.00 € | E22: 500.00 € | F22: 500.00 € | G22: 500.00 € | H22: 500.00 € | I22: 500.00 € | J22: 500.00 € | K22: 500.00 € | L22: 500.00 € | M22: 500.00 € | N22: 500.00 € | O22: =SUM(C22:N22) -> 6,000.00 €
B23: Websiteaktualisierungen | C23: 200.00 € | D23: 200.00 € | E23: 200.00 € | F23: 200.00 € | G23: 200.00 € | H23: 1,000.00 € | I23: 200.00 € | J23: 200.00 € | K23: 200.00 € | L23: 200.00 € | M23: 200.00 € | N23: 1,000.00 € | O23: 4,000.00 €
B24: Vorbereitung von Begleitmaterialien | C24: 5,000.00 € | D24: 0.00 € | E24: 0.00 € | F24: 5,000.00 € | G24: 0.00 € | H24: 0.00 € | I24: 5,000.00 € | J24: 0.00 € | K24: 0.00 € | L24: 5,000.00 € | M24: 0.00 € | N24: 0.00 € | O24: 20,000.00 €
B25: Druck von Begleitmaterialien | C25: 200.00 € | D25: 200.00 € | E25: 200.00 € | F25: 200.00 € | G25: 200.00 € | H25: 200.00 € | I25: 200.00 € | J25: 200.00 € | K25: 200.00 € | L25: 200.00 € | M25: 200.00 € | N25: 200.00 € | O25: 2,400.00 €
B26: Marketingveranstaltungen | C26: 2,000.00 € | D26: 2,000.00 € | E26: 2,000.00 € | F26: 5,000.00 € | G26: 2,000.00 € | H26: 2,000.00 € | I26: 2,000.00 € | J26: 5,000.00 € | K26: 2,000.00 € | L26: 2,000.00 € | M26: 2,000.00 € | N26: 5,000.00 € | O26: 33,000.00 €
B27: Sonstige Ausgaben | C27: 200.00 € | D27: 200.00 € | E27: 200.00 € | F27: 200.00 € | G27: 200.00 € | H27: 200.00 € | I27: 200.00 € | J27: 200.00 € | K27: 200.00 € | L27: 200.00 € | M27: 200.00 € | N27: 200.00 € | O27: 2,400.00 €
B28: Zwischensumme | C28: =SUBTOTAL(109,MarketingPlan[Jan]) -> 8,100.00 € | D28: =SUBTOTAL(109,MarketingPlan[Feb]) -> 3,100.00 € | E28: =SUBTOTAL(109,MarketingPlan[Mrz]) -> 3,100.00 € | F28: =SUBTOTAL(109,MarketingPlan[Apr]) -> 11,100.00 € | G28: =SUBTOTAL(109,MarketingPlan[Mai]) -> 3,100.00 € | H28: =SUBTOTAL(109,MarketingPlan[Jun]) -> 3,900.00 € | I28: =SUBTOTAL(109,MarketingPlan[Jul]) -> 8,100.00 € | J28: =SUBTOTAL(109,MarketingPlan[Aug]) -> 6,100.00 € | K28: =SUBTOTAL(109,MarketingPlan[Sep]) -> 3,100.00 € | L28: =SUBTOTAL(109,MarketingPlan[Okt]) -> 8,100.00 € | M28: =SUBTOTAL(109,MarketingPlan[Nov]) -> 3,100.00 € | N28: =SUBTOTAL(109,MarketingPlan[Dez]) -> 6,900.00 € | O28: =SUBTOTAL(109,MarketingPlan[JAHR]) -> 67,800.00 €
B30: Schulung/Reisen | C30: Jan | D30: Feb | E30: Mrz | F30: Apr | G30: Mai | H30: Jun | I30: Jul | J30: Aug | K30: Sep | L30: Okt | M30: Nov | N30: Dez | O30: JAHR
B31: Schulungskurse | C31: 2,000.00 € | D31: 2,000.00 € | E31: 2,000.00 € | F31: 2,000.00 € | G31: 2,000.00 € | H31: 2,000.00 € | I31: 2,000.00 € | J31: 2,000.00 € | K31: 2,000.00 € | L31: 2,000.00 € | M31: 2,000.00 € | N31: 2,000.00 € | O31: =SUM(C31:N31) -> 24,000.00 €
B32: Schulungsbezogene Reisekosten | C32: 2,000.00 € | D32: 2,000.00 € | E32: 2,000.00 € | F32: 2,000.00 € | G32: 2,000.00 € | H32: 2,000.00 € | I32: 2,000.00 € | J32: 2,000.00 € | K32: 2,000.00 € | L32: 2,000.00 € | M32: 2,000.00 € | N32: 2,000.00 € | O32: =SUM(C32:N32) -> 24,000.00 €
B33: Zwischensumme | C33: =SUBTOTAL(109,SchulungUndReisePlan[Jan]) -> 4,000.00 € | D33: =SUBTOTAL(109,SchulungUndReisePlan[Feb]) -> 4,000.00 € | E33: =SUBTOTAL(109,SchulungUndReisePlan[Mrz]) -> 4,000.00 € | F33: =SUBTOTAL(109,SchulungUndReisePlan[Apr]) -> 4,000.00 € | G33: =SUBTOTAL(109,SchulungUndReisePlan[Mai]) -> 4,000.00 € | H33: =SUBTOTAL(109,SchulungUndReisePlan[Jun]) -> 4,000.00 € | I33: =SUBTOTAL(109,SchulungUndReisePlan[Jul]) -> 4,000.00 € | J33: =SUBTOTAL(109,SchulungUndReisePlan[Aug]) -> 4,000.00 € | K33: =SUBTOTAL(109,SchulungUndReisePlan[Sep]) -> 4,000.00 € | L33: =SUBTOTAL(109,SchulungUndReisePlan[Okt]) -> 4,000.00 € | M33: =SUBTOTAL(109,SchulungUndReisePlan[Nov]) -> 4,000.00 € | N33: =SUBTOTAL(109,SchulungUndReisePlan[Dez]) -> 4,000.00 € | O33: =SUBTOTAL(109,SchulungUndReisePlan[JAHR]) -> 48,000.00 €
B35: SUMMEN | C35: Jan | D35: Feb | E35: Mrz | F35: Apr | G35: Mai | H35: Jun | I35: Jul | J35: Aug | K35: Sep | L35: Okt | M35: Nov | N35: Dez | O35: Jahr
B36: Geplante monatliche Kosten | C36: =SchulungUndReisePlan[[#Totals],[Jan]]+MarketingPlan[[#Totals],[Jan]]+BüroPlan[[#Totals],[Jan]]+MitarbeiterPlan[[#Totals],[Jan]] -> 131,420.00 € | D36: =SchulungUndReisePlan[[#Totals],[Feb]]+MarketingPlan[[#Totals],[Feb]]+BüroPlan[[#Totals],[Feb]]+MitarbeiterPlan[[#Totals],[Feb]] -> 126,820.00 € | E36: =SchulungUndReisePlan[[#Totals],[Mrz]]+MarketingPlan[[#Totals],[Mrz]]+BüroPlan[[#Totals],[Mrz]]+MitarbeiterPlan[[#Totals],[Mrz]] -> 126,820.00 € | F36: =SchulungUndReisePlan[[#Totals],[Apr]]+MarketingPlan[[#Totals],[Apr]]+BüroPlan[[#Totals],[Apr]]+MitarbeiterPlan[[#Totals],[Apr]] -> 137,695.00 € | G36: =SchulungUndReisePlan[[#Totals],[Mai]]+MarketingPlan[[#Totals],[Mai]]+BüroPlan[[#Totals],[Mai]]+MitarbeiterPlan[[#Totals],[Mai]] -> 129,695.00 € | H36: =SchulungUndReisePlan[[#Totals],[Jun]]+MarketingPlan[[#Totals],[Jun]]+BüroPlan[[#Totals],[Jun]]+MitarbeiterPlan[[#Totals],[Jun]] -> 130,495.00 € | I36: =SchulungUndReisePlan[[#Totals],[Jul]]+MarketingPlan[[#Totals],[Jul]]+BüroPlan[[#Totals],[Jul]]+MitarbeiterPlan[[#Totals],[Jul]] -> 134,695.00 € | J36: =SchulungUndReisePlan[[#Totals],[Aug]]+MarketingPlan[[#Totals],[Aug]]+BüroPlan[[#Totals],[Aug]]+MitarbeiterPlan[[#Totals],[Aug]] -> 138,918.00 € | K36: =SchulungUndReisePlan[[#Totals],[Sep]]+MarketingPlan[[#Totals],[Sep]]+BüroPlan[[#Totals],[Sep]]+MitarbeiterPlan[[#Totals],[Sep]] -> 135,918.00 € | L36: =SchulungUndReisePlan[[#Totals],[Okt]]+MarketingPlan[[#Totals],[Okt]]+BüroPlan[[#Totals],[Okt]]+MitarbeiterPlan[[#Totals],[Okt]] -> 140,918.00 € | M36: =SchulungUndReisePlan[[#Totals],[Nov]]+MarketingPlan[[#Totals],[Nov]]+BüroPlan[[#Totals],[Nov]]+MitarbeiterPlan[[#Totals],[Nov]] -> 136,218.00 € | N36: =SchulungUndReisePlan[[#Totals],[Dez]]+MarketingPlan[[#Totals],[Dez]]+BüroPlan[[#Totals],[Dez]]+MitarbeiterPlan[[#Totals],[Dez]] -> 140,018.00 € | O36: =SchulungUndReisePlan[[#Totals],[JAHR]]+MarketingPlan[[#Totals],[JAHR]]+BüroPlan[[#Totals],[JAHR]]+MitarbeiterPlan[[#Totals],[JAHR]] -> 1,609,630.00 €
B37: Summe der geplanten Kosten | C37: =SUM($C$36:C36) -> 131,420.00 € | D37: =SUM($C$36:D36) -> 258,240.00 € | E37: =SUM($C$36:E36) -> 385,060.00 € | F37: =SUM($C$36:F36) -> 522,755.00 € | G37: =SUM($C$36:G36) -> 652,450.00 € | H37: =SUM($C$36:H36) -> 782,945.00 € | I37: =SUM($C$36:I36) -> 917,640.00 € | J37: =SUM($C$36:J36) -> 1,056,558.00 € | K37: =SUM($C$36:K36) -> 1,192,476.00 € | L37: =SUM($C$36:L36) -> 1,333,394.00 € | M37: =SUM($C$36:M36) -> 1,469,612.00 € | N37: =SUM($C$36:N36) -> 1,609,630.00 €

Sheet TATSÄCHLICHE KOSTEN
B2: ='GEPLANTE KOSTEN'!B2:D3 -> Firmenname | K2: =worksheet_title -> Detaillierte Kostenschätzungen
K3: Schattierte Zellen stellen Berechnungen dar.
B4: TATSÄCHLICHE KOSTEN | C4: JAN | D4: FEB | E4: MRZ | F4: APR | G4: MAI | H4: JUN | I4: JUL | J4: AUG | K4: SEP | L4: OKT | M4: NOV | N4: DEZ | O4: JAHR
B5: Mitarbeiterkosten | C5: Jan | D5: Feb | E5: Mrz | F5: Apr | G5: Mai | H5: Jun | I5: Jul | J5: Aug | K5: Sep | L5: Okt | M5: Nov | N5: Dez | O5: JAHR
B6: Gehälter | C6: 85,000.00 € | D6: 85,000.00 € | E6: 85,000.00 € | F6: 88,000.00 € | G6: 88,000.00 € | H6: 88,000.00 € | O6: =SUM(C6:N6) -> 519,000.00 €
B7: Vorteile | C7: =C6*0.27 -> 22,950.00 € | D7: 22,950.00 € | E7: 22,950.00 € | F7: 23,760.00 € | G7: 23,760.00 € | H7: 23,760.00 € | I7: 0.00 € | J7: 0.00 € | K7: 0.00 € | L7: 0.00 € | M7: 0.00 € | N7: 0.00 € | O7: =SUM(C7:N7) -> 140,130.00 €
B8: Zwischensumme | C8: =SUBTOTAL(109,MitarbeiterTatsächlich[Jan]) -> 107,950.00 € | D8: =SUBTOTAL(109,MitarbeiterTatsächlich[Feb]) -> 107,950.00 € | E8: =SUBTOTAL(109,MitarbeiterTatsächlich[Mrz]) -> 107,950.00 € | F8: =SUBTOTAL(109,MitarbeiterTatsächlich[Apr]) -> 111,760.00 € | G8: =SUBTOTAL(109,MitarbeiterTatsächlich[Mai]) -> 111,760.00 € | H8: =SUBTOTAL(109,MitarbeiterTatsächlich[Jun]) -> 111,760.00 € | I8: =SUBTOTAL(109,MitarbeiterTatsächlich[Jul]) -> 0.00 € | J8: =SUBTOTAL(109,MitarbeiterTatsächlich[Aug]) -> 0.00 € | K8: =SUBTOTAL(109,MitarbeiterTatsächlich[Sep]) -> 0.00 € | L8: =SUBTOTAL(109,MitarbeiterTatsächlich[Okt]) -> 0.00 € | M8: =SUBTOTAL(109,MitarbeiterTatsächlich[Nov]) -> 0.00 € | N8: =SUBTOTAL(109,MitarbeiterTatsächlich[Dez]) -> 0.00 € | O8: =SUBTOTAL(109,MitarbeiterTatsächlich[JAHR]) -> 659,130.00 €
B10: Bürokosten | C10: Jan | D10: Feb | E10: Mrz | F10: Apr | G10: Mai | H10: Jun | I10: Jul | J10: Aug | K10: Sep | L10: Okt | M10: Nov | N10: Dez | O10: JAHR
B11: Büromiete | C11: 9,800.00 € | D11: 9,800.00 € | E11: 9,800.00 € | F11: 9,800.00 € | G11: 9,800.00 € | H11: 9,800.00 € | O11: =SUM(C11:N11) -> 58,800.00 €
B12: Gas | C12: 4.00 € | D12: 430.00 € | E12: 385.00 € | F12: 230.00 € | G12: 87.00 € | H12: 88.00 € | O12: 1,224.00 €
B13: Strom | C13: 288.00 € | D13: 278.00 € | E13: 268.00 € | F13: 299.00 € | G13: 306.00 € | H13: 290.00 € | O13: 1,729.00 €
B14: Wasser | C14: 35.00 € | D14: 33.00 € | E14: 34.00 € | F14: 36.00 € | G14: 34.00 € | H14: 36.00 € | O14: 208.00 €
B15: Telefon | C15: 224.00 € | D15: 235.00 € | E15: 265.00 € | F15: 245.00 € | G15: 245.00 € | H15: 220.00 € | O15: 1,434.00 €
B16: Internetzugang | C16: 180.00 € | D16: 180.00 € | E16: 180.00 € | F16: 180.00 € | G16: 180.00 € | H16: 180.00 € | O16: 1,080.00 €
B17: Büromaterial | C17: 256.00 € | D17: 142.00 € | E17: 160.00 € | F17: 221.00 € | G17: 256.00 € | H17: 240.00 € | O17: 1,275.00 €
B18: Sicherheit | C18: 600.00 € | D18: 600.00 € | E18: 600.00 € | F18: 600.00 € | G18: 600.00 € | H18: 600.00 € | O18: 3,600.00 €
B19: Zwischensumme | C19: =SUBTOTAL(109,BüroTatsächlich[Jan]) -> 11,387.00 € | D19: =SUBTOTAL(109,BüroTatsächlich[Feb]) -> 11,698.00 € | E19: =SUBTOTAL(109,BüroTatsächlich[Mrz]) -> 11,692.00 € | F19: =SUBTOTAL(109,BüroTatsächlich[Apr]) -> 11,611.00 € | G19: =SUBTOTAL(109,BüroTatsächlich[Mai]) -> 11,508.00 € | H19: =SUBTOTAL(109,BüroTatsächlich[Jun]) -> 11,454.00 € | I19: =SUBTOTAL(109,BüroTatsächlich[Jul]) -> 0.00 € | J19: =SUBTOTAL(109,BüroTatsächlich[Aug]) -> 0.00 € | K19: =SUBTOTAL(109,BüroTatsächlich[Sep]) -> 0.00 € | L19: =SUBTOTAL(109,BüroTatsächlich[Okt]) -> 0.00 € | M19: =SUBTOTAL(109,BüroTatsächlich[Nov]) -> 0.00 € | N19: =SUBTOTAL(109,BüroTatsächlich[Dez]) -> 0.00 € | O19: =SUBTOTAL(109,BüroTatsächlich[JAHR]) -> 69,350.00 €
B21: Marketingkosten | C21: Jan | D21: Feb | E21: Mrz | F21: Apr | G21: Mai | H21: Jun | I21: Jul | J21: Aug | K21: Sep | L21: Okt | M21: Nov | N21: Dez | O21: JAHR
B22: Websitehosting | C22: 500.00 € | D22: 500.00 € | E22: 500.00 € | F22: 500.00 € | G22: 500.00 € | H22: 500.00 € | O22: =SUM(C22:N22) -> 3,000.00 €
B23: Websiteaktualisierungen | C23: 200.00 € | D23: 200.00 € | E23: 200.00 € | F23: 200.00 € | G23: 200.00 € | H23: 1,500.00 € | O23: 2,500.00 €
B24: Vorbereitung von Begleitmaterialien | C24: 4,800.00 € | D24: 0.00 € | E24: 0.00 € | F24: 5,500.00 € | G24: 0.00 € | H24: 0.00 € | O24: 10,300.00 €
B25: Druck von Begleitmaterialien | C25: 100.00 € | D25: 500.00 € | E25: 100.00 € | F25: 100.00 € | G25: 600.00 € | H25: 180.00 € | O25: 1,580.00 €
B26: Marketingveranstaltungen | C26: 1,800.00 € | D26: 2,200.00 € | E26: 2,200.00 € | F26: 4,700.00 € | G26: 1,500.00 € | H26: 2,300.00 € | O26: 14,700.00 €
B27: Sonstige Ausgaben | C27: 145.00 € | D27: 156.00 € | E27: 123.00 € | F27: 223.00 € | G27: 187.00 € | H27: 245.00 € | O27: 1,079.00 €
B28: Zwischensumme | C28: =SUBTOTAL(109,MarketingTatsächlich[Jan]) -> 7,545.00 € | D28: =SUBTOTAL(109,MarketingTatsächlich[Feb]) -> 3,556.00 € | E28: =SUBTOTAL(109,MarketingTatsächlich[Mrz]) -> 3,123.00 € | F28: =SUBTOTAL(109,MarketingTatsächlich[Apr]) -> 11,223.00 € | G28: =SUBTOTAL(109,MarketingTatsächlich[Mai]) -> 2,987.00 € | H28: =SUBTOTAL(109,MarketingTatsächlich[Jun]) -> 4,725.00 € | I28: =SUBTOTAL(109,MarketingTatsächlich[Jul]) -> 0.00 € | J28: =SUBTOTAL(109,MarketingTatsächlich[Aug]) -> 0.00 € | K28: =SUBTOTAL(109,MarketingTatsächlich[Sep]) -> 0.00 € | L28: =SUBTOTAL(109,MarketingTatsächlich[Okt]) -> 0.00 € | M28: =SUBTOTAL(109,MarketingTatsächlich[Nov]) -> 0.00 € | N28: =SUBTOTAL(109,MarketingTatsächlich[Dez]) -> 0.00 € | O28: =SUBTOTAL(109,MarketingTatsächlich[JAHR]) -> 33,159.00 €
B30: Schulung/Reisen | C30: Jan | D30: Feb | E30: Mrz | F30: Apr | G30: Mai | H30: Jun | I30: Jul | J30: Aug | K30: Sep | L30: Okt | M30: Nov | N30: Dez | O30: JAHR
B31: Schulungskurse | C31: 1,600.00 € | D31: 2,400.00 € | E31: 1,400.00 € | F31: 1,600.00 € | G31: 1,200.00 € | H31: 2,800.00 € | O31: =SUM(C31:N31) -> 11,000.00 €
B32: Schulungsbezogene Reisekosten | C32: 1,200.00 € | D32: 2,200.00 € | E32: 1,400.00 € | F32: 1,200.00 € | G32: 800.00 € | H32: 3,500.00 € | O32: =SUM(C32:N32) -> 10,300.00 €
B33: Zwischensumme | C33: =SUBTOTAL(109,SchulungUndReiseTatsächlich[Jan]) -> 2,800.00 € | D33: =SUBTOTAL(109,SchulungUndReiseTatsächlich[Feb]) -> 4,600.00 € | E33: =SUBTOTAL(109,SchulungUndReiseTatsächlich[Mrz]) -> 2,800.00 € | F33: =SUBTOTAL(109,SchulungUndReiseTatsächlich[Apr]) -> 2,800.00 € | G33: =SUBTOTAL(109,SchulungUndReiseTatsächlich[Mai]) -> 2,000.00 € | H33: =SUBTOTAL(109,SchulungUndReiseTatsächlich[Jun]) -> 6,300.00 € | I33: =SUBTOTAL(109,SchulungUndReiseTatsächlich[Jul]) -> 0.00 € | J33: =SUBTOTAL(109,SchulungUndReiseTatsächlich[Aug]) -> 0.00 € | K33: =SUBTOTAL(109,SchulungUndReiseTatsächlich[Sep]) -> 0.00 € | L33: =SUBTOTAL(109,SchulungUndReiseTatsächlich[Okt]) -> 0.00 € | M33: =SUBTOTAL(109,SchulungUndReiseTatsächlich[Nov]) -> 0.00 € | N33: =SUBTOTAL(109,SchulungUndReiseTatsächlich[Dez]) -> 0.00 € | O33: =SUBTOTAL(109,SchulungUndReiseTatsächlich[JAHR]) -> 21,300.00 €
B35: Summe der geplanten Kosten | C35: Jan | D35: Feb | E35: Mrz | F35: Apr | G35: Mai | H35: Jun | I35: Jul | J35: Aug | K35: Sep | L35: Okt | M35: Nov | N35: Dez | O35: Jahr
B36: Tatsächliche monatliche Kosten | C36: =SchulungUndReiseTatsächlich[[#Totals],[Jan]]+MarketingTatsächlich[[#Totals],[Jan]]+BüroTatsächlich[[#Totals],[Jan]]+MitarbeiterTatsächlich[[#Totals],[Jan]] -> 129,682.00 € | D36: =SchulungUndReiseTatsächlich[[#Totals],[Feb]]+MarketingTatsächlich[[#Totals],[Feb]]+BüroTatsächlich[[#Totals],[Feb]]+MitarbeiterTatsächlich[[#Totals],[Feb]] -> 127,804.00 € | E36: =SchulungUndReiseTatsächlich[[#Totals],[Mrz]]+MarketingTatsächlich[[#Totals],[Mrz]]+BüroTatsächlich[[#Totals],[Mrz]]+MitarbeiterTatsächlich[[#Totals],[Mrz]] -> 125,565.00 € | F36: =SchulungUndReiseTatsächlich[[#Totals],[Apr]]+MarketingTatsächlich[[#Totals],[Apr]]+BüroTatsächlich[[#Totals],[Apr]]+MitarbeiterTatsächlich[[#Totals],[Apr]] -> 137,394.00 € | G36: =SchulungUndReiseTatsächlich[[#Totals],[Mai]]+MarketingTatsächlich[[#Totals],[Mai]]+BüroTatsächlich[[#Totals],[Mai]]+MitarbeiterTatsächlich[[#Totals],[Mai]] -> 128,255.00 € | H36: =SchulungUndReiseTatsächlich[[#Totals],[Jun]]+MarketingTatsächlich[[#Totals],[Jun]]+BüroTatsächlich[[#Totals],[Jun]]+MitarbeiterTatsächlich[[#Totals],[Jun]] -> 134,239.00 € | I36: =SchulungUndReiseTatsächlich[[#Totals],[Jul]]+MarketingTatsächlich[[#Totals],[Jul]]+BüroTatsächlich[[#Totals],[Jul]]+MitarbeiterTatsächlich[[#Totals],[Jul]] -> 0.00 € | J36: =SchulungUndReiseTatsächlich[[#Totals],[Aug]]+MarketingTatsächlich[[#Totals],[Aug]]+BüroTatsächlich[[#Totals],[Aug]]+MitarbeiterTatsächlich[[#Totals],[Aug]] -> 0.00 € | K36: =SchulungUndReiseTatsächlich[[#Totals],[Sep]]+MarketingTatsächlich[[#Totals],[Sep]]+BüroTatsächlich[[#Totals],[Sep]]+MitarbeiterTatsächlich[[#Totals],[Sep]] -> 0.00 € | L36: =SchulungUndReiseTatsächlich[[#Totals],[Okt]]+MarketingTatsächlich[[#Totals],[Okt]]+BüroTatsächlich[[#Totals],[Okt]]+MitarbeiterTatsächlich[[#Totals],[Okt]] -> 0.00 € | M36: =SchulungUndReiseTatsächlich[[#Totals],[Nov]]+MarketingTatsächlich[[#Totals],[Nov]]+BüroTatsächlich[[#Totals],[Nov]]+MitarbeiterTatsächlich[[#Totals],[Nov]] -> 0.00 € | N36: =SchulungUndReiseTatsächlich[[#Totals],[Dez]]+MarketingTatsächlich[[#Totals],[Dez]]+BüroTatsächlich[[#Totals],[Dez]]+MitarbeiterTatsächlich[[#Totals],[Dez]] -> 0.00 € | O36: =SchulungUndReiseTatsächlich[[#Totals],[JAHR]]+MarketingTatsächlich[[#Totals],[JAHR]]+BüroTatsächlich[[#Totals],[JAHR]]+MitarbeiterTatsächlich[[#Totals],[JAHR]] -> 782,939.00 €
B37: SUMME der tatsächlichen Kosten | C37: =SUM($C$36:C36) -> 129,682.00 € | D37: =SUM($C$36:D36) -> 257,486.00 € | E37: =SUM($C$36:E36) -> 383,051.00 € | F37: =SUM($C$36:F36) -> 520,445.00 € | G37: =SUM($C$36:G36) -> 648,700.00 € | H37: =SUM($C$36:H36) -> 782,939.00 € | I37: =SUM($C$36:I36) -> 782,939.00 € | J37: =SUM($C$36:J36) -> 782,939.00 € | K37: =SUM($C$36:K36) -> 782,939.00 € | L37: =SUM($C$36:L36) -> 782,939.00 € | M37: =SUM($C$36:M36) -> 782,939.00 € | N37: =SUM($C$36:N36) -> 782,939.00 €

Sheet KOSTENABWEICHUNGEN
B2: ='GEPLANTE KOSTEN'!B2:D3 -> Firmenname | K2: =worksheet_title -> Detaillierte Kostenschätzungen
K3: Schattierte Zellen stellen Berechnungen dar.
B4: KOSTENABWEICHUNGEN | C4: JAN | D4: FEB | E4: MRZ | F4: APR | G4: MAI | H4: JUN | I4: JUL | J4: AUG | K4: SEP | L4: OKT | M4: NOV | N4: DEZ | O4: JAHR
B5: Mitarbeiterkosten | C5: Jan | D5: Feb | E5: Mrz | F5: Apr | G5: Mai | H5: Jun | I5: Jul | J5: Aug | K5: Sep | L5: Okt | M5: Nov | N5: Dez | O5: JAHR
B6: Gehälter | C6: =INDEX(MitarbeiterPlan[],MATCH(INDEX(MitarbeiterAbweichungen[],ROW()-ROW(MitarbeiterAbweichungen[[#Headers],[Jan]]),1),INDEX(MitarbeiterPlan[],,1),0),MATCH(MitarbeiterAbweichungen[[#Headers],[Jan]],MitarbeiterPlan[#Headers],0))-INDEX(MitarbeiterTatsächlich[],MATCH(INDEX(MitarbeiterAbweichungen[],ROW()-ROW(MitarbeiterAbweichungen[[#Headers],[Jan]]),1),INDEX(MitarbeiterPlan[],,1),0),MATCH(MitarbeiterAbweichungen[[#Headers],[Jan]],MitarbeiterTatsächlich[#Headers],0)) -> 0.00 € | D6: =INDEX(MitarbeiterPlan[],MATCH(INDEX(MitarbeiterAbweichungen[],ROW()-ROW(MitarbeiterAbweichungen[[#Headers],[Feb]]),1),INDEX(MitarbeiterPlan[],,1),0),MATCH(MitarbeiterAbweichungen[[#Headers],[Feb]],MitarbeiterPlan[#Headers],0))-INDEX(MitarbeiterTatsächlich[],MATCH(INDEX(MitarbeiterAbweichungen[],ROW()-ROW(MitarbeiterAbweichungen[[#Headers],[Feb]]),1),INDEX(MitarbeiterPlan[],,1),0),MATCH(MitarbeiterAbweichungen[[#Headers],[Feb]],MitarbeiterTatsächlich[#Headers],0)) -> 0.00 € | E6: =INDEX(MitarbeiterPlan[],MATCH(INDEX(MitarbeiterAbweichungen[],ROW()-ROW(MitarbeiterAbweichungen[[#Headers],[Mrz]]),1),INDEX(MitarbeiterPlan[],,1),0),MATCH(MitarbeiterAbweichungen[[#Headers],[Mrz]],MitarbeiterPlan[#Headers],0))-INDEX(MitarbeiterTatsächlich[],MATCH(INDEX(MitarbeiterAbweichungen[],ROW()-ROW(MitarbeiterAbweichungen[[#Headers],[Mrz]]),1),INDEX(MitarbeiterPlan[],,1),0),MATCH(MitarbeiterAbweichungen[[#Headers],[Mrz]],MitarbeiterTatsächlich[#Headers],0)) -> 0.00 € | F6: =INDEX(MitarbeiterPlan[],MATCH(INDEX(MitarbeiterAbweichungen[],ROW()-ROW(MitarbeiterAbweichungen[[#Headers],[Apr]]),1),INDEX(MitarbeiterPlan[],,1),0),MATCH(MitarbeiterAbweichungen[[#Headers],[Apr]],MitarbeiterPlan[#Headers],0))-INDEX(MitarbeiterTatsächlich[],MATCH(INDEX(MitarbeiterAbweichungen[],ROW()-ROW(MitarbeiterAbweichungen[[#Headers],[Apr]]),1),INDEX(MitarbeiterPlan[],,1),0),MATCH(MitarbeiterAbweichungen[[#Headers],[Apr]],MitarbeiterTatsächlich[#Headers],0)) -> -500.00 € | G6: =INDEX(MitarbeiterPlan[],MATCH(INDEX(MitarbeiterAbweichungen[],ROW()-ROW(MitarbeiterAbweichungen[[#Headers],[Mai]]),1),INDEX(MitarbeiterPlan[],,1),0),MATCH(MitarbeiterAbweichungen[[#Headers],[Mai]],MitarbeiterPlan[#Headers],0))-INDEX(MitarbeiterTatsächlich[],MATCH(INDEX(MitarbeiterAbweichungen[],ROW()-ROW(MitarbeiterAbweichungen[[#Headers],[Mai]]),1),INDEX(MitarbeiterPlan[],,1),0),MATCH(MitarbeiterAbweichungen[[#Headers],[Mai]],MitarbeiterTatsächlich[#Headers],0)) -> -500.00 € | H6: =INDEX(MitarbeiterPlan[],MATCH(INDEX(MitarbeiterAbweichungen[],ROW()-ROW(MitarbeiterAbweichungen[[#Headers],[Jun]]),1),INDEX(MitarbeiterPlan[],,1),0),MATCH(MitarbeiterAbweichungen[[#Headers],[Jun]],MitarbeiterPlan[#Headers],0))-INDEX(MitarbeiterTatsächlich[],MATCH(INDEX(MitarbeiterAbweichungen[],ROW()-ROW(MitarbeiterAbweichungen[[#Headers],[Jun]]),1),INDEX(MitarbeiterPlan[],,1),0),MATCH(MitarbeiterAbweichungen[[#Headers],[Jun]],MitarbeiterTatsächlich[#Headers],0)) -> -500.00 € | I6: =INDEX(MitarbeiterPlan[],MATCH(INDEX(MitarbeiterAbweichungen[],ROW()-ROW(MitarbeiterAbweichungen[[#Headers],[Jul]]),1),INDEX(MitarbeiterPlan[],,1),0),MATCH(MitarbeiterAbweichungen[[#Headers],[Jul]],MitarbeiterPlan[#Headers],0))-INDEX(MitarbeiterTatsächlich[],MATCH(INDEX(MitarbeiterAbweichungen[],ROW()-ROW(MitarbeiterAbweichungen[[#Headers],[Jul]]),1),INDEX(MitarbeiterPlan[],,1),0),MATCH(MitarbeiterAbweichungen[[#Headers],[Jul]],MitarbeiterTatsächlich[#Headers],0)) -> 87,500.00 € | J6: =INDEX(MitarbeiterPlan[],MATCH(INDEX(MitarbeiterAbweichungen[],ROW()-ROW(MitarbeiterAbweichungen[[#Headers],[Aug]]),1),INDEX(MitarbeiterPlan[],,1),0),MATCH(MitarbeiterAbweichungen[[#Headers],[Aug]],MitarbeiterPlan[#Headers],0))-INDEX(MitarbeiterTatsächlich[],MATCH(INDEX(MitarbeiterAbweichungen[],ROW()-ROW(MitarbeiterAbweichungen[[#Headers],[Aug]]),1),INDEX(MitarbeiterPlan[],,1),0),MATCH(MitarbeiterAbweichungen[[#Headers],[Aug]],MitarbeiterTatsächlich[#Headers],0)) -> 92,400.00 € | K6: =INDEX(MitarbeiterPlan[],MATCH(INDEX(MitarbeiterAbweichungen[],ROW()-ROW(MitarbeiterAbweichungen[[#Headers],[Sep]]),1),INDEX(MitarbeiterPlan[],,1),0),MATCH(MitarbeiterAbweichungen[[#Headers],[Sep]],MitarbeiterPlan[#Headers],0))-INDEX(MitarbeiterTatsächlich[],MATCH(INDEX(MitarbeiterAbweichungen[],ROW()-ROW(MitarbeiterAbweichungen[[#Headers],[Sep]]),1),INDEX(MitarbeiterPlan[],,1),0),MATCH(MitarbeiterAbweichungen[[#Headers],[Sep]],MitarbeiterTatsächlich[#Headers],0)) -> 92,400.00 € | L6: =INDEX(MitarbeiterPlan[],MATCH(INDEX(MitarbeiterAbweichungen[],ROW()-ROW(MitarbeiterAbweichungen[[#Headers],[Okt]]),1),INDEX(MitarbeiterPlan[],,1),0),MATCH(MitarbeiterAbweichungen[[#Headers],[Okt]],MitarbeiterPlan[#Headers],0))-INDEX(MitarbeiterTatsächlich[],MATCH(INDEX(MitarbeiterAbweichungen[],ROW()-ROW(MitarbeiterAbweichungen[[#Headers],[Okt]]),1),INDEX(MitarbeiterPlan[],,1),0),MATCH(MitarbeiterAbweichungen[[#Headers],[Okt]],MitarbeiterTatsächlich[#Headers],0)) -> 92,400.00 € | M6: =INDEX(MitarbeiterPlan[],MATCH(INDEX(MitarbeiterAbweichungen[],ROW()-ROW(MitarbeiterAbweichungen[[#Headers],[Nov]]),1),INDEX(MitarbeiterPlan[],,1),0),MATCH(MitarbeiterAbweichungen[[#Headers],[Nov]],MitarbeiterPlan[#Headers],0))-INDEX(MitarbeiterTatsächlich[],MATCH(INDEX(MitarbeiterAbweichungen[],ROW()-ROW(MitarbeiterAbweichungen[[#Headers],[Nov]]),1),INDEX(MitarbeiterPlan[],,1),0),MATCH(MitarbeiterAbweichungen[[#Headers],[Nov]],MitarbeiterTatsächlich[#Headers],0)) -> 92,400.00 € | N6: =INDEX(MitarbeiterPlan[],MATCH(INDEX(MitarbeiterAbweichungen[],ROW()-ROW(MitarbeiterAbweichungen[[#Headers],[Dez]]),1),INDEX(MitarbeiterPlan[],,1),0),MATCH(MitarbeiterAbweichungen[[#Headers],[Dez]],MitarbeiterPlan[#Headers],0))-INDEX(MitarbeiterTatsächlich[],MATCH(INDEX(MitarbeiterAbweichungen[],ROW()-ROW(MitarbeiterAbweichungen[[#Headers],[Dez]]),1),INDEX(MitarbeiterPlan[],,1),0),MATCH(MitarbeiterAbweichungen[[#Headers],[Dez]],MitarbeiterTatsächlich[#Headers],0)) -> 92,400.00 € | O6: =SUM(MitarbeiterAbweichungen[[#This Row],[Jan]:[Dez]]) -> 548,000.00 €
B7: Vorteile | C7: =INDEX(MitarbeiterPlan[],MATCH(INDEX(MitarbeiterAbweichungen[],ROW()-ROW(MitarbeiterAbweichungen[[#Headers],[Jan]]),1),INDEX(MitarbeiterPlan[],,1),0),MATCH(MitarbeiterAbweichungen[[#Headers],[Jan]],MitarbeiterPlan[#Headers],0))-INDEX(MitarbeiterTatsächlich[],MATCH(INDEX(MitarbeiterAbweichungen[],ROW()-ROW(MitarbeiterAbweichungen[[#Headers],[Jan]]),1),INDEX(MitarbeiterPlan[],,1),0),MATCH(MitarbeiterAbweichungen[[#Headers],[Jan]],MitarbeiterTatsächlich[#Headers],0)) -> 0.00 € | D7: =INDEX(MitarbeiterPlan[],MATCH(INDEX(MitarbeiterAbweichungen[],ROW()-ROW(MitarbeiterAbweichungen[[#Headers],[Feb]]),1),INDEX(MitarbeiterPlan[],,1),0),MATCH(MitarbeiterAbweichungen[[#Headers],[Feb]],MitarbeiterPlan[#Headers],0))-INDEX(MitarbeiterTatsächlich[],MATCH(INDEX(MitarbeiterAbweichungen[],ROW()-ROW(MitarbeiterAbweichungen[[#Headers],[Feb]]),1),INDEX(MitarbeiterPlan[],,1),0),MATCH(MitarbeiterAbweichungen[[#Headers],[Feb]],MitarbeiterTatsächlich[#Headers],0)) -> 0.00 € | E7: =INDEX(MitarbeiterPlan[],MATCH(INDEX(MitarbeiterAbweichungen[],ROW()-ROW(MitarbeiterAbweichungen[[#Headers],[Mrz]]),1),INDEX(MitarbeiterPlan[],,1),0),MATCH(MitarbeiterAbweichungen[[#Headers],[Mrz]],MitarbeiterPlan[#Headers],0))-INDEX(MitarbeiterTatsächlich[],MATCH(INDEX(MitarbeiterAbweichungen[],ROW()-ROW(MitarbeiterAbweichungen[[#Headers],[Mrz]]),1),INDEX(MitarbeiterPlan[],,1),0),MATCH(MitarbeiterAbweichungen[[#Headers],[Mrz]],MitarbeiterTatsächlich[#Headers],0)) -> 0.00 € | F7: =INDEX(MitarbeiterPlan[],MATCH(INDEX(MitarbeiterAbweichungen[],ROW()-ROW(MitarbeiterAbweichungen[[#Headers],[Apr]]),1),INDEX(MitarbeiterPlan[],,1),0),MATCH(MitarbeiterAbweichungen[[#Headers],[Apr]],MitarbeiterPlan[#Headers],0))-INDEX(MitarbeiterTatsächlich[],MATCH(INDEX(MitarbeiterAbweichungen[],ROW()-ROW(MitarbeiterAbweichungen[[#Headers],[Apr]]),1),INDEX(MitarbeiterPlan[],,1),0),MATCH(MitarbeiterAbweichungen[[#Headers],[Apr]],MitarbeiterTatsächlich[#Headers],0)) -> -135.00 € | G7: =INDEX(MitarbeiterPlan[],MATCH(INDEX(MitarbeiterAbweichungen[],ROW()-ROW(MitarbeiterAbweichungen[[#Headers],[Mai]]),1),INDEX(MitarbeiterPlan[],,1),0),MATCH(MitarbeiterAbweichungen[[#Headers],[Mai]],MitarbeiterPlan[#Headers],0))-INDEX(MitarbeiterTatsächlich[],MATCH(INDEX(MitarbeiterAbweichungen[],ROW()-ROW(MitarbeiterAbweichungen[[#Headers],[Mai]]),1),INDEX(MitarbeiterPlan[],,1),0),MATCH(MitarbeiterAbweichungen[[#Headers],[Mai]],MitarbeiterTatsächlich[#Headers],0)) -> -135.00 € | H7: =INDEX(MitarbeiterPlan[],MATCH(INDEX(MitarbeiterAbweichungen[],ROW()-ROW(MitarbeiterAbweichungen[[#Headers],[Jun]]),1),INDEX(MitarbeiterPlan[],,1),0),MATCH(MitarbeiterAbweichungen[[#Headers],[Jun]],MitarbeiterPlan[#Headers],0))-INDEX(MitarbeiterTatsächlich[],MATCH(INDEX(MitarbeiterAbweichungen[],ROW()-ROW(MitarbeiterAbweichungen[[#Headers],[Jun]]),1),INDEX(MitarbeiterPlan[],,1),0),MATCH(MitarbeiterAbweichungen[[#Headers],[Jun]],MitarbeiterTatsächlich[#Headers],0)) -> -135.00 € | I7: =INDEX(MitarbeiterPlan[],MATCH(INDEX(MitarbeiterAbweichungen[],ROW()-ROW(MitarbeiterAbweichungen[[#Headers],[Jul]]),1),INDEX(MitarbeiterPlan[],,1),0),MATCH(MitarbeiterAbweichungen[[#Headers],[Jul]],MitarbeiterPlan[#Headers],0))-INDEX(MitarbeiterTatsächlich[],MATCH(INDEX(MitarbeiterAbweichungen[],ROW()-ROW(MitarbeiterAbweichungen[[#Headers],[Jul]]),1),INDEX(MitarbeiterPlan[],,1),0),MATCH(MitarbeiterAbweichungen[[#Headers],[Jul]],MitarbeiterTatsächlich[#Headers],0)) -> 23,625.00 € | J7: =INDEX(MitarbeiterPlan[],MATCH(INDEX(MitarbeiterAbweichungen[],ROW()-ROW(MitarbeiterAbweichungen[[#Headers],[Aug]]),1),INDEX(MitarbeiterPlan[],,1),0),MATCH(MitarbeiterAbweichungen[[#Headers],[Aug]],MitarbeiterPlan[#Headers],0))-INDEX(MitarbeiterTatsächlich[],MATCH(INDEX(MitarbeiterAbweichungen[],ROW()-ROW(MitarbeiterAbweichungen[[#Headers],[Aug]]),1),INDEX(MitarbeiterPlan[],,1),0),MATCH(MitarbeiterAbweichungen[[#Headers],[Aug]],MitarbeiterTatsächlich[#Headers],0)) -> 24,948.00 € | K7: =INDEX(MitarbeiterPlan[],MATCH(INDEX(MitarbeiterAbweichungen[],ROW()-ROW(MitarbeiterAbweichungen[[#Headers],[Sep]]),1),INDEX(MitarbeiterPlan[],,1),0),MATCH(MitarbeiterAbweichungen[[#Headers],[Sep]],MitarbeiterPlan[#Headers],0))-INDEX(MitarbeiterTatsächlich[],MATCH(INDEX(MitarbeiterAbweichungen[],ROW()-ROW(MitarbeiterAbweichungen[[#Headers],[Sep]]),1),INDEX(MitarbeiterPlan[],,1),0),MATCH(MitarbeiterAbweichungen[[#Headers],[Sep]],MitarbeiterTatsächlich[#Headers],0)) -> 24,948.00 € | L7: =INDEX(MitarbeiterPlan[],MATCH(INDEX(MitarbeiterAbweichungen[],ROW()-ROW(MitarbeiterAbweichungen[[#Headers],[Okt]]),1),INDEX(MitarbeiterPlan[],,1),0),MATCH(MitarbeiterAbweichungen[[#Headers],[Okt]],MitarbeiterPlan[#Headers],0))-INDEX(MitarbeiterTatsächlich[],MATCH(INDEX(MitarbeiterAbweichungen[],ROW()-ROW(MitarbeiterAbweichungen[[#Headers],[Okt]]),1),INDEX(MitarbeiterPlan[],,1),0),MATCH(MitarbeiterAbweichungen[[#Headers],[Okt]],MitarbeiterTatsächlich[#Headers],0)) -> 24,948.00 € | M7: =INDEX(MitarbeiterPlan[],MATCH(INDEX(MitarbeiterAbweichungen[],ROW()-ROW(MitarbeiterAbweichungen[[#Headers],[Nov]]),1),INDEX(MitarbeiterPlan[],,1),0),MATCH(MitarbeiterAbweichungen[[#Headers],[Nov]],MitarbeiterPlan[#Headers],0))-INDEX(MitarbeiterTatsächlich[],MATCH(INDEX(MitarbeiterAbweichungen[],ROW()-ROW(MitarbeiterAbweichungen[[#Headers],[Nov]]),1),INDEX(MitarbeiterPlan[],,1),0),MATCH(MitarbeiterAbweichungen[[#Headers],[Nov]],MitarbeiterTatsächlich[#Headers],0)) -> 24,948.00 € | N7: =INDEX(MitarbeiterPlan[],MATCH(INDEX(MitarbeiterAbweichungen[],ROW()-ROW(MitarbeiterAbweichungen[[#Headers],[Dez]]),1),INDEX(MitarbeiterPlan[],,1),0),MATCH(MitarbeiterAbweichungen[[#Headers],[Dez]],MitarbeiterPlan[#Headers],0))-INDEX(MitarbeiterTatsächlich[],MATCH(INDEX(MitarbeiterAbweichungen[],ROW()-ROW(MitarbeiterAbweichungen[[#Headers],[Dez]]),1),INDEX(MitarbeiterPlan[],,1),0),MATCH(MitarbeiterAbweichungen[[#Headers],[Dez]],MitarbeiterTatsächlich[#Headers],0)) -> 24,948.00 € | O7: =SUM(MitarbeiterAbweichungen[[#This Row],[Jan]:[Dez]]) -> 147,960.00 €
B8: Zwischensumme | C8: =SUBTOTAL(109,MitarbeiterAbweichungen[Jan]) -> 0.00 € | D8: =SUBTOTAL(109,MitarbeiterAbweichungen[Feb]) -> 0.00 € | E8: =SUBTOTAL(109,MitarbeiterAbweichungen[Mrz]) -> 0.00 € | F8: =SUBTOTAL(109,MitarbeiterAbweichungen[Apr]) -> -635.00 € | G8: =SUBTOTAL(109,MitarbeiterAbweichungen[Mai]) -> -635.00 € | H8: =SUBTOTAL(109,MitarbeiterAbweichungen[Jun]) -> -635.00 € | I8: =SUBTOTAL(109,MitarbeiterAbweichungen[Jul]) -> 111,125.00 € | J8: =SUBTOTAL(109,MitarbeiterAbweichungen[Aug]) -> 117,348.00 € | K8: =SUBTOTAL(109,MitarbeiterAbweichungen[Sep]) -> 117,348.00 € | L8: =SUBTOTAL(109,MitarbeiterAbweichungen[Okt]) -> 117,348.00 € | M8: =SUBTOTAL(109,MitarbeiterAbweichungen[Nov]) -> 117,348.00 € | N8: =SUBTOTAL(109,MitarbeiterAbweichungen[Dez]) -> 117,348.00 € | O8: =SUBTOTAL(109,MitarbeiterAbweichungen[JAHR]) -> 695,960.00 €
B10: Bürokosten | C10: Jan | D10: Feb | E10: Mrz | F10: Apr | G10: Mai | H10: Jun | I10: Jul | J10: Aug | K10: Sep | L10: Okt | M10: Nov | N10: Dez | O10: JAHR
B11: Büromiete | C11: =INDEX(BüroPlan[],MATCH(INDEX(BüroAbweichungen[],ROW()-ROW(BüroAbweichungen[[#Headers],[Jan]]),1),INDEX(BüroPlan[],,1),0),MATCH(BüroAbweichungen[[#Headers],[Jan]],BüroPlan[#Headers],0))-INDEX(BüroTatsächlich[],MATCH(INDEX(BüroAbweichungen[],ROW()-ROW(BüroAbweichungen[[#Headers],[Jan]]),1),INDEX(BüroPlan[],,1),0),MATCH(BüroAbweichungen[[#Headers],[Jan]],BüroTatsächlich[#Headers],0)) -> 0.00 € | D11: =INDEX(BüroPlan[],MATCH(INDEX(BüroAbweichungen[],ROW()-ROW(BüroAbweichungen[[#Headers],[Feb]]),1),INDEX(BüroPlan[],,1),0),MATCH(BüroAbweichungen[[#Headers],[Feb]],BüroPlan[#Headers],0))-INDEX(BüroTatsächlich[],MATCH(INDEX(BüroAbweichungen[],ROW()-ROW(BüroAbweichungen[[#Headers],[Feb]]),1),INDEX(BüroPlan[],,1),0),MATCH(BüroAbweichungen[[#Headers],[Feb]],BüroTatsächlich[#Headers],0)) -> 0.00 € | E11: =INDEX(BüroPlan[],MATCH(INDEX(BüroAbweichungen[],ROW()-ROW(BüroAbweichungen[[#Headers],[Mrz]]),1),INDEX(BüroPlan[],,1),0),MATCH(BüroAbweichungen[[#Headers],[Mrz]],BüroPlan[#Headers],0))-INDEX(BüroTatsächlich[],MATCH(INDEX(BüroAbweichungen[],ROW()-ROW(BüroAbweichungen[[#Headers],[Mrz]]),1),INDEX(BüroPlan[],,1),0),MATCH(BüroAbweichungen[[#Headers],[Mrz]],BüroTatsächlich[#Headers],0)) -> 0.00 € | F11: =INDEX(BüroPlan[],MATCH(INDEX(BüroAbweichungen[],ROW()-ROW(BüroAbweichungen[[#Headers],[Apr]]),1),INDEX(BüroPlan[],,1),0),MATCH(BüroAbweichungen[[#Headers],[Apr]],BüroPlan[#Headers],0))-INDEX(BüroTatsächlich[],MATCH(INDEX(BüroAbweichungen[],ROW()-ROW(BüroAbweichungen[[#Headers],[Apr]]),1),INDEX(BüroPlan[],,1),0),MATCH(BüroAbweichungen[[#Headers],[Apr]],BüroTatsächlich[#Headers],0)) -> 0.00 € | G11: =INDEX(BüroPlan[],MATCH(INDEX(BüroAbweichungen[],ROW()-ROW(BüroAbweichungen[[#Headers],[Mai]]),1),INDEX(BüroPlan[],,1),0),MATCH(BüroAbweichungen[[#Headers],[Mai]],BüroPlan[#Headers],0))-INDEX(BüroTatsächlich[],MATCH(INDEX(BüroAbweichungen[],ROW()-ROW(BüroAbweichungen[[#Headers],[Mai]]),1),INDEX(BüroPlan[],,1),0),MATCH(BüroAbweichungen[[#Headers],[Mai]],BüroTatsächlich[#Headers],0)) -> 0.00 € | H11: =INDEX(BüroPlan[],MATCH(INDEX(BüroAbweichungen[],ROW()-ROW(BüroAbweichungen[[#Headers],[Jun]]),1),INDEX(BüroPlan[],,1),0),MATCH(BüroAbweichungen[[#Headers],[Jun]],BüroPlan[#Headers],0))-INDEX(BüroTatsächlich[],MATCH(INDEX(BüroAbweichungen[],ROW()-ROW(BüroAbweichungen[[#Headers],[Jun]]),1),INDEX(BüroPlan[],,1),0),MATCH(BüroAbweichungen[[#Headers],[Jun]],BüroTatsächlich[#Headers],0)) -> 0.00 € | I11: =INDEX(BüroPlan[],MATCH(INDEX(BüroAbweichungen[],ROW()-ROW(BüroAbweichungen[[#Headers],[Jul]]),1),INDEX(BüroPlan[],,1),0),MATCH(BüroAbweichungen[[#Headers],[Jul]],BüroPlan[#Headers],0))-INDEX(BüroTatsächlich[],MATCH(INDEX(BüroAbweichungen[],ROW()-ROW(BüroAbweichungen[[#Headers],[Jul]]),1),INDEX(BüroPlan[],,1),0),MATCH(BüroAbweichungen[[#Headers],[Jul]],BüroTatsächlich[#Headers],0)) -> 9,800.00 € | J11: =INDEX(BüroPlan[],MATCH(INDEX(BüroAbweichungen[],ROW()-ROW(BüroAbweichungen[[#Headers],[Aug]]),1),INDEX(BüroPlan[],,1),0),MATCH(BüroAbweichungen[[#Headers],[Aug]],BüroPlan[#Headers],0))-INDEX(BüroTatsächlich[],MATCH(INDEX(BüroAbweichungen[],ROW()-ROW(BüroAbweichungen[[#Headers],[Aug]]),1),INDEX(BüroPlan[],,1),0),MATCH(BüroAbweichungen[[#Headers],[Aug]],BüroTatsächlich[#Headers],0)) -> 9,800.00 € | K11: =INDEX(BüroPlan[],MATCH(INDEX(BüroAbweichungen[],ROW()-ROW(BüroAbweichungen[[#Headers],[Sep]]),1),INDEX(BüroPlan[],,1),0),MATCH(BüroAbweichungen[[#Headers],[Sep]],BüroPlan[#Headers],0))-INDEX(BüroTatsächlich[],MATCH(INDEX(BüroAbweichungen[],ROW()-ROW(BüroAbweichungen[[#Headers],[Sep]]),1),INDEX(BüroPlan[],,1),0),MATCH(BüroAbweichungen[[#Headers],[Sep]],BüroTatsächlich[#Headers],0)) -> 9,800.00 € | L11: =INDEX(BüroPlan[],MATCH(INDEX(BüroAbweichungen[],ROW()-ROW(BüroAbweichungen[[#Headers],[Okt]]),1),INDEX(BüroPlan[],,1),0),MATCH(BüroAbweichungen[[#Headers],[Okt]],BüroPlan[#Headers],0))-INDEX(BüroTatsächlich[],MATCH(INDEX(BüroAbweichungen[],ROW()-ROW(BüroAbweichungen[[#Headers],[Okt]]),1),INDEX(BüroPlan[],,1),0),MATCH(BüroAbweichungen[[#Headers],[Okt]],BüroTatsächlich[#Headers],0)) -> 9,800.00 € | M11: =INDEX(BüroPlan[],MATCH(INDEX(BüroAbweichungen[],ROW()-ROW(BüroAbweichungen[[#Headers],[Nov]]),1),INDEX(BüroPlan[],,1),0),MATCH(BüroAbweichungen[[#Headers],[Nov]],BüroPlan[#Headers],0))-INDEX(BüroTatsächlich[],MATCH(INDEX(BüroAbweichungen[],ROW()-ROW(BüroAbweichungen[[#Headers],[Nov]]),1),INDEX(BüroPlan[],,1),0),MATCH(BüroAbweichungen[[#Headers],[Nov]],BüroTatsächlich[#Headers],0)) -> 9,800.00 € | N11: =INDEX(BüroPlan[],MATCH(INDEX(BüroAbweichungen[],ROW()-ROW(BüroAbweichungen[[#Headers],[Dez]]),1),INDEX(BüroPlan[],,1),0),MATCH(BüroAbweichungen[[#Headers],[Dez]],BüroPlan[#Headers],0))-INDEX(BüroTatsächlich[],MATCH(INDEX(BüroAbweichungen[],ROW()-ROW(BüroAbweichungen[[#Headers],[Dez]]),1),INDEX(BüroPlan[],,1),0),MATCH(BüroAbweichungen[[#Headers],[Dez]],BüroTatsächlich[#Headers],0)) -> 9,800.00 € | O11: =SUM(BüroAbweichungen[[#This Row],[Jan]:[Dez]]) -> 58,800.00 €
B12: Gas | C12: =INDEX(BüroPlan[],MATCH(INDEX(BüroAbweichungen[],ROW()-ROW(BüroAbweichungen[[#Headers],[Jan]]),1),INDEX(BüroPlan[],,1),0),MATCH(BüroAbweichungen[[#Headers],[Jan]],BüroPlan[#Headers],0))-INDEX(BüroTatsächlich[],MATCH(INDEX(BüroAbweichungen[],ROW()-ROW(BüroAbweichungen[[#Headers],[Jan]]),1),INDEX(BüroPlan[],,1),0),MATCH(BüroAbweichungen[[#Headers],[Jan]],BüroTatsächlich[#Headers],0)) -> -4.00 € | D12: =INDEX(BüroPlan[],MATCH(INDEX(BüroAbweichungen[],ROW()-ROW(BüroAbweichungen[[#Headers],[Feb]]),1),INDEX(BüroPlan[],,1),0),MATCH(BüroAbweichungen[[#Headers],[Feb]],BüroPlan[#Headers],0))-INDEX(BüroTatsächlich[],MATCH(INDEX(BüroAbweichungen[],ROW()-ROW(BüroAbweichungen[[#Headers],[Feb]]),1),INDEX(BüroPlan[],,1),0),MATCH(BüroAbweichungen[[#Headers],[Feb]],BüroTatsächlich[#Headers],0)) -> -30.00 € | E12: =INDEX(BüroPlan[],MATCH(INDEX(BüroAbweichungen[],ROW()-ROW(BüroAbweichungen[[#Headers],[Mrz]]),1),INDEX(BüroPlan[],,1),0),MATCH(BüroAbweichungen[[#Headers],[Mrz]],BüroPlan[#Headers],0))-INDEX(BüroTatsächlich[],MATCH(INDEX(BüroAbweichungen[],ROW()-ROW(BüroAbweichungen[[#Headers],[Mrz]]),1),INDEX(BüroPlan[],,1),0),MATCH(BüroAbweichungen[[#Headers],[Mrz]],BüroTatsächlich[#Headers],0)) -> 15.00 € | F12: =INDEX(BüroPlan[],MATCH(INDEX(BüroAbweichungen[],ROW()-ROW(BüroAbweichungen[[#Headers],[Apr]]),1),INDEX(BüroPlan[],,1),0),MATCH(BüroAbweichungen[[#Headers],[Apr]],BüroPlan[#Headers],0))-INDEX(BüroTatsächlich[],MATCH(INDEX(BüroAbweichungen[],ROW()-ROW(BüroAbweichungen[[#Headers],[Apr]]),1),INDEX(BüroPlan[],,1),0),MATCH(BüroAbweichungen[[#Headers],[Apr]],BüroTatsächlich[#Headers],0)) -> -130.00 € | G12: =INDEX(BüroPlan[],MATCH(INDEX(BüroAbweichungen[],ROW()-ROW(BüroAbweichungen[[#Headers],[Mai]]),1),INDEX(BüroPlan[],,1),0),MATCH(BüroAbweichungen[[#Headers],[Mai]],BüroPlan[#Headers],0))-INDEX(BüroTatsächlich[],MATCH(INDEX(BüroAbweichungen[],ROW()-ROW(BüroAbweichungen[[#Headers],[Mai]]),1),INDEX(BüroPlan[],,1),0),MATCH(BüroAbweichungen[[#Headers],[Mai]],BüroTatsächlich[#Headers],0)) -> 13.00 € | H12: =INDEX(BüroPlan[],MATCH(INDEX(BüroAbweichungen[],ROW()-ROW(BüroAbweichungen[[#Headers],[Jun]]),1),INDEX(BüroPlan[],,1),0),MATCH(BüroAbweichungen[[#Headers],[Jun]],BüroPlan[#Headers],0))-INDEX(BüroTatsächlich[],MATCH(INDEX(BüroAbweichungen[],ROW()-ROW(BüroAbweichungen[[#Headers],[Jun]]),1),INDEX(BüroPlan[],,1),0),MATCH(BüroAbweichungen[[#Headers],[Jun]],BüroTatsächlich[#Headers],0)) -> 12.00 € | I12: =INDEX(BüroPlan[],MATCH(INDEX(BüroAbweichungen[],ROW()-ROW(BüroAbweichungen[[#Headers],[Jul]]),1),INDEX(BüroPlan[],,1),0),MATCH(BüroAbweichungen[[#Headers],[Jul]],BüroPlan[#Headers],0))-INDEX(BüroTatsächlich[],MATCH(INDEX(BüroAbweichungen[],ROW()-ROW(BüroAbweichungen[[#Headers],[Jul]]),1),INDEX(BüroPlan[],,1),0),MATCH(BüroAbweichungen[[#Headers],[Jul]],BüroTatsächlich[#Headers],0)) -> 100.00 € | J12: =INDEX(BüroPlan[],MATCH(INDEX(BüroAbweichungen[],ROW()-ROW(BüroAbweichungen[[#Headers],[Aug]]),1),INDEX(BüroPlan[],,1),0),MATCH(BüroAbweichungen[[#Headers],[Aug]],BüroPlan[#Headers],0))-INDEX(BüroTatsächlich[],MATCH(INDEX(BüroAbweichungen[],ROW()-ROW(BüroAbweichungen[[#Headers],[Aug]]),1),INDEX(BüroPlan[],,1),0),MATCH(BüroAbweichungen[[#Headers],[Aug]],BüroTatsächlich[#Headers],0)) -> 100.00 € | K12: =INDEX(BüroPlan[],MATCH(INDEX(BüroAbweichungen[],ROW()-ROW(BüroAbweichungen[[#Headers],[Sep]]),1),INDEX(BüroPlan[],,1),0),MATCH(BüroAbweichungen[[#Headers],[Sep]],BüroPlan[#Headers],0))-INDEX(BüroTatsächlich[],MATCH(INDEX(BüroAbweichungen[],ROW()-ROW(BüroAbweichungen[[#Headers],[Sep]]),1),INDEX(BüroPlan[],,1),0),MATCH(BüroAbweichungen[[#Headers],[Sep]],BüroTatsächlich[#Headers],0)) -> 100.00 € | L12: =INDEX(BüroPlan[],MATCH(INDEX(BüroAbweichungen[],ROW()-ROW(BüroAbweichungen[[#Headers],[Okt]]),1),INDEX(BüroPlan[],,1),0),MATCH(BüroAbweichungen[[#Headers],[Okt]],BüroPlan[#Headers],0))-INDEX(BüroTatsächlich[],MATCH(INDEX(BüroAbweichungen[],ROW()-ROW(BüroAbweichungen[[#Headers],[Okt]]),1),INDEX(BüroPlan[],,1),0),MATCH(BüroAbweichungen[[#Headers],[Okt]],BüroTatsächlich[#Headers],0)) -> 100.00 € | M12: =INDEX(BüroPlan[],MATCH(INDEX(BüroAbweichungen[],ROW()-ROW(BüroAbweichungen[[#Headers],[Nov]]),1),INDEX(BüroPlan[],,1),0),MATCH(BüroAbweichungen[[#Headers],[Nov]],BüroPlan[#Headers],0))-INDEX(BüroTatsächlich[],MATCH(INDEX(BüroAbweichungen[],ROW()-ROW(BüroAbweichungen[[#Headers],[Nov]]),1),INDEX(BüroPlan[],,1),0),MATCH(BüroAbweichungen[[#Headers],[Nov]],BüroTatsächlich[#Headers],0)) -> 400.00 € | N12: =INDEX(BüroPlan[],MATCH(INDEX(BüroAbweichungen[],ROW()-ROW(BüroAbweichungen[[#Headers],[Dez]]),1),INDEX(BüroPlan[],,1),0),MATCH(BüroAbweichungen[[#Headers],[Dez]],BüroPlan[#Headers],0))-INDEX(BüroTatsächlich[],MATCH(INDEX(BüroAbweichungen[],ROW()-ROW(BüroAbweichungen[[#Headers],[Dez]]),1),INDEX(BüroPlan[],,1),0),MATCH(BüroAbweichungen[[#Headers],[Dez]],BüroTatsächlich[#Headers],0)) -> 400.00 € | O12: =SUM(BüroAbweichungen[[#This Row],[Jan]:[Dez]]) -> 1,076.00 €
B13: Strom | C13: =INDEX(BüroPlan[],MATCH(INDEX(BüroAbweichungen[],ROW()-ROW(BüroAbweichungen[[#Headers],[Jan]]),1),INDEX(BüroPlan[],,1),0),MATCH(BüroAbweichungen[[#Headers],[Jan]],BüroPlan[#Headers],0))-INDEX(BüroTatsächlich[],MATCH(INDEX(BüroAbweichungen[],ROW()-ROW(BüroAbweichungen[[#Headers],[Jan]]),1),INDEX(BüroPlan[],,1),0),MATCH(BüroAbweichungen[[#Headers],[Jan]],BüroTatsächlich[#Headers],0)) -> 12.00 € | D13: =INDEX(BüroPlan[],MATCH(INDEX(BüroAbweichungen[],ROW()-ROW(BüroAbweichungen[[#Headers],[Feb]]),1),INDEX(BüroPlan[],,1),0),MATCH(BüroAbweichungen[[#Headers],[Feb]],BüroPlan[#Headers],0))-INDEX(BüroTatsächlich[],MATCH(INDEX(BüroAbweichungen[],ROW()-ROW(BüroAbweichungen[[#Headers],[Feb]]),1),INDEX(BüroPlan[],,1),0),MATCH(BüroAbweichungen[[#Headers],[Feb]],BüroTatsächlich[#Headers],0)) -> 22.00 € | E13: =INDEX(BüroPlan[],MATCH(INDEX(BüroAbweichungen[],ROW()-ROW(BüroAbweichungen[[#Headers],[Mrz]]),1),INDEX(BüroPlan[],,1),0),MATCH(BüroAbweichungen[[#Headers],[Mrz]],BüroPlan[#Headers],0))-INDEX(BüroTatsächlich[],MATCH(INDEX(BüroAbweichungen[],ROW()-ROW(BüroAbweichungen[[#Headers],[Mrz]]),1),INDEX(BüroPlan[],,1),0),MATCH(BüroAbweichungen[[#Headers],[Mrz]],BüroTatsächlich[#Headers],0)) -> 32.00 € | F13: =INDEX(BüroPlan[],MATCH(INDEX(BüroAbweichungen[],ROW()-ROW(BüroAbweichungen[[#Headers],[Apr]]),1),INDEX(BüroPlan[],,1),0),MATCH(BüroAbweichungen[[#Headers],[Apr]],BüroPlan[#Headers],0))-INDEX(BüroTatsächlich[],MATCH(INDEX(BüroAbweichungen[],ROW()-ROW(BüroAbweichungen[[#Headers],[Apr]]),1),INDEX(BüroPlan[],,1),0),MATCH(BüroAbweichungen[[#Headers],[Apr]],BüroTatsächlich[#Headers],0)) -> 1.00 € | G13: =INDEX(BüroPlan[],MATCH(INDEX(BüroAbweichungen[],ROW()-ROW(BüroAbweichungen[[#Headers],[Mai]]),1),INDEX(BüroPlan[],,1),0),MATCH(BüroAbweichungen[[#Headers],[Mai]],BüroPlan[#Headers],0))-INDEX(BüroTatsächlich[],MATCH(INDEX(BüroAbweichungen[],ROW()-ROW(BüroAbweichungen[[#Headers],[Mai]]),1),INDEX(BüroPlan[],,1),0),MATCH(BüroAbweichungen[[#Headers],[Mai]],BüroTatsächlich[#Headers],0)) -> -6.00 € | H13: =INDEX(BüroPlan[],MATCH(INDEX(BüroAbweichungen[],ROW()-ROW(BüroAbweichungen[[#Headers],[Jun]]),1),INDEX(BüroPlan[],,1),0),MATCH(BüroAbweichungen[[#Headers],[Jun]],BüroPlan[#Headers],0))-INDEX(BüroTatsächlich[],MATCH(INDEX(BüroAbweichungen[],ROW()-ROW(BüroAbweichungen[[#Headers],[Jun]]),1),INDEX(BüroPlan[],,1),0),MATCH(BüroAbweichungen[[#Headers],[Jun]],BüroTatsächlich[#Headers],0)) -> 10.00 € | I13: =INDEX(BüroPlan[],MATCH(INDEX(BüroAbweichungen[],ROW()-ROW(BüroAbweichungen[[#Headers],[Jul]]),1),INDEX(BüroPlan[],,1),0),MATCH(BüroAbweichungen[[#Headers],[Jul]],BüroPlan[#Headers],0))-INDEX(BüroTatsächlich[],MATCH(INDEX(BüroAbweichungen[],ROW()-ROW(BüroAbweichungen[[#Headers],[Jul]]),1),INDEX(BüroPlan[],,1),0),MATCH(BüroAbweichungen[[#Headers],[Jul]],BüroTatsächlich[#Headers],0)) -> 300.00 € | J13: =INDEX(BüroPlan[],MATCH(INDEX(BüroAbweichungen[],ROW()-ROW(BüroAbweichungen[[#Headers],[Aug]]),1),INDEX(BüroPlan[],,1),0),MATCH(BüroAbweichungen[[#Headers],[Aug]],BüroPlan[#Headers],0))-INDEX(BüroTatsächlich[],MATCH(INDEX(BüroAbweichungen[],ROW()-ROW(BüroAbweichungen[[#Headers],[Aug]]),1),INDEX(BüroPlan[],,1),0),MATCH(BüroAbweichungen[[#Headers],[Aug]],BüroTatsächlich[#Headers],0)) -> 300.00 € | K13: =INDEX(BüroPlan[],MATCH(INDEX(BüroAbweichungen[],ROW()-ROW(BüroAbweichungen[[#Headers],[Sep]]),1),INDEX(BüroPlan[],,1),0),MATCH(BüroAbweichungen[[#Headers],[Sep]],BüroPlan[#Headers],0))-INDEX(BüroTatsächlich[],MATCH(INDEX(BüroAbweichungen[],ROW()-ROW(BüroAbweichungen[[#Headers],[Sep]]),1),INDEX(BüroPlan[],,1),0),MATCH(BüroAbweichungen[[#Headers],[Sep]],BüroTatsächlich[#Headers],0)) -> 300.00 € | L13: =INDEX(BüroPlan[],MATCH(INDEX(BüroAbweichungen[],ROW()-ROW(BüroAbweichungen[[#Headers],[Okt]]),1),INDEX(BüroPlan[],,1),0),MATCH(BüroAbweichungen[[#Headers],[Okt]],BüroPlan[#Headers],0))-INDEX(BüroTatsächlich[],MATCH(INDEX(BüroAbweichungen[],ROW()-ROW(BüroAbweichungen[[#Headers],[Okt]]),1),INDEX(BüroPlan[],,1),0),MATCH(BüroAbweichungen[[#Headers],[Okt]],BüroTatsächlich[#Headers],0)) -> 300.00 € | M13: =INDEX(BüroPlan[],MATCH(INDEX(BüroAbweichungen[],ROW()-ROW(BüroAbweichungen[[#Headers],[Nov]]),1),INDEX(BüroPlan[],,1),0),MATCH(BüroAbweichungen[[#Headers],[Nov]],BüroPlan[#Headers],0))-INDEX(BüroTatsächlich[],MATCH(INDEX(BüroAbweichungen[],ROW()-ROW(BüroAbweichungen[[#Headers],[Nov]]),1),INDEX(BüroPlan[],,1),0),MATCH(BüroAbweichungen[[#Headers],[Nov]],BüroTatsächlich[#Headers],0)) -> 300.00 € | N13: =INDEX(BüroPlan[],MATCH(INDEX(BüroAbweichungen[],ROW()-ROW(BüroAbweichungen[[#Headers],[Dez]]),1),INDEX(BüroPlan[],,1),0),MATCH(BüroAbweichungen[[#Headers],[Dez]],BüroPlan[#Headers],0))-INDEX(BüroTatsächlich[],MATCH(INDEX(BüroAbweichungen[],ROW()-ROW(BüroAbweichungen[[#Headers],[Dez]]),1),INDEX(BüroPlan[],,1),0),MATCH(BüroAbweichungen[[#Headers],[Dez]],BüroTatsächlich[#Headers],0)) -> 300.00 € | O13: =SUM(BüroAbweichungen[[#This Row],[Jan]:[Dez]]) -> 1,871.00 €
B14: Wasser | C14: =INDEX(BüroPlan[],MATCH(INDEX(BüroAbweichungen[],ROW()-ROW(BüroAbweichungen[[#Headers],[Jan]]),1),INDEX(BüroPlan[],,1),0),MATCH(BüroAbweichungen[[#Headers],[Jan]],BüroPlan[#Headers],0))-INDEX(BüroTatsächlich[],MATCH(INDEX(BüroAbweichungen[],ROW()-ROW(BüroAbweichungen[[#Headers],[Jan]]),1),INDEX(BüroPlan[],,1),0),MATCH(BüroAbweichungen[[#Headers],[Jan]],BüroTatsächlich[#Headers],0)) -> 5.00 € | D14: =INDEX(BüroPlan[],MATCH(INDEX(BüroAbweichungen[],ROW()-ROW(BüroAbweichungen[[#Headers],[Feb]]),1),INDEX(BüroPlan[],,1),0),MATCH(BüroAbweichungen[[#Headers],[Feb]],BüroPlan[#Headers],0))-INDEX(BüroTatsächlich[],MATCH(INDEX(BüroAbweichungen[],ROW()-ROW(BüroAbweichungen[[#Headers],[Feb]]),1),INDEX(BüroPlan[],,1),0),MATCH(BüroAbweichungen[[#Headers],[Feb]],BüroTatsächlich[#Headers],0)) -> 7.00 € | E14: =INDEX(BüroPlan[],MATCH(INDEX(BüroAbweichungen[],ROW()-ROW(BüroAbweichungen[[#Headers],[Mrz]]),1),INDEX(BüroPlan[],,1),0),MATCH(BüroAbweichungen[[#Headers],[Mrz]],BüroPlan[#Headers],0))-INDEX(BüroTatsächlich[],MATCH(INDEX(BüroAbweichungen[],ROW()-ROW(BüroAbweichungen[[#Headers],[Mrz]]),1),INDEX(BüroPlan[],,1),0),MATCH(BüroAbweichungen[[#Headers],[Mrz]],BüroTatsächlich[#Headers],0)) -> 6.00 € | F14: =INDEX(BüroPlan[],MATCH(INDEX(BüroAbweichungen[],ROW()-ROW(BüroAbweichungen[[#Headers],[Apr]]),1),INDEX(BüroPlan[],,1),0),MATCH(BüroAbweichungen[[#Headers],[Apr]],BüroPlan[#Headers],0))-INDEX(BüroTatsächlich[],MATCH(INDEX(BüroAbweichungen[],ROW()-ROW(BüroAbweichungen[[#Headers],[Apr]]),1),INDEX(BüroPlan[],,1),0),MATCH(BüroAbweichungen[[#Headers],[Apr]],BüroTatsächlich[#Headers],0)) -> 4.00 € | G14: =INDEX(BüroPlan[],MATCH(INDEX(BüroAbweichungen[],ROW()-ROW(BüroAbweichungen[[#Headers],[Mai]]),1),INDEX(BüroPlan[],,1),0),MATCH(BüroAbweichungen[[#Headers],[Mai]],BüroPlan[#Headers],0))-INDEX(BüroTatsächlich[],MATCH(INDEX(BüroAbweichungen[],ROW()-ROW(BüroAbweichungen[[#Headers],[Mai]]),1),INDEX(BüroPlan[],,1),0),MATCH(BüroAbweichungen[[#Headers],[Mai]],BüroTatsächlich[#Headers],0)) -> 6.00 € | H14: =INDEX(BüroPlan[],MATCH(INDEX(BüroAbweichungen[],ROW()-ROW(BüroAbweichungen[[#Headers],[Jun]]),1),INDEX(BüroPlan[],,1),0),MATCH(BüroAbweichungen[[#Headers],[Jun]],BüroPlan[#Headers],0))-INDEX(BüroTatsächlich[],MATCH(INDEX(BüroAbweichungen[],ROW()-ROW(BüroAbweichungen[[#Headers],[Jun]]),1),INDEX(BüroPlan[],,1),0),MATCH(BüroAbweichungen[[#Headers],[Jun]],BüroTatsächlich[#Headers],0)) -> 4.00 € | I14: =INDEX(BüroPlan[],MATCH(INDEX(BüroAbweichungen[],ROW()-ROW(BüroAbweichungen[[#Headers],[Jul]]),1),INDEX(BüroPlan[],,1),0),MATCH(BüroAbweichungen[[#Headers],[Jul]],BüroPlan[#Headers],0))-INDEX(BüroTatsächlich[],MATCH(INDEX(BüroAbweichungen[],ROW()-ROW(BüroAbweichungen[[#Headers],[Jul]]),1),INDEX(BüroPlan[],,1),0),MATCH(BüroAbweichungen[[#Headers],[Jul]],BüroTatsächlich[#Headers],0)) -> 40.00 € | J14: =INDEX(BüroPlan[],MATCH(INDEX(BüroAbweichungen[],ROW()-ROW(BüroAbweichungen[[#Headers],[Aug]]),1),INDEX(BüroPlan[],,1),0),MATCH(BüroAbweichungen[[#Headers],[Aug]],BüroPlan[#Headers],0))-INDEX(BüroTatsächlich[],MATCH(INDEX(BüroAbweichungen[],ROW()-ROW(BüroAbweichungen[[#Headers],[Aug]]),1),INDEX(BüroPlan[],,1),0),MATCH(BüroAbweichungen[[#Headers],[Aug]],BüroTatsächlich[#Headers],0)) -> 40.00 € | K14: =INDEX(BüroPlan[],MATCH(INDEX(BüroAbweichungen[],ROW()-ROW(BüroAbweichungen[[#Headers],[Sep]]),1),INDEX(BüroPlan[],,1),0),MATCH(BüroAbweichungen[[#Headers],[Sep]],BüroPlan[#Headers],0))-INDEX(BüroTatsächlich[],MATCH(INDEX(BüroAbweichungen[],ROW()-ROW(BüroAbweichungen[[#Headers],[Sep]]),1),INDEX(BüroPlan[],,1),0),MATCH(BüroAbweichungen[[#Headers],[Sep]],BüroTatsächlich[#Headers],0)) -> 40.00 € | L14: =INDEX(BüroPlan[],MATCH(INDEX(BüroAbweichungen[],ROW()-ROW(BüroAbweichungen[[#Headers],[Okt]]),1),INDEX(BüroPlan[],,1),0),MATCH(BüroAbweichungen[[#Headers],[Okt]],BüroPlan[#Headers],0))-INDEX(BüroTatsächlich[],MATCH(INDEX(BüroAbweichungen[],ROW()-ROW(BüroAbweichungen[[#Headers],[Okt]]),1),INDEX(BüroPlan[],,1),0),MATCH(BüroAbweichungen[[#Headers],[Okt]],BüroTatsächlich[#Headers],0)) -> 40.00 € | M14: =INDEX(BüroPlan[],MATCH(INDEX(BüroAbweichungen[],ROW()-ROW(BüroAbweichungen[[#Headers],[Nov]]),1),INDEX(BüroPlan[],,1),0),MATCH(BüroAbweichungen[[#Headers],[Nov]],BüroPlan[#Headers],0))-INDEX(BüroTatsächlich[],MATCH(INDEX(BüroAbweichungen[],ROW()-ROW(BüroAbweichungen[[#Headers],[Nov]]),1),INDEX(BüroPlan[],,1),0),MATCH(BüroAbweichungen[[#Headers],[Nov]],BüroTatsächlich[#Headers],0)) -> 40.00 € | N14: =INDEX(BüroPlan[],MATCH(INDEX(BüroAbweichungen[],ROW()-ROW(BüroAbweichungen[[#Headers],[Dez]]),1),INDEX(BüroPlan[],,1),0),MATCH(BüroAbweichungen[[#Headers],[Dez]],BüroPlan[#Headers],0))-INDEX(BüroTatsächlich[],MATCH(INDEX(BüroAbweichungen[],ROW()-ROW(BüroAbweichungen[[#Headers],[Dez]]),1),INDEX(BüroPlan[],,1),0),MATCH(BüroAbweichungen[[#Headers],[Dez]],BüroTatsächlich[#Headers],0)) -> 40.00 € | O14: =SUM(BüroAbweichungen[[#This Row],[Jan]:[Dez]]) -> 272.00 €
B15: Telefon | C15: =INDEX(BüroPlan[],MATCH(INDEX(BüroAbweichungen[],ROW()-ROW(BüroAbweichungen[[#Headers],[Jan]]),1),INDEX(BüroPlan[],,1),0),MATCH(BüroAbweichungen[[#Headers],[Jan]],BüroPlan[#Headers],0))-INDEX(BüroTatsächlich[],MATCH(INDEX(BüroAbweichungen[],ROW()-ROW(BüroAbweichungen[[#Headers],[Jan]]),1),INDEX(BüroPlan[],,1),0),MATCH(BüroAbweichungen[[#Headers],[Jan]],BüroTatsächlich[#Headers],0)) -> 26.00 € | D15: =INDEX(BüroPlan[],MATCH(INDEX(BüroAbweichungen[],ROW()-ROW(BüroAbweichungen[[#Headers],[Feb]]),1),INDEX(BüroPlan[],,1),0),MATCH(BüroAbweichungen[[#Headers],[Feb]],BüroPlan[#Headers],0))-INDEX(BüroTatsächlich[],MATCH(INDEX(BüroAbweichungen[],ROW()-ROW(BüroAbweichungen[[#Headers],[Feb]]),1),INDEX(BüroPlan[],,1),0),MATCH(BüroAbweichungen[[#Headers],[Feb]],BüroTatsächlich[#Headers],0)) -> 15.00 € | E15: =INDEX(BüroPlan[],MATCH(INDEX(BüroAbweichungen[],ROW()-ROW(BüroAbweichungen[[#Headers],[Mrz]]),1),INDEX(BüroPlan[],,1),0),MATCH(BüroAbweichungen[[#Headers],[Mrz]],BüroPlan[#Headers],0))-INDEX(BüroTatsächlich[],MATCH(INDEX(BüroAbweichungen[],ROW()-ROW(BüroAbweichungen[[#Headers],[Mrz]]),1),INDEX(BüroPlan[],,1),0),MATCH(BüroAbweichungen[[#Headers],[Mrz]],BüroTatsächlich[#Headers],0)) -> -15.00 € | F15: =INDEX(BüroPlan[],MATCH(INDEX(BüroAbweichungen[],ROW()-ROW(BüroAbweichungen[[#Headers],[Apr]]),1),INDEX(BüroPlan[],,1),0),MATCH(BüroAbweichungen[[#Headers],[Apr]],BüroPlan[#Headers],0))-INDEX(BüroTatsächlich[],MATCH(INDEX(BüroAbweichungen[],ROW()-ROW(BüroAbweichungen[[#Headers],[Apr]]),1),INDEX(BüroPlan[],,1),0),MATCH(BüroAbweichungen[[#Headers],[Apr]],BüroTatsächlich[#Headers],0)) -> 5.00 € | G15: =INDEX(BüroPlan[],MATCH(INDEX(BüroAbweichungen[],ROW()-ROW(BüroAbweichungen[[#Headers],[Mai]]),1),INDEX(BüroPlan[],,1),0),MATCH(BüroAbweichungen[[#Headers],[Mai]],BüroPlan[#Headers],0))-INDEX(BüroTatsächlich[],MATCH(INDEX(BüroAbweichungen[],ROW()-ROW(BüroAbweichungen[[#Headers],[Mai]]),1),INDEX(BüroPlan[],,1),0),MATCH(BüroAbweichungen[[#Headers],[Mai]],BüroTatsächlich[#Headers],0)) -> 5.00 € | H15: =INDEX(BüroPlan[],MATCH(INDEX(BüroAbweichungen[],ROW()-ROW(BüroAbweichungen[[#Headers],[Jun]]),1),INDEX(BüroPlan[],,1),0),MATCH(BüroAbweichungen[[#Headers],[Jun]],BüroPlan[#Headers],0))-INDEX(BüroTatsächlich[],MATCH(INDEX(BüroAbweichungen[],ROW()-ROW(BüroAbweichungen[[#Headers],[Jun]]),1),INDEX(BüroPlan[],,1),0),MATCH(BüroAbweichungen[[#Headers],[Jun]],BüroTatsächlich[#Headers],0)) -> 30.00 € | I15: =INDEX(BüroPlan[],MATCH(INDEX(BüroAbweichungen[],ROW()-ROW(BüroAbweichungen[[#Headers],[Jul]]),1),INDEX(BüroPlan[],,1),0),MATCH(BüroAbweichungen[[#Headers],[Jul]],BüroPlan[#Headers],0))-INDEX(BüroTatsächlich[],MATCH(INDEX(BüroAbweichungen[],ROW()-ROW(BüroAbweichungen[[#Headers],[Jul]]),1),INDEX(BüroPlan[],,1),0),MATCH(BüroAbweichungen[[#Headers],[Jul]],BüroTatsächlich[#Headers],0)) -> 250.00 € | J15: =INDEX(BüroPlan[],MATCH(INDEX(BüroAbweichungen[],ROW()-ROW(BüroAbweichungen[[#Headers],[Aug]]),1),INDEX(BüroPlan[],,1),0),MATCH(BüroAbweichungen[[#Headers],[Aug]],BüroPlan[#Headers],0))-INDEX(BüroTatsächlich[],MATCH(INDEX(BüroAbweichungen[],ROW()-ROW(BüroAbweichungen[[#Headers],[Aug]]),1),INDEX(BüroPlan[],,1),0),MATCH(BüroAbweichungen[[#Headers],[Aug]],BüroTatsächlich[#Headers],0)) -> 250.00 € | K15: =INDEX(BüroPlan[],MATCH(INDEX(BüroAbweichungen[],ROW()-ROW(BüroAbweichungen[[#Headers],[Sep]]),1),INDEX(BüroPlan[],,1),0),MATCH(BüroAbweichungen[[#Headers],[Sep]],BüroPlan[#Headers],0))-INDEX(BüroTatsächlich[],MATCH(INDEX(BüroAbweichungen[],ROW()-ROW(BüroAbweichungen[[#Headers],[Sep]]),1),INDEX(BüroPlan[],,1),0),MATCH(BüroAbweichungen[[#Headers],[Sep]],BüroTatsächlich[#Headers],0)) -> 250.00 € | L15: =INDEX(BüroPlan[],MATCH(INDEX(BüroAbweichungen[],ROW()-ROW(BüroAbweichungen[[#Headers],[Okt]]),1),INDEX(BüroPlan[],,1),0),MATCH(BüroAbweichungen[[#Headers],[Okt]],BüroPlan[#Headers],0))-INDEX(BüroTatsächlich[],MATCH(INDEX(BüroAbweichungen[],ROW()-ROW(BüroAbweichungen[[#Headers],[Okt]]),1),INDEX(BüroPlan[],,1),0),MATCH(BüroAbweichungen[[#Headers],[Okt]],BüroTatsächlich[#Headers],0)) -> 250.00 € | M15: =INDEX(BüroPlan[],MATCH(INDEX(BüroAbweichungen[],ROW()-ROW(BüroAbweichungen[[#Headers],[Nov]]),1),INDEX(BüroPlan[],,1),0),MATCH(BüroAbweichungen[[#Headers],[Nov]],BüroPlan[#Headers],0))-INDEX(BüroTatsächlich[],MATCH(INDEX(BüroAbweichungen[],ROW()-ROW(BüroAbweichungen[[#Headers],[Nov]]),1),INDEX(BüroPlan[],,1),0),MATCH(BüroAbweichungen[[#Headers],[Nov]],BüroTatsächlich[#Headers],0)) -> 250.00 € | N15: =INDEX(BüroPlan[],MATCH(INDEX(BüroAbweichungen[],ROW()-ROW(BüroAbweichungen[[#Headers],[Dez]]),1),INDEX(BüroPlan[],,1),0),MATCH(BüroAbweichungen[[#Headers],[Dez]],BüroPlan[#Headers],0))-INDEX(BüroTatsächlich[],MATCH(INDEX(BüroAbweichungen[],ROW()-ROW(BüroAbweichungen[[#Headers],[Dez]]),1),INDEX(BüroPlan[],,1),0),MATCH(BüroAbweichungen[[#Headers],[Dez]],BüroTatsächlich[#Headers],0)) -> 250.00 € | O15: =SUM(BüroAbweichungen[[#This Row],[Jan]:[Dez]]) -> 1,566.00 €
B16: Internetzugang | C16: =INDEX(BüroPlan[],MATCH(INDEX(BüroAbweichungen[],ROW()-ROW(BüroAbweichungen[[#Headers],[Jan]]),1),INDEX(BüroPlan[],,1),0),MATCH(BüroAbweichungen[[#Headers],[Jan]],BüroPlan[#Headers],0))-INDEX(BüroTatsächlich[],MATCH(INDEX(BüroAbweichungen[],ROW()-ROW(BüroAbweichungen[[#Headers],[Jan]]),1),INDEX(BüroPlan[],,1),0),MATCH(BüroAbweichungen[[#Headers],[Jan]],BüroTatsächlich[#Headers],0)) -> 0.00 € | D16: =INDEX(BüroPlan[],MATCH(INDEX(BüroAbweichungen[],ROW()-ROW(BüroAbweichungen[[#Headers],[Feb]]),1),INDEX(BüroPlan[],,1),0),MATCH(BüroAbweichungen[[#Headers],[Feb]],BüroPlan[#Headers],0))-INDEX(BüroTatsächlich[],MATCH(INDEX(BüroAbweichungen[],ROW()-ROW(BüroAbweichungen[[#Headers],[Feb]]),1),INDEX(BüroPlan[],,1),0),MATCH(BüroAbweichungen[[#Headers],[Feb]],BüroTatsächlich[#Headers],0)) -> 0.00 € | E16: =INDEX(BüroPlan[],MATCH(INDEX(BüroAbweichungen[],ROW()-ROW(BüroAbweichungen[[#Headers],[Mrz]]),1),INDEX(BüroPlan[],,1),0),MATCH(BüroAbweichungen[[#Headers],[Mrz]],BüroPlan[#Headers],0))-INDEX(BüroTatsächlich[],MATCH(INDEX(BüroAbweichungen[],ROW()-ROW(BüroAbweichungen[[#Headers],[Mrz]]),1),INDEX(BüroPlan[],,1),0),MATCH(BüroAbweichungen[[#Headers],[Mrz]],BüroTatsächlich[#Headers],0)) -> 0.00 € | F16: =INDEX(BüroPlan[],MATCH(INDEX(BüroAbweichungen[],ROW()-ROW(BüroAbweichungen[[#Headers],[Apr]]),1),INDEX(BüroPlan[],,1),0),MATCH(BüroAbweichungen[[#Headers],[Apr]],BüroPlan[#Headers],0))-INDEX(BüroTatsächlich[],MATCH(INDEX(BüroAbweichungen[],ROW()-ROW(BüroAbweichungen[[#Headers],[Apr]]),1),INDEX(BüroPlan[],,1),0),MATCH(BüroAbweichungen[[#Headers],[Apr]],BüroTatsächlich[#Headers],0)) -> 0.00 € | G16: =INDEX(BüroPlan[],MATCH(INDEX(BüroAbweichungen[],ROW()-ROW(BüroAbweichungen[[#Headers],[Mai]]),1),INDEX(BüroPlan[],,1),0),MATCH(BüroAbweichungen[[#Headers],[Mai]],BüroPlan[#Headers],0))-INDEX(BüroTatsächlich[],MATCH(INDEX(BüroAbweichungen[],ROW()-ROW(BüroAbweichungen[[#Headers],[Mai]]),1),INDEX(BüroPlan[],,1),0),MATCH(BüroAbweichungen[[#Headers],[Mai]],BüroTatsächlich[#Headers],0)) -> 0.00 € | H16: =INDEX(BüroPlan[],MATCH(INDEX(BüroAbweichungen[],ROW()-ROW(BüroAbweichungen[[#Headers],[Jun]]),1),INDEX(BüroPlan[],,1),0),MATCH(BüroAbweichungen[[#Headers],[Jun]],BüroPlan[#Headers],0))-INDEX(BüroTatsächlich[],MATCH(INDEX(BüroAbweichungen[],ROW()-ROW(BüroAbweichungen[[#Headers],[Jun]]),1),INDEX(BüroPlan[],,1),0),MATCH(BüroAbweichungen[[#Headers],[Jun]],BüroTatsächlich[#Headers],0)) -> 0.00 € | I16: =INDEX(BüroPlan[],MATCH(INDEX(BüroAbweichungen[],ROW()-ROW(BüroAbweichungen[[#Headers],[Jul]]),1),INDEX(BüroPlan[],,1),0),MATCH(BüroAbweichungen[[#Headers],[Jul]],BüroPlan[#Headers],0))-INDEX(BüroTatsächlich[],MATCH(INDEX(BüroAbweichungen[],ROW()-ROW(BüroAbweichungen[[#Headers],[Jul]]),1),INDEX(BüroPlan[],,1),0),MATCH(BüroAbweichungen[[#Headers],[Jul]],BüroTatsächlich[#Headers],0)) -> 180.00 € | J16: =INDEX(BüroPlan[],MATCH(INDEX(BüroAbweichungen[],ROW()-ROW(BüroAbweichungen[[#Headers],[Aug]]),1),INDEX(BüroPlan[],,1),0),MATCH(BüroAbweichungen[[#Headers],[Aug]],BüroPlan[#Headers],0))-INDEX(BüroTatsächlich[],MATCH(INDEX(BüroAbweichungen[],ROW()-ROW(BüroAbweichungen[[#Headers],[Aug]]),1),INDEX(BüroPlan[],,1),0),MATCH(BüroAbweichungen[[#Headers],[Aug]],BüroTatsächlich[#Headers],0)) -> 180.00 € | K16: =INDEX(BüroPlan[],MATCH(INDEX(BüroAbweichungen[],ROW()-ROW(BüroAbweichungen[[#Headers],[Sep]]),1),INDEX(BüroPlan[],,1),0),MATCH(BüroAbweichungen[[#Headers],[Sep]],BüroPlan[#Headers],0))-INDEX(BüroTatsächlich[],MATCH(INDEX(BüroAbweichungen[],ROW()-ROW(BüroAbweichungen[[#Headers],[Sep]]),1),INDEX(BüroPlan[],,1),0),MATCH(BüroAbweichungen[[#Headers],[Sep]],BüroTatsächlich[#Headers],0)) -> 180.00 € | L16: =INDEX(BüroPlan[],MATCH(INDEX(BüroAbweichungen[],ROW()-ROW(BüroAbweichungen[[#Headers],[Okt]]),1),INDEX(BüroPlan[],,1),0),MATCH(BüroAbweichungen[[#Headers],[Okt]],BüroPlan[#Headers],0))-INDEX(BüroTatsächlich[],MATCH(INDEX(BüroAbweichungen[],ROW()-ROW(BüroAbweichungen[[#Headers],[Okt]]),1),INDEX(BüroPlan[],,1),0),MATCH(BüroAbweichungen[[#Headers],[Okt]],BüroTatsächlich[#Headers],0)) -> 180.00 € | M16: =INDEX(BüroPlan[],MATCH(INDEX(BüroAbweichungen[],ROW()-ROW(BüroAbweichungen[[#Headers],[Nov]]),1),INDEX(BüroPlan[],,1),0),MATCH(BüroAbweichungen[[#Headers],[Nov]],BüroPlan[#Headers],0))-INDEX(BüroTatsächlich[],MATCH(INDEX(BüroAbweichungen[],ROW()-ROW(BüroAbweichungen[[#Headers],[Nov]]),1),INDEX(BüroPlan[],,1),0),MATCH(BüroAbweichungen[[#Headers],[Nov]],BüroTatsächlich[#Headers],0)) -> 180.00 € | N16: =INDEX(BüroPlan[],MATCH(INDEX(BüroAbweichungen[],ROW()-ROW(BüroAbweichungen[[#Headers],[Dez]]),1),INDEX(BüroPlan[],,1),0),MATCH(BüroAbweichungen[[#Headers],[Dez]],BüroPlan[#Headers],0))-INDEX(BüroTatsächlich[],MATCH(INDEX(BüroAbweichungen[],ROW()-ROW(BüroAbweichungen[[#Headers],[Dez]]),1),INDEX(BüroPlan[],,1),0),MATCH(BüroAbweichungen[[#Headers],[Dez]],BüroTatsächlich[#Headers],0)) -> 180.00 € | O16: =SUM(BüroAbweichungen[[#This Row],[Jan]:[Dez]]) -> 1,080.00 €
B17: Büromaterial | C17: =INDEX(BüroPlan[],MATCH(INDEX(BüroAbweichungen[],ROW()-ROW(BüroAbweichungen[[#Headers],[Jan]]),1),INDEX(BüroPlan[],,1),0),MATCH(BüroAbweichungen[[#Headers],[Jan]],BüroPlan[#Headers],0))-INDEX(BüroTatsächlich[],MATCH(INDEX(BüroAbweichungen[],ROW()-ROW(BüroAbweichungen[[#Headers],[Jan]]),1),INDEX(BüroPlan[],,1),0),MATCH(BüroAbweichungen[[#Headers],[Jan]],BüroTatsächlich[#Headers],0)) -> -56.00 € | D17: =INDEX(BüroPlan[],MATCH(INDEX(BüroAbweichungen[],ROW()-ROW(BüroAbweichungen[[#Headers],[Feb]]),1),INDEX(BüroPlan[],,1),0),MATCH(BüroAbweichungen[[#Headers],[Feb]],BüroPlan[#Headers],0))-INDEX(BüroTatsächlich[],MATCH(INDEX(BüroAbweichungen[],ROW()-ROW(BüroAbweichungen[[#Headers],[Feb]]),1),INDEX(BüroPlan[],,1),0),MATCH(BüroAbweichungen[[#Headers],[Feb]],BüroTatsächlich[#Headers],0)) -> 58.00 € | E17: =INDEX(BüroPlan[],MATCH(INDEX(BüroAbweichungen[],ROW()-ROW(BüroAbweichungen[[#Headers],[Mrz]]),1),INDEX(BüroPlan[],,1),0),MATCH(BüroAbweichungen[[#Headers],[Mrz]],BüroPlan[#Headers],0))-INDEX(BüroTatsächlich[],MATCH(INDEX(BüroAbweichungen[],ROW()-ROW(BüroAbweichungen[[#Headers],[Mrz]]),1),INDEX(BüroPlan[],,1),0),MATCH(BüroAbweichungen[[#Headers],[Mrz]],BüroTatsächlich[#Headers],0)) -> 40.00 € | F17: =INDEX(BüroPlan[],MATCH(INDEX(BüroAbweichungen[],ROW()-ROW(BüroAbweichungen[[#Headers],[Apr]]),1),INDEX(BüroPlan[],,1),0),MATCH(BüroAbweichungen[[#Headers],[Apr]],BüroPlan[#Headers],0))-INDEX(BüroTatsächlich[],MATCH(INDEX(BüroAbweichungen[],ROW()-ROW(BüroAbweichungen[[#Headers],[Apr]]),1),INDEX(BüroPlan[],,1),0),MATCH(BüroAbweichungen[[#Headers],[Apr]],BüroTatsächlich[#Headers],0)) -> -21.00 € | G17: =INDEX(BüroPlan[],MATCH(INDEX(BüroAbweichungen[],ROW()-ROW(BüroAbweichungen[[#Headers],[Mai]]),1),INDEX(BüroPlan[],,1),0),MATCH(BüroAbweichungen[[#Headers],[Mai]],BüroPlan[#Headers],0))-INDEX(BüroTatsächlich[],MATCH(INDEX(BüroAbweichungen[],ROW()-ROW(BüroAbweichungen[[#Headers],[Mai]]),1),INDEX(BüroPlan[],,1),0),MATCH(BüroAbweichungen[[#Headers],[Mai]],BüroTatsächlich[#Headers],0)) -> -56.00 € | H17: =INDEX(BüroPlan[],MATCH(INDEX(BüroAbweichungen[],ROW()-ROW(BüroAbweichungen[[#Headers],[Jun]]),1),INDEX(BüroPlan[],,1),0),MATCH(BüroAbweichungen[[#Headers],[Jun]],BüroPlan[#Headers],0))-INDEX(BüroTatsächlich[],MATCH(INDEX(BüroAbweichungen[],ROW()-ROW(BüroAbweichungen[[#Headers],[Jun]]),1),INDEX(BüroPlan[],,1),0),MATCH(BüroAbweichungen[[#Headers],[Jun]],BüroTatsächlich[#Headers],0)) -> -40.00 € | I17: =INDEX(BüroPlan[],MATCH(INDEX(BüroAbweichungen[],ROW()-ROW(BüroAbweichungen[[#Headers],[Jul]]),1),INDEX(BüroPlan[],,1),0),MATCH(BüroAbweichungen[[#Headers],[Jul]],BüroPlan[#Headers],0))-INDEX(BüroTatsächlich[],MATCH(INDEX(BüroAbweichungen[],ROW()-ROW(BüroAbweichungen[[#Headers],[Jul]]),1),INDEX(BüroPlan[],,1),0),MATCH(BüroAbweichungen[[#Headers],[Jul]],BüroTatsächlich[#Headers],0)) -> 200.00 € | J17: =INDEX(BüroPlan[],MATCH(INDEX(BüroAbweichungen[],ROW()-ROW(BüroAbweichungen[[#Headers],[Aug]]),1),INDEX(BüroPlan[],,1),0),MATCH(BüroAbweichungen[[#Headers],[Aug]],BüroPlan[#Headers],0))-INDEX(BüroTatsächlich[],MATCH(INDEX(BüroAbweichungen[],ROW()-ROW(BüroAbweichungen[[#Headers],[Aug]]),1),INDEX(BüroPlan[],,1),0),MATCH(BüroAbweichungen[[#Headers],[Aug]],BüroTatsächlich[#Headers],0)) -> 200.00 € | K17: =INDEX(BüroPlan[],MATCH(INDEX(BüroAbweichungen[],ROW()-ROW(BüroAbweichungen[[#Headers],[Sep]]),1),INDEX(BüroPlan[],,1),0),MATCH(BüroAbweichungen[[#Headers],[Sep]],BüroPlan[#Headers],0))-INDEX(BüroTatsächlich[],MATCH(INDEX(BüroAbweichungen[],ROW()-ROW(BüroAbweichungen[[#Headers],[Sep]]),1),INDEX(BüroPlan[],,1),0),MATCH(BüroAbweichungen[[#Headers],[Sep]],BüroTatsächlich[#Headers],0)) -> 200.00 € | L17: =INDEX(BüroPlan[],MATCH(INDEX(BüroAbweichungen[],ROW()-ROW(BüroAbweichungen[[#Headers],[Okt]]),1),INDEX(BüroPlan[],,1),0),MATCH(BüroAbweichungen[[#Headers],[Okt]],BüroPlan[#Headers],0))-INDEX(BüroTatsächlich[],MATCH(INDEX(BüroAbweichungen[],ROW()-ROW(BüroAbweichungen[[#Headers],[Okt]]),1),INDEX(BüroPlan[],,1),0),MATCH(BüroAbweichungen[[#Headers],[Okt]],BüroTatsächlich[#Headers],0)) -> 200.00 € | M17: =INDEX(BüroPlan[],MATCH(INDEX(BüroAbweichungen[],ROW()-ROW(BüroAbweichungen[[#Headers],[Nov]]),1),INDEX(BüroPlan[],,1),0),MATCH(BüroAbweichungen[[#Headers],[Nov]],BüroPlan[#Headers],0))-INDEX(BüroTatsächlich[],MATCH(INDEX(BüroAbweichungen[],ROW()-ROW(BüroAbweichungen[[#Headers],[Nov]]),1),INDEX(BüroPlan[],,1),0),MATCH(BüroAbweichungen[[#Headers],[Nov]],BüroTatsächlich[#Headers],0)) -> 200.00 € | N17: =INDEX(BüroPlan[],MATCH(INDEX(BüroAbweichungen[],ROW()-ROW(BüroAbweichungen[[#Headers],[Dez]]),1),INDEX(BüroPlan[],,1),0),MATCH(BüroAbweichungen[[#Headers],[Dez]],BüroPlan[#Headers],0))-INDEX(BüroTatsächlich[],MATCH(INDEX(BüroAbweichungen[],ROW()-ROW(BüroAbweichungen[[#Headers],[Dez]]),1),INDEX(BüroPlan[],,1),0),MATCH(BüroAbweichungen[[#Headers],[Dez]],BüroTatsächlich[#Headers],0)) -> 200.00 € | O17: =SUM(BüroAbweichungen[[#This Row],[Jan]:[Dez]]) -> 1,125.00 €
B18: Sicherheit | C18: =INDEX(BüroPlan[],MATCH(INDEX(BüroAbweichungen[],ROW()-ROW(BüroAbweichungen[[#Headers],[Jan]]),1),INDEX(BüroPlan[],,1),0),MATCH(BüroAbweichungen[[#Headers],[Jan]],BüroPlan[#Headers],0))-INDEX(BüroTatsächlich[],MATCH(INDEX(BüroAbweichungen[],ROW()-ROW(BüroAbweichungen[[#Headers],[Jan]]),1),INDEX(BüroPlan[],,1),0),MATCH(BüroAbweichungen[[#Headers],[Jan]],BüroTatsächlich[#Headers],0)) -> 0.00 € | D18: =INDEX(BüroPlan[],MATCH(INDEX(BüroAbweichungen[],ROW()-ROW(BüroAbweichungen[[#Headers],[Feb]]),1),INDEX(BüroPlan[],,1),0),MATCH(BüroAbweichungen[[#Headers],[Feb]],BüroPlan[#Headers],0))-INDEX(BüroTatsächlich[],MATCH(INDEX(BüroAbweichungen[],ROW()-ROW(BüroAbweichungen[[#Headers],[Feb]]),1),INDEX(BüroPlan[],,1),0),MATCH(BüroAbweichungen[[#Headers],[Feb]],BüroTatsächlich[#Headers],0)) -> 0.00 € | E18: =INDEX(BüroPlan[],MATCH(INDEX(BüroAbweichungen[],ROW()-ROW(BüroAbweichungen[[#Headers],[Mrz]]),1),INDEX(BüroPlan[],,1),0),MATCH(BüroAbweichungen[[#Headers],[Mrz]],BüroPlan[#Headers],0))-INDEX(BüroTatsächlich[],MATCH(INDEX(BüroAbweichungen[],ROW()-ROW(BüroAbweichungen[[#Headers],[Mrz]]),1),INDEX(BüroPlan[],,1),0),MATCH(BüroAbweichungen[[#Headers],[Mrz]],BüroTatsächlich[#Headers],0)) -> 0.00 € | F18: =INDEX(BüroPlan[],MATCH(INDEX(BüroAbweichungen[],ROW()-ROW(BüroAbweichungen[[#Headers],[Apr]]),1),INDEX(BüroPlan[],,1),0),MATCH(BüroAbweichungen[[#Headers],[Apr]],BüroPlan[#Headers],0))-INDEX(BüroTatsächlich[],MATCH(INDEX(BüroAbweichungen[],ROW()-ROW(BüroAbweichungen[[#Headers],[Apr]]),1),INDEX(BüroPlan[],,1),0),MATCH(BüroAbweichungen[[#Headers],[Apr]],BüroTatsächlich[#Headers],0)) -> 0.00 € | G18: =INDEX(BüroPlan[],MATCH(INDEX(BüroAbweichungen[],ROW()-ROW(BüroAbweichungen[[#Headers],[Mai]]),1),INDEX(BüroPlan[],,1),0),MATCH(BüroAbweichungen[[#Headers],[Mai]],BüroPlan[#Headers],0))-INDEX(BüroTatsächlich[],MATCH(INDEX(BüroAbweichungen[],ROW()-ROW(BüroAbweichungen[[#Headers],[Mai]]),1),INDEX(BüroPlan[],,1),0),MATCH(BüroAbweichungen[[#Headers],[Mai]],BüroTatsächlich[#Headers],0)) -> 0.00 € | H18: =INDEX(BüroPlan[],MATCH(INDEX(BüroAbweichungen[],ROW()-ROW(BüroAbweichungen[[#Headers],[Jun]]),1),INDEX(BüroPlan[],,1),0),MATCH(BüroAbweichungen[[#Headers],[Jun]],BüroPlan[#Headers],0))-INDEX(BüroTatsächlich[],MATCH(INDEX(BüroAbweichungen[],ROW()-ROW(BüroAbweichungen[[#Headers],[Jun]]),1),INDEX(BüroPlan[],,1),0),MATCH(BüroAbweichungen[[#Headers],[Jun]],BüroTatsächlich[#Headers],0)) -> 0.00 € | I18: =INDEX(BüroPlan[],MATCH(INDEX(BüroAbweichungen[],ROW()-ROW(BüroAbweichungen[[#Headers],[Jul]]),1),INDEX(BüroPlan[],,1),0),MATCH(BüroAbweichungen[[#Headers],[Jul]],BüroPlan[#Headers],0))-INDEX(BüroTatsächlich[],MATCH(INDEX(BüroAbweichungen[],ROW()-ROW(BüroAbweichungen[[#Headers],[Jul]]),1),INDEX(BüroPlan[],,1),0),MATCH(BüroAbweichungen[[#Headers],[Jul]],BüroTatsächlich[#Headers],0)) -> 600.00 € | J18: =INDEX(BüroPlan[],MATCH(INDEX(BüroAbweichungen[],ROW()-ROW(BüroAbweichungen[[#Headers],[Aug]]),1),INDEX(BüroPlan[],,1),0),MATCH(BüroAbweichungen[[#Headers],[Aug]],BüroPlan[#Headers],0))-INDEX(BüroTatsächlich[],MATCH(INDEX(BüroAbweichungen[],ROW()-ROW(BüroAbweichungen[[#Headers],[Aug]]),1),INDEX(BüroPlan[],,1),0),MATCH(BüroAbweichungen[[#Headers],[Aug]],BüroTatsächlich[#Headers],0)) -> 600.00 € | K18: =INDEX(BüroPlan[],MATCH(INDEX(BüroAbweichungen[],ROW()-ROW(BüroAbweichungen[[#Headers],[Sep]]),1),INDEX(BüroPlan[],,1),0),MATCH(BüroAbweichungen[[#Headers],[Sep]],BüroPlan[#Headers],0))-INDEX(BüroTatsächlich[],MATCH(INDEX(BüroAbweichungen[],ROW()-ROW(BüroAbweichungen[[#Headers],[Sep]]),1),INDEX(BüroPlan[],,1),0),MATCH(BüroAbweichungen[[#Headers],[Sep]],BüroTatsächlich[#Headers],0)) -> 600.00 € | L18: =INDEX(BüroPlan[],MATCH(INDEX(BüroAbweichungen[],ROW()-ROW(BüroAbweichungen[[#Headers],[Okt]]),1),INDEX(BüroPlan[],,1),0),MATCH(BüroAbweichungen[[#Headers],[Okt]],BüroPlan[#Headers],0))-INDEX(BüroTatsächlich[],MATCH(INDEX(BüroAbweichungen[],ROW()-ROW(BüroAbweichungen[[#Headers],[Okt]]),1),INDEX(BüroPlan[],,1),0),MATCH(BüroAbweichungen[[#Headers],[Okt]],BüroTatsächlich[#Headers],0)) -> 600.00 € | M18: =INDEX(BüroPlan[],MATCH(INDEX(BüroAbweichungen[],ROW()-ROW(BüroAbweichungen[[#Headers],[Nov]]),1),INDEX(BüroPlan[],,1),0),MATCH(BüroAbweichungen[[#Headers],[Nov]],BüroPlan[#Headers],0))-INDEX(BüroTatsächlich[],MATCH(INDEX(BüroAbweichungen[],ROW()-ROW(BüroAbweichungen[[#Headers],[Nov]]),1),INDEX(BüroPlan[],,1),0),MATCH(BüroAbweichungen[[#Headers],[Nov]],BüroTatsächlich[#Headers],0)) -> 600.00 € | N18: =INDEX(BüroPlan[],MATCH(INDEX(BüroAbweichungen[],ROW()-ROW(BüroAbweichungen[[#Headers],[Dez]]),1),INDEX(BüroPlan[],,1),0),MATCH(BüroAbweichungen[[#Headers],[Dez]],BüroPlan[#Headers],0))-INDEX(BüroTatsächlich[],MATCH(INDEX(BüroAbweichungen[],ROW()-ROW(BüroAbweichungen[[#Headers],[Dez]]),1),INDEX(BüroPlan[],,1),0),MATCH(BüroAbweichungen[[#Headers],[Dez]],BüroTatsächlich[#Headers],0)) -> 600.00 € | O18: =SUM(BüroAbweichungen[[#This Row],[Jan]:[Dez]]) -> 3,600.00 €
B19: Zwischensumme | C19: =SUBTOTAL(109,BüroAbweichungen[Jan]) -> -17.00 € | D19: =SUBTOTAL(109,BüroAbweichungen[Feb]) -> 72.00 € | E19: =SUBTOTAL(109,BüroAbweichungen[Mrz]) -> 78.00 € | F19: =SUBTOTAL(109,BüroAbweichungen[Apr]) -> -141.00 € | G19: =SUBTOTAL(109,BüroAbweichungen[Mai]) -> -38.00 € | H19: =SUBTOTAL(109,BüroAbweichungen[Jun]) -> 16.00 € | I19: =SUBTOTAL(109,BüroAbweichungen[Jul]) -> 11,470.00 € | J19: =SUBTOTAL(109,BüroAbweichungen[Aug]) -> 11,470.00 € | K19: =SUBTOTAL(109,BüroAbweichungen[Sep]) -> 11,470.00 € | L19: =SUBTOTAL(109,BüroAbweichungen[Okt]) -> 11,470.00 € | M19: =SUBTOTAL(109,BüroAbweichungen[Nov]) -> 11,770.00 € | N19: =SUBTOTAL(109,BüroAbweichungen[Dez]) -> 11,770.00 € | O19: =SUBTOTAL(109,BüroAbweichungen[JAHR]) -> 69,390.00 €
B21: Marketingkosten | C21: Jan | D21: Feb | E21: Mrz | F21: Apr | G21: Mai | H21: Jun | I21: Jul | J21: Aug | K21: Sep | L21: Okt | M21: Nov | N21: Dez | O21: JAHR
B22: Websitehosting | C22: =INDEX(MarketingPlan[],MATCH(INDEX(MarketingAbweichungen[],ROW()-ROW(MarketingAbweichungen[[#Headers],[Jan]]),1),INDEX(MarketingPlan[],,1),0),MATCH(MarketingAbweichungen[[#Headers],[Jan]],MarketingPlan[#Headers],0))-INDEX(MarketingTatsächlich[],MATCH(INDEX(MarketingAbweichungen[],ROW()-ROW(MarketingAbweichungen[[#Headers],[Jan]]),1),INDEX(MarketingPlan[],,1),0),MATCH(MarketingAbweichungen[[#Headers],[Jan]],MarketingTatsächlich[#Headers],0)) -> 0.00 € | D22: =INDEX(MarketingPlan[],MATCH(INDEX(MarketingAbweichungen[],ROW()-ROW(MarketingAbweichungen[[#Headers],[Feb]]),1),INDEX(MarketingPlan[],,1),0),MATCH(MarketingAbweichungen[[#Headers],[Feb]],MarketingPlan[#Headers],0))-INDEX(MarketingTatsächlich[],MATCH(INDEX(MarketingAbweichungen[],ROW()-ROW(MarketingAbweichungen[[#Headers],[Feb]]),1),INDEX(MarketingPlan[],,1),0),MATCH(MarketingAbweichungen[[#Headers],[Feb]],MarketingTatsächlich[#Headers],0)) -> 0.00 € | E22: =INDEX(MarketingPlan[],MATCH(INDEX(MarketingAbweichungen[],ROW()-ROW(MarketingAbweichungen[[#Headers],[Mrz]]),1),INDEX(MarketingPlan[],,1),0),MATCH(MarketingAbweichungen[[#Headers],[Mrz]],MarketingPlan[#Headers],0))-INDEX(MarketingTatsächlich[],MATCH(INDEX(MarketingAbweichungen[],ROW()-ROW(MarketingAbweichungen[[#Headers],[Mrz]]),1),INDEX(MarketingPlan[],,1),0),MATCH(MarketingAbweichungen[[#Headers],[Mrz]],MarketingTatsächlich[#Headers],0)) -> 0.00 € | F22: =INDEX(MarketingPlan[],MATCH(INDEX(MarketingAbweichungen[],ROW()-ROW(MarketingAbweichungen[[#Headers],[Apr]]),1),INDEX(MarketingPlan[],,1),0),MATCH(MarketingAbweichungen[[#Headers],[Apr]],MarketingPlan[#Headers],0))-INDEX(MarketingTatsächlich[],MATCH(INDEX(MarketingAbweichungen[],ROW()-ROW(MarketingAbweichungen[[#Headers],[Apr]]),1),INDEX(MarketingPlan[],,1),0),MATCH(MarketingAbweichungen[[#Headers],[Apr]],MarketingTatsächlich[#Headers],0)) -> 0.00 € | G22: =INDEX(MarketingPlan[],MATCH(INDEX(MarketingAbweichungen[],ROW()-ROW(MarketingAbweichungen[[#Headers],[Mai]]),1),INDEX(MarketingPlan[],,1),0),MATCH(MarketingAbweichungen[[#Headers],[Mai]],MarketingPlan[#Headers],0))-INDEX(MarketingTatsächlich[],MATCH(INDEX(MarketingAbweichungen[],ROW()-ROW(MarketingAbweichungen[[#Headers],[Mai]]),1),INDEX(MarketingPlan[],,1),0),MATCH(MarketingAbweichungen[[#Headers],[Mai]],MarketingTatsächlich[#Headers],0)) -> 0.00 € | H22: =INDEX(MarketingPlan[],MATCH(INDEX(MarketingAbweichungen[],ROW()-ROW(MarketingAbweichungen[[#Headers],[Jun]]),1),INDEX(MarketingPlan[],,1),0),MATCH(MarketingAbweichungen[[#Headers],[Jun]],MarketingPlan[#Headers],0))-INDEX(MarketingTatsächlich[],MATCH(INDEX(MarketingAbweichungen[],ROW()-ROW(MarketingAbweichungen[[#Headers],[Jun]]),1),INDEX(MarketingPlan[],,1),0),MATCH(MarketingAbweichungen[[#Headers],[Jun]],MarketingTatsächlich[#Headers],0)) -> 0.00 € | I22: =INDEX(MarketingPlan[],MATCH(INDEX(MarketingAbweichungen[],ROW()-ROW(MarketingAbweichungen[[#Headers],[Jul]]),1),INDEX(MarketingPlan[],,1),0),MATCH(MarketingAbweichungen[[#Headers],[Jul]],MarketingPlan[#Headers],0))-INDEX(MarketingTatsächlich[],MATCH(INDEX(MarketingAbweichungen[],ROW()-ROW(MarketingAbweichungen[[#Headers],[Jul]]),1),INDEX(MarketingPlan[],,1),0),MATCH(MarketingAbweichungen[[#Headers],[Jul]],MarketingTatsächlich[#Headers],0)) -> 500.00 € | J22: =INDEX(MarketingPlan[],MATCH(INDEX(MarketingAbweichungen[],ROW()-ROW(MarketingAbweichungen[[#Headers],[Aug]]),1),INDEX(MarketingPlan[],,1),0),MATCH(MarketingAbweichungen[[#Headers],[Aug]],MarketingPlan[#Headers],0))-INDEX(MarketingTatsächlich[],MATCH(INDEX(MarketingAbweichungen[],ROW()-ROW(MarketingAbweichungen[[#Headers],[Aug]]),1),INDEX(MarketingPlan[],,1),0),MATCH(MarketingAbweichungen[[#Headers],[Aug]],MarketingTatsächlich[#Headers],0)) -> 500.00 € | K22: =INDEX(MarketingPlan[],MATCH(INDEX(MarketingAbweichungen[],ROW()-ROW(MarketingAbweichungen[[#Headers],[Sep]]),1),INDEX(MarketingPlan[],,1),0),MATCH(MarketingAbweichungen[[#Headers],[Sep]],MarketingPlan[#Headers],0))-INDEX(MarketingTatsächlich[],MATCH(INDEX(MarketingAbweichungen[],ROW()-ROW(MarketingAbweichungen[[#Headers],[Sep]]),1),INDEX(MarketingPlan[],,1),0),MATCH(MarketingAbweichungen[[#Headers],[Sep]],MarketingTatsächlich[#Headers],0)) -> 500.00 € | L22: =INDEX(MarketingPlan[],MATCH(INDEX(MarketingAbweichungen[],ROW()-ROW(MarketingAbweichungen[[#Headers],[Okt]]),1),INDEX(MarketingPlan[],,1),0),MATCH(MarketingAbweichungen[[#Headers],[Okt]],MarketingPlan[#Headers],0))-INDEX(MarketingTatsächlich[],MATCH(INDEX(MarketingAbweichungen[],ROW()-ROW(MarketingAbweichungen[[#Headers],[Okt]]),1),INDEX(MarketingPlan[],,1),0),MATCH(MarketingAbweichungen[[#Headers],[Okt]],MarketingTatsächlich[#Headers],0)) -> 500.00 € | M22: =INDEX(MarketingPlan[],MATCH(INDEX(MarketingAbweichungen[],ROW()-ROW(MarketingAbweichungen[[#Headers],[Nov]]),1),INDEX(MarketingPlan[],,1),0),MATCH(MarketingAbweichungen[[#Headers],[Nov]],MarketingPlan[#Headers],0))-INDEX(MarketingTatsächlich[],MATCH(INDEX(MarketingAbweichungen[],ROW()-ROW(MarketingAbweichungen[[#Headers],[Nov]]),1),INDEX(MarketingPlan[],,1),0),MATCH(MarketingAbweichungen[[#Headers],[Nov]],MarketingTatsächlich[#Headers],0)) -> 500.00 € | N22: =INDEX(MarketingPlan[],MATCH(INDEX(MarketingAbweichungen[],ROW()-ROW(MarketingAbweichungen[[#Headers],[Dez]]),1),INDEX(MarketingPlan[],,1),0),MATCH(MarketingAbweichungen[[#Headers],[Dez]],MarketingPlan[#Headers],0))-INDEX(MarketingTatsächlich[],MATCH(INDEX(MarketingAbweichungen[],ROW()-ROW(MarketingAbweichungen[[#Headers],[Dez]]),1),INDEX(MarketingPlan[],,1),0),MATCH(MarketingAbweichungen[[#Headers],[Dez]],MarketingTatsächlich[#Headers],0)) -> 500.00 € | O22: =SUM(MarketingAbweichungen[[#This Row],[Jan]:[Dez]]) -> 3,000.00 €
B23: Websiteaktualisierungen | C23: =INDEX(MarketingPlan[],MATCH(INDEX(MarketingAbweichungen[],ROW()-ROW(MarketingAbweichungen[[#Headers],[Jan]]),1),INDEX(MarketingPlan[],,1),0),MATCH(MarketingAbweichungen[[#Headers],[Jan]],MarketingPlan[#Headers],0))-INDEX(MarketingTatsächlich[],MATCH(INDEX(MarketingAbweichungen[],ROW()-ROW(MarketingAbweichungen[[#Headers],[Jan]]),1),INDEX(MarketingPlan[],,1),0),MATCH(MarketingAbweichungen[[#Headers],[Jan]],MarketingTatsächlich[#Headers],0)) -> 0.00 € | D23: =INDEX(MarketingPlan[],MATCH(INDEX(MarketingAbweichungen[],ROW()-ROW(MarketingAbweichungen[[#Headers],[Feb]]),1),INDEX(MarketingPlan[],,1),0),MATCH(MarketingAbweichungen[[#Headers],[Feb]],MarketingPlan[#Headers],0))-INDEX(MarketingTatsächlich[],MATCH(INDEX(MarketingAbweichungen[],ROW()-ROW(MarketingAbweichungen[[#Headers],[Feb]]),1),INDEX(MarketingPlan[],,1),0),MATCH(MarketingAbweichungen[[#Headers],[Feb]],MarketingTatsächlich[#Headers],0)) -> 0.00 € | E23: =INDEX(MarketingPlan[],MATCH(INDEX(MarketingAbweichungen[],ROW()-ROW(MarketingAbweichungen[[#Headers],[Mrz]]),1),INDEX(MarketingPlan[],,1),0),MATCH(MarketingAbweichungen[[#Headers],[Mrz]],MarketingPlan[#Headers],0))-INDEX(MarketingTatsächlich[],MATCH(INDEX(MarketingAbweichungen[],ROW()-ROW(MarketingAbweichungen[[#Headers],[Mrz]]),1),INDEX(MarketingPlan[],,1),0),MATCH(MarketingAbweichungen[[#Headers],[Mrz]],MarketingTatsächlich[#Headers],0)) -> 0.00 € | F23: =INDEX(MarketingPlan[],MATCH(INDEX(MarketingAbweichungen[],ROW()-ROW(MarketingAbweichungen[[#Headers],[Apr]]),1),INDEX(MarketingPlan[],,1),0),MATCH(MarketingAbweichungen[[#Headers],[Apr]],MarketingPlan[#Headers],0))-INDEX(MarketingTatsächlich[],MATCH(INDEX(MarketingAbweichungen[],ROW()-ROW(MarketingAbweichungen[[#Headers],[Apr]]),1),INDEX(MarketingPlan[],,1),0),MATCH(MarketingAbweichungen[[#Headers],[Apr]],MarketingTatsächlich[#Headers],0)) -> 0.00 € | G23: =INDEX(MarketingPlan[],MATCH(INDEX(MarketingAbweichungen[],ROW()-ROW(MarketingAbweichungen[[#Headers],[Mai]]),1),INDEX(MarketingPlan[],,1),0),MATCH(MarketingAbweichungen[[#Headers],[Mai]],MarketingPlan[#Headers],0))-INDEX(MarketingTatsächlich[],MATCH(INDEX(MarketingAbweichungen[],ROW()-ROW(MarketingAbweichungen[[#Headers],[Mai]]),1),INDEX(MarketingPlan[],,1),0),MATCH(MarketingAbweichungen[[#Headers],[Mai]],MarketingTatsächlich[#Headers],0)) -> 0.00 € | H23: =INDEX(MarketingPlan[],MATCH(INDEX(MarketingAbweichungen[],ROW()-ROW(MarketingAbweichungen[[#Headers],[Jun]]),1),INDEX(MarketingPlan[],,1),0),MATCH(MarketingAbweichungen[[#Headers],[Jun]],MarketingPlan[#Headers],0))-INDEX(MarketingTatsächlich[],MATCH(INDEX(MarketingAbweichungen[],ROW()-ROW(MarketingAbweichungen[[#Headers],[Jun]]),1),INDEX(MarketingPlan[],,1),0),MATCH(MarketingAbweichungen[[#Headers],[Jun]],MarketingTatsächlich[#Headers],0)) -> -500.00 € | I23: =INDEX(MarketingPlan[],MATCH(INDEX(MarketingAbweichungen[],ROW()-ROW(MarketingAbweichungen[[#Headers],[Jul]]),1),INDEX(MarketingPlan[],,1),0),MATCH(MarketingAbweichungen[[#Headers],[Jul]],MarketingPlan[#Headers],0))-INDEX(MarketingTatsächlich[],MATCH(INDEX(MarketingAbweichungen[],ROW()-ROW(MarketingAbweichungen[[#Headers],[Jul]]),1),INDEX(MarketingPlan[],,1),0),MATCH(MarketingAbweichungen[[#Headers],[Jul]],MarketingTatsächlich[#Headers],0)) -> 200.00 € | J23: =INDEX(MarketingPlan[],MATCH(INDEX(MarketingAbweichungen[],ROW()-ROW(MarketingAbweichungen[[#Headers],[Aug]]),1),INDEX(MarketingPlan[],,1),0),MATCH(MarketingAbweichungen[[#Headers],[Aug]],MarketingPlan[#Headers],0))-INDEX(MarketingTatsächlich[],MATCH(INDEX(MarketingAbweichungen[],ROW()-ROW(MarketingAbweichungen[[#Headers],[Aug]]),1),INDEX(MarketingPlan[],,1),0),MATCH(MarketingAbweichungen[[#Headers],[Aug]],MarketingTatsächlich[#Headers],0)) -> 200.00 € | K23: =INDEX(MarketingPlan[],MATCH(INDEX(MarketingAbweichungen[],ROW()-ROW(MarketingAbweichungen[[#Headers],[Sep]]),1),INDEX(MarketingPlan[],,1),0),MATCH(MarketingAbweichungen[[#Headers],[Sep]],MarketingPlan[#Headers],0))-INDEX(MarketingTatsächlich[],MATCH(INDEX(MarketingAbweichungen[],ROW()-ROW(MarketingAbweichungen[[#Headers],[Sep]]),1),INDEX(MarketingPlan[],,1),0),MATCH(MarketingAbweichungen[[#Headers],[Sep]],MarketingTatsächlich[#Headers],0)) -> 200.00 € | L23: =INDEX(MarketingPlan[],MATCH(INDEX(MarketingAbweichungen[],ROW()-ROW(MarketingAbweichungen[[#Headers],[Okt]]),1),INDEX(MarketingPlan[],,1),0),MATCH(MarketingAbweichungen[[#Headers],[Okt]],MarketingPlan[#Headers],0))-INDEX(MarketingTatsächlich[],MATCH(INDEX(MarketingAbweichungen[],ROW()-ROW(MarketingAbweichungen[[#Headers],[Okt]]),1),INDEX(MarketingPlan[],,1),0),MATCH(MarketingAbweichungen[[#Headers],[Okt]],MarketingTatsächlich[#Headers],0)) -> 200.00 € | M23: =INDEX(MarketingPlan[],MATCH(INDEX(MarketingAbweichungen[],ROW()-ROW(MarketingAbweichungen[[#Headers],[Nov]]),1),INDEX(MarketingPlan[],,1),0),MATCH(MarketingAbweichungen[[#Headers],[Nov]],MarketingPlan[#Headers],0))-INDEX(MarketingTatsächlich[],MATCH(INDEX(MarketingAbweichungen[],ROW()-ROW(MarketingAbweichungen[[#Headers],[Nov]]),1),INDEX(MarketingPlan[],,1),0),MATCH(MarketingAbweichungen[[#Headers],[Nov]],MarketingTatsächlich[#Headers],0)) -> 200.00 € | N23: =INDEX(MarketingPlan[],MATCH(INDEX(MarketingAbweichungen[],ROW()-ROW(MarketingAbweichungen[[#Headers],[Dez]]),1),INDEX(MarketingPlan[],,1),0),MATCH(MarketingAbweichungen[[#Headers],[Dez]],MarketingPlan[#Headers],0))-INDEX(MarketingTatsächlich[],MATCH(INDEX(MarketingAbweichungen[],ROW()-ROW(MarketingAbweichungen[[#Headers],[Dez]]),1),INDEX(MarketingPlan[],,1),0),MATCH(MarketingAbweichungen[[#Headers],[Dez]],MarketingTatsächlich[#Headers],0)) -> 1,000.00 € | O23: =SUM(MarketingAbweichungen[[#This Row],[Jan]:[Dez]]) -> 1,500.00 €
B24: Vorbereitung von Begleitmaterialien | C24: =INDEX(MarketingPlan[],MATCH(INDEX(MarketingAbweichungen[],ROW()-ROW(MarketingAbweichungen[[#Headers],[Jan]]),1),INDEX(MarketingPlan[],,1),0),MATCH(MarketingAbweichungen[[#Headers],[Jan]],MarketingPlan[#Headers],0))-INDEX(MarketingTatsächlich[],MATCH(INDEX(MarketingAbweichungen[],ROW()-ROW(MarketingAbweichungen[[#Headers],[Jan]]),1),INDEX(MarketingPlan[],,1),0),MATCH(MarketingAbweichungen[[#Headers],[Jan]],MarketingTatsächlich[#Headers],0)) -> 200.00 € | D24: =INDEX(MarketingPlan[],MATCH(INDEX(MarketingAbweichungen[],ROW()-ROW(MarketingAbweichungen[[#Headers],[Feb]]),1),INDEX(MarketingPlan[],,1),0),MATCH(MarketingAbweichungen[[#Headers],[Feb]],MarketingPlan[#Headers],0))-INDEX(MarketingTatsächlich[],MATCH(INDEX(MarketingAbweichungen[],ROW()-ROW(MarketingAbweichungen[[#Headers],[Feb]]),1),INDEX(MarketingPlan[],,1),0),MATCH(MarketingAbweichungen[[#Headers],[Feb]],MarketingTatsächlich[#Headers],0)) -> 0.00 € | E24: =INDEX(MarketingPlan[],MATCH(INDEX(MarketingAbweichungen[],ROW()-ROW(MarketingAbweichungen[[#Headers],[Mrz]]),1),INDEX(MarketingPlan[],,1),0),MATCH(MarketingAbweichungen[[#Headers],[Mrz]],MarketingPlan[#Headers],0))-INDEX(MarketingTatsächlich[],MATCH(INDEX(MarketingAbweichungen[],ROW()-ROW(MarketingAbweichungen[[#Headers],[Mrz]]),1),INDEX(MarketingPlan[],,1),0),MATCH(MarketingAbweichungen[[#Headers],[Mrz]],MarketingTatsächlich[#Headers],0)) -> 0.00 € | F24: =INDEX(MarketingPlan[],MATCH(INDEX(MarketingAbweichungen[],ROW()-ROW(MarketingAbweichungen[[#Headers],[Apr]]),1),INDEX(MarketingPlan[],,1),0),MATCH(MarketingAbweichungen[[#Headers],[Apr]],MarketingPlan[#Headers],0))-INDEX(MarketingTatsächlich[],MATCH(INDEX(MarketingAbweichungen[],ROW()-ROW(MarketingAbweichungen[[#Headers],[Apr]]),1),INDEX(MarketingPlan[],,1),0),MATCH(MarketingAbweichungen[[#Headers],[Apr]],MarketingTatsächlich[#Headers],0)) -> -500.00 € | G24: =INDEX(MarketingPlan[],MATCH(INDEX(MarketingAbweichungen[],ROW()-ROW(MarketingAbweichungen[[#Headers],[Mai]]),1),INDEX(MarketingPlan[],,1),0),MATCH(MarketingAbweichungen[[#Headers],[Mai]],MarketingPlan[#Headers],0))-INDEX(MarketingTatsächlich[],MATCH(INDEX(MarketingAbweichungen[],ROW()-ROW(MarketingAbweichungen[[#Headers],[Mai]]),1),INDEX(MarketingPlan[],,1),0),MATCH(MarketingAbweichungen[[#Headers],[Mai]],MarketingTatsächlich[#Headers],0)) -> 0.00 € | H24: =INDEX(MarketingPlan[],MATCH(INDEX(MarketingAbweichungen[],ROW()-ROW(MarketingAbweichungen[[#Headers],[Jun]]),1),INDEX(MarketingPlan[],,1),0),MATCH(MarketingAbweichungen[[#Headers],[Jun]],MarketingPlan[#Headers],0))-INDEX(MarketingTatsächlich[],MATCH(INDEX(MarketingAbweichungen[],ROW()-ROW(MarketingAbweichungen[[#Headers],[Jun]]),1),INDEX(MarketingPlan[],,1),0),MATCH(MarketingAbweichungen[[#Headers],[Jun]],MarketingTatsächlich[#Headers],0)) -> 0.00 € | I24: =INDEX(MarketingPlan[],MATCH(INDEX(MarketingAbweichungen[],ROW()-ROW(MarketingAbweichungen[[#Headers],[Jul]]),1),INDEX(MarketingPlan[],,1),0),MATCH(MarketingAbweichungen[[#Headers],[Jul]],MarketingPlan[#Headers],0))-INDEX(MarketingTatsächlich[],MATCH(INDEX(MarketingAbweichungen[],ROW()-ROW(MarketingAbweichungen[[#Headers],[Jul]]),1),INDEX(MarketingPlan[],,1),0),MATCH(MarketingAbweichungen[[#Headers],[Jul]],MarketingTatsächlich[#Headers],0)) -> 5,000.00 € | J24: =INDEX(MarketingPlan[],MATCH(INDEX(MarketingAbweichungen[],ROW()-ROW(MarketingAbweichungen[[#Headers],[Aug]]),1),INDEX(MarketingPlan[],,1),0),MATCH(MarketingAbweichungen[[#Headers],[Aug]],MarketingPlan[#Headers],0))-INDEX(MarketingTatsächlich[],MATCH(INDEX(MarketingAbweichungen[],ROW()-ROW(MarketingAbweichungen[[#Headers],[Aug]]),1),INDEX(MarketingPlan[],,1),0),MATCH(MarketingAbweichungen[[#Headers],[Aug]],MarketingTatsächlich[#Headers],0)) -> 0.00 € | K24: =INDEX(MarketingPlan[],MATCH(INDEX(MarketingAbweichungen[],ROW()-ROW(MarketingAbweichungen[[#Headers],[Sep]]),1),INDEX(MarketingPlan[],,1),0),MATCH(MarketingAbweichungen[[#Headers],[Sep]],MarketingPlan[#Headers],0))-INDEX(MarketingTatsächlich[],MATCH(INDEX(MarketingAbweichungen[],ROW()-ROW(MarketingAbweichungen[[#Headers],[Sep]]),1),INDEX(MarketingPlan[],,1),0),MATCH(MarketingAbweichungen[[#Headers],[Sep]],MarketingTatsächlich[#Headers],0)) -> 0.00 € | L24: =INDEX(MarketingPlan[],MATCH(INDEX(MarketingAbweichungen[],ROW()-ROW(MarketingAbweichungen[[#Headers],[Okt]]),1),INDEX(MarketingPlan[],,1),0),MATCH(MarketingAbweichungen[[#Headers],[Okt]],MarketingPlan[#Headers],0))-INDEX(MarketingTatsächlich[],MATCH(INDEX(MarketingAbweichungen[],ROW()-ROW(MarketingAbweichungen[[#Headers],[Okt]]),1),INDEX(MarketingPlan[],,1),0),MATCH(MarketingAbweichungen[[#Headers],[Okt]],MarketingTatsächlich[#Headers],0)) -> 5,000.00 € | M24: =INDEX(MarketingPlan[],MATCH(INDEX(MarketingAbweichungen[],ROW()-ROW(MarketingAbweichungen[[#Headers],[Nov]]),1),INDEX(MarketingPlan[],,1),0),MATCH(MarketingAbweichungen[[#Headers],[Nov]],MarketingPlan[#Headers],0))-INDEX(MarketingTatsächlich[],MATCH(INDEX(MarketingAbweichungen[],ROW()-ROW(MarketingAbweichungen[[#Headers],[Nov]]),1),INDEX(MarketingPlan[],,1),0),MATCH(MarketingAbweichungen[[#Headers],[Nov]],MarketingTatsächlich[#Headers],0)) -> 0.00 € | N24: =INDEX(MarketingPlan[],MATCH(INDEX(MarketingAbweichungen[],ROW()-ROW(MarketingAbweichungen[[#Headers],[Dez]]),1),INDEX(MarketingPlan[],,1),0),MATCH(MarketingAbweichungen[[#Headers],[Dez]],MarketingPlan[#Headers],0))-INDEX(MarketingTatsächlich[],MATCH(INDEX(MarketingAbweichungen[],ROW()-ROW(MarketingAbweichungen[[#Headers],[Dez]]),1),INDEX(MarketingPlan[],,1),0),MATCH(MarketingAbweichungen[[#Headers],[Dez]],MarketingTatsächlich[#Headers],0)) -> 0.00 € | O24: =SUM(MarketingAbweichungen[[#This Row],[Jan]:[Dez]]) -> 9,700.00 €
B25: Druck von Begleitmaterialien | C25: =INDEX(MarketingPlan[],MATCH(INDEX(MarketingAbweichungen[],ROW()-ROW(MarketingAbweichungen[[#Headers],[Jan]]),1),INDEX(MarketingPlan[],,1),0),MATCH(MarketingAbweichungen[[#Headers],[Jan]],MarketingPlan[#Headers],0))-INDEX(MarketingTatsächlich[],MATCH(INDEX(MarketingAbweichungen[],ROW()-ROW(MarketingAbweichungen[[#Headers],[Jan]]),1),INDEX(MarketingPlan[],,1),0),MATCH(MarketingAbweichungen[[#Headers],[Jan]],MarketingTatsächlich[#Headers],0)) -> 100.00 € | D25: =INDEX(MarketingPlan[],MATCH(INDEX(MarketingAbweichungen[],ROW()-ROW(MarketingAbweichungen[[#Headers],[Feb]]),1),INDEX(MarketingPlan[],,1),0),MATCH(MarketingAbweichungen[[#Headers],[Feb]],MarketingPlan[#Headers],0))-INDEX(MarketingTatsächlich[],MATCH(INDEX(MarketingAbweichungen[],ROW()-ROW(MarketingAbweichungen[[#Headers],[Feb]]),1),INDEX(MarketingPlan[],,1),0),MATCH(MarketingAbweichungen[[#Headers],[Feb]],MarketingTatsächlich[#Headers],0)) -> -300.00 € | E25: =INDEX(MarketingPlan[],MATCH(INDEX(MarketingAbweichungen[],ROW()-ROW(MarketingAbweichungen[[#Headers],[Mrz]]),1),INDEX(MarketingPlan[],,1),0),MATCH(MarketingAbweichungen[[#Headers],[Mrz]],MarketingPlan[#Headers],0))-INDEX(MarketingTatsächlich[],MATCH(INDEX(MarketingAbweichungen[],ROW()-ROW(MarketingAbweichungen[[#Headers],[Mrz]]),1),INDEX(MarketingPlan[],,1),0),MATCH(MarketingAbweichungen[[#Headers],[Mrz]],MarketingTatsächlich[#Headers],0)) -> 100.00 € | F25: =INDEX(MarketingPlan[],MATCH(INDEX(MarketingAbweichungen[],ROW()-ROW(MarketingAbweichungen[[#Headers],[Apr]]),1),INDEX(MarketingPlan[],,1),0),MATCH(MarketingAbweichungen[[#Headers],[Apr]],MarketingPlan[#Headers],0))-INDEX(MarketingTatsächlich[],MATCH(INDEX(MarketingAbweichungen[],ROW()-ROW(MarketingAbweichungen[[#Headers],[Apr]]),1),INDEX(MarketingPlan[],,1),0),MATCH(MarketingAbweichungen[[#Headers],[Apr]],MarketingTatsächlich[#Headers],0)) -> 100.00 € | G25: =INDEX(MarketingPlan[],MATCH(INDEX(MarketingAbweichungen[],ROW()-ROW(MarketingAbweichungen[[#Headers],[Mai]]),1),INDEX(MarketingPlan[],,1),0),MATCH(MarketingAbweichungen[[#Headers],[Mai]],MarketingPlan[#Headers],0))-INDEX(MarketingTatsächlich[],MATCH(INDEX(MarketingAbweichungen[],ROW()-ROW(MarketingAbweichungen[[#Headers],[Mai]]),1),INDEX(MarketingPlan[],,1),0),MATCH(MarketingAbweichungen[[#Headers],[Mai]],MarketingTatsächlich[#Headers],0)) -> -400.00 € | H25: =INDEX(MarketingPlan[],MATCH(INDEX(MarketingAbweichungen[],ROW()-ROW(MarketingAbweichungen[[#Headers],[Jun]]),1),INDEX(MarketingPlan[],,1),0),MATCH(MarketingAbweichungen[[#Headers],[Jun]],MarketingPlan[#Headers],0))-INDEX(MarketingTatsächlich[],MATCH(INDEX(MarketingAbweichungen[],ROW()-ROW(MarketingAbweichungen[[#Headers],[Jun]]),1),INDEX(MarketingPlan[],,1),0),MATCH(MarketingAbweichungen[[#Headers],[Jun]],MarketingTatsächlich[#Headers],0)) -> 20.00 € | I25: =INDEX(MarketingPlan[],MATCH(INDEX(MarketingAbweichungen[],ROW()-ROW(MarketingAbweichungen[[#Headers],[Jul]]),1),INDEX(MarketingPlan[],,1),0),MATCH(MarketingAbweichungen[[#Headers],[Jul]],MarketingPlan[#Headers],0))-INDEX(MarketingTatsächlich[],MATCH(INDEX(MarketingAbweichungen[],ROW()-ROW(MarketingAbweichungen[[#Headers],[Jul]]),1),INDEX(MarketingPlan[],,1),0),MATCH(MarketingAbweichungen[[#Headers],[Jul]],MarketingTatsächlich[#Headers],0)) -> 200.00 € | J25: =INDEX(MarketingPlan[],MATCH(INDEX(MarketingAbweichungen[],ROW()-ROW(MarketingAbweichungen[[#Headers],[Aug]]),1),INDEX(MarketingPlan[],,1),0),MATCH(MarketingAbweichungen[[#Headers],[Aug]],MarketingPlan[#Headers],0))-INDEX(MarketingTatsächlich[],MATCH(INDEX(MarketingAbweichungen[],ROW()-ROW(MarketingAbweichungen[[#Headers],[Aug]]),1),INDEX(MarketingPlan[],,1),0),MATCH(MarketingAbweichungen[[#Headers],[Aug]],MarketingTatsächlich[#Headers],0)) -> 200.00 € | K25: =INDEX(MarketingPlan[],MATCH(INDEX(MarketingAbweichungen[],ROW()-ROW(MarketingAbweichungen[[#Headers],[Sep]]),1),INDEX(MarketingPlan[],,1),0),MATCH(MarketingAbweichungen[[#Headers],[Sep]],MarketingPlan[#Headers],0))-INDEX(MarketingTatsächlich[],MATCH(INDEX(MarketingAbweichungen[],ROW()-ROW(MarketingAbweichungen[[#Headers],[Sep]]),1),INDEX(MarketingPlan[],,1),0),MATCH(MarketingAbweichungen[[#Headers],[Sep]],MarketingTatsächlich[#Headers],0)) -> 200.00 € | L25: =INDEX(MarketingPlan[],MATCH(INDEX(MarketingAbweichungen[],ROW()-ROW(MarketingAbweichungen[[#Headers],[Okt]]),1),INDEX(MarketingPlan[],,1),0),MATCH(MarketingAbweichungen[[#Headers],[Okt]],MarketingPlan[#Headers],0))-INDEX(MarketingTatsächlich[],MATCH(INDEX(MarketingAbweichungen[],ROW()-ROW(MarketingAbweichungen[[#Headers],[Okt]]),1),INDEX(MarketingPlan[],,1),0),MATCH(MarketingAbweichungen[[#Headers],[Okt]],MarketingTatsächlich[#Headers],0)) -> 200.00 € | M25: =INDEX(MarketingPlan[],MATCH(INDEX(MarketingAbweichungen[],ROW()-ROW(MarketingAbweichungen[[#Headers],[Nov]]),1),INDEX(MarketingPlan[],,1),0),MATCH(MarketingAbweichungen[[#Headers],[Nov]],MarketingPlan[#Headers],0))-INDEX(MarketingTatsächlich[],MATCH(INDEX(MarketingAbweichungen[],ROW()-ROW(MarketingAbweichungen[[#Headers],[Nov]]),1),INDEX(MarketingPlan[],,1),0),MATCH(MarketingAbweichungen[[#Headers],[Nov]],MarketingTatsächlich[#Headers],0)) -> 200.00 € | N25: =INDEX(MarketingPlan[],MATCH(INDEX(MarketingAbweichungen[],ROW()-ROW(MarketingAbweichungen[[#Headers],[Dez]]),1),INDEX(MarketingPlan[],,1),0),MATCH(MarketingAbweichungen[[#Headers],[Dez]],MarketingPlan[#Headers],0))-INDEX(MarketingTatsächlich[],MATCH(INDEX(MarketingAbweichungen[],ROW()-ROW(MarketingAbweichungen[[#Headers],[Dez]]),1),INDEX(MarketingPlan[],,1),0),MATCH(MarketingAbweichungen[[#Headers],[Dez]],MarketingTatsächlich[#Headers],0)) -> 200.00 € | O25: =SUM(MarketingAbweichungen[[#This Row],[Jan]:[Dez]]) -> 820.00 €
B26: Marketingveranstaltungen | C26: =INDEX(MarketingPlan[],MATCH(INDEX(MarketingAbweichungen[],ROW()-ROW(MarketingAbweichungen[[#Headers],[Jan]]),1),INDEX(MarketingPlan[],,1),0),MATCH(MarketingAbweichungen[[#Headers],[Jan]],MarketingPlan[#Headers],0))-INDEX(MarketingTatsächlich[],MATCH(INDEX(MarketingAbweichungen[],ROW()-ROW(MarketingAbweichungen[[#Headers],[Jan]]),1),INDEX(MarketingPlan[],,1),0),MATCH(MarketingAbweichungen[[#Headers],[Jan]],MarketingTatsächlich[#Headers],0)) -> 200.00 € | D26: =INDEX(MarketingPlan[],MATCH(INDEX(MarketingAbweichungen[],ROW()-ROW(MarketingAbweichungen[[#Headers],[Feb]]),1),INDEX(MarketingPlan[],,1),0),MATCH(MarketingAbweichungen[[#Headers],[Feb]],MarketingPlan[#Headers],0))-INDEX(MarketingTatsächlich[],MATCH(INDEX(MarketingAbweichungen[],ROW()-ROW(MarketingAbweichungen[[#Headers],[Feb]]),1),INDEX(MarketingPlan[],,1),0),MATCH(MarketingAbweichungen[[#Headers],[Feb]],MarketingTatsächlich[#Headers],0)) -> -200.00 € | E26: =INDEX(MarketingPlan[],MATCH(INDEX(MarketingAbweichungen[],ROW()-ROW(MarketingAbweichungen[[#Headers],[Mrz]]),1),INDEX(MarketingPlan[],,1),0),MATCH(MarketingAbweichungen[[#Headers],[Mrz]],MarketingPlan[#Headers],0))-INDEX(MarketingTatsächlich[],MATCH(INDEX(MarketingAbweichungen[],ROW()-ROW(MarketingAbweichungen[[#Headers],[Mrz]]),1),INDEX(MarketingPlan[],,1),0),MATCH(MarketingAbweichungen[[#Headers],[Mrz]],MarketingTatsächlich[#Headers],0)) -> -200.00 € | F26: =INDEX(MarketingPlan[],MATCH(INDEX(MarketingAbweichungen[],ROW()-ROW(MarketingAbweichungen[[#Headers],[Apr]]),1),INDEX(MarketingPlan[],,1),0),MATCH(MarketingAbweichungen[[#Headers],[Apr]],MarketingPlan[#Headers],0))-INDEX(MarketingTatsächlich[],MATCH(INDEX(MarketingAbweichungen[],ROW()-ROW(MarketingAbweichungen[[#Headers],[Apr]]),1),INDEX(MarketingPlan[],,1),0),MATCH(MarketingAbweichungen[[#Headers],[Apr]],MarketingTatsächlich[#Headers],0)) -> 300.00 € | G26: =INDEX(MarketingPlan[],MATCH(INDEX(MarketingAbweichungen[],ROW()-ROW(MarketingAbweichungen[[#Headers],[Mai]]),1),INDEX(MarketingPlan[],,1),0),MATCH(MarketingAbweichungen[[#Headers],[Mai]],MarketingPlan[#Headers],0))-INDEX(MarketingTatsächlich[],MATCH(INDEX(MarketingAbweichungen[],ROW()-ROW(MarketingAbweichungen[[#Headers],[Mai]]),1),INDEX(MarketingPlan[],,1),0),MATCH(MarketingAbweichungen[[#Headers],[Mai]],MarketingTatsächlich[#Headers],0)) -> 500.00 € | H26: =INDEX(MarketingPlan[],MATCH(INDEX(MarketingAbweichungen[],ROW()-ROW(MarketingAbweichungen[[#Headers],[Jun]]),1),INDEX(MarketingPlan[],,1),0),MATCH(MarketingAbweichungen[[#Headers],[Jun]],MarketingPlan[#Headers],0))-INDEX(MarketingTatsächlich[],MATCH(INDEX(MarketingAbweichungen[],ROW()-ROW(MarketingAbweichungen[[#Headers],[Jun]]),1),INDEX(MarketingPlan[],,1),0),MATCH(MarketingAbweichungen[[#Headers],[Jun]],MarketingTatsächlich[#Headers],0)) -> -300.00 € | I26: =INDEX(MarketingPlan[],MATCH(INDEX(MarketingAbweichungen[],ROW()-ROW(MarketingAbweichungen[[#Headers],[Jul]]),1),INDEX(MarketingPlan[],,1),0),MATCH(MarketingAbweichungen[[#Headers],[Jul]],MarketingPlan[#Headers],0))-INDEX(MarketingTatsächlich[],MATCH(INDEX(MarketingAbweichungen[],ROW()-ROW(MarketingAbweichungen[[#Headers],[Jul]]),1),INDEX(MarketingPlan[],,1),0),MATCH(MarketingAbweichungen[[#Headers],[Jul]],MarketingTatsächlich[#Headers],0)) -> 2,000.00 € | J26: =INDEX(MarketingPlan[],MATCH(INDEX(MarketingAbweichungen[],ROW()-ROW(MarketingAbweichungen[[#Headers],[Aug]]),1),INDEX(MarketingPlan[],,1),0),MATCH(MarketingAbweichungen[[#Headers],[Aug]],MarketingPlan[#Headers],0))-INDEX(MarketingTatsächlich[],MATCH(INDEX(MarketingAbweichungen[],ROW()-ROW(MarketingAbweichungen[[#Headers],[Aug]]),1),INDEX(MarketingPlan[],,1),0),MATCH(MarketingAbweichungen[[#Headers],[Aug]],MarketingTatsächlich[#Headers],0)) -> 5,000.00 € | K26: =INDEX(MarketingPlan[],MATCH(INDEX(MarketingAbweichungen[],ROW()-ROW(MarketingAbweichungen[[#Headers],[Sep]]),1),INDEX(MarketingPlan[],,1),0),MATCH(MarketingAbweichungen[[#Headers],[Sep]],MarketingPlan[#Headers],0))-INDEX(MarketingTatsächlich[],MATCH(INDEX(MarketingAbweichungen[],ROW()-ROW(MarketingAbweichungen[[#Headers],[Sep]]),1),INDEX(MarketingPlan[],,1),0),MATCH(MarketingAbweichungen[[#Headers],[Sep]],MarketingTatsächlich[#Headers],0)) -> 2,000.00 € | L26: =INDEX(MarketingPlan[],MATCH(INDEX(MarketingAbweichungen[],ROW()-ROW(MarketingAbweichungen[[#Headers],[Okt]]),1),INDEX(MarketingPlan[],,1),0),MATCH(MarketingAbweichungen[[#Headers],[Okt]],MarketingPlan[#Headers],0))-INDEX(MarketingTatsächlich[],MATCH(INDEX(MarketingAbweichungen[],ROW()-ROW(MarketingAbweichungen[[#Headers],[Okt]]),1),INDEX(MarketingPlan[],,1),0),MATCH(MarketingAbweichungen[[#Headers],[Okt]],MarketingTatsächlich[#Headers],0)) -> 2,000.00 € | M26: =INDEX(MarketingPlan[],MATCH(INDEX(MarketingAbweichungen[],ROW()-ROW(MarketingAbweichungen[[#Headers],[Nov]]),1),INDEX(MarketingPlan[],,1),0),MATCH(MarketingAbweichungen[[#Headers],[Nov]],MarketingPlan[#Headers],0))-INDEX(MarketingTatsächlich[],MATCH(INDEX(MarketingAbweichungen[],ROW()-ROW(MarketingAbweichungen[[#Headers],[Nov]]),1),INDEX(MarketingPlan[],,1),0),MATCH(MarketingAbweichungen[[#Headers],[Nov]],MarketingTatsächlich[#Headers],0)) -> 2,000.00 € | N26: =INDEX(MarketingPlan[],MATCH(INDEX(MarketingAbweichungen[],ROW()-ROW(MarketingAbweichungen[[#Headers],[Dez]]),1),INDEX(MarketingPlan[],,1),0),MATCH(MarketingAbweichungen[[#Headers],[Dez]],MarketingPlan[#Headers],0))-INDEX(MarketingTatsächlich[],MATCH(INDEX(MarketingAbweichungen[],ROW()-ROW(MarketingAbweichungen[[#Headers],[Dez]]),1),INDEX(MarketingPlan[],,1),0),MATCH(MarketingAbweichungen[[#Headers],[Dez]],MarketingTatsächlich[#Headers],0)) -> 5,000.00 € | O26: =SUM(MarketingAbweichungen[[#This Row],[Jan]:[Dez]]) -> 18,300.00 €
B27: Sonstige Ausgaben | C27: =INDEX(MarketingPlan[],MATCH(INDEX(MarketingAbweichungen[],ROW()-ROW(MarketingAbweichungen[[#Headers],[Jan]]),1),INDEX(MarketingPlan[],,1),0),MATCH(MarketingAbweichungen[[#Headers],[Jan]],MarketingPlan[#Headers],0))-INDEX(MarketingTatsächlich[],MATCH(INDEX(MarketingAbweichungen[],ROW()-ROW(MarketingAbweichungen[[#Headers],[Jan]]),1),INDEX(MarketingPlan[],,1),0),MATCH(MarketingAbweichungen[[#Headers],[Jan]],MarketingTatsächlich[#Headers],0)) -> 55.00 € | D27: =INDEX(MarketingPlan[],MATCH(INDEX(MarketingAbweichungen[],ROW()-ROW(MarketingAbweichungen[[#Headers],[Feb]]),1),INDEX(MarketingPlan[],,1),0),MATCH(MarketingAbweichungen[[#Headers],[Feb]],MarketingPlan[#Headers],0))-INDEX(MarketingTatsächlich[],MATCH(INDEX(MarketingAbweichungen[],ROW()-ROW(MarketingAbweichungen[[#Headers],[Feb]]),1),INDEX(MarketingPlan[],,1),0),MATCH(MarketingAbweichungen[[#Headers],[Feb]],MarketingTatsächlich[#Headers],0)) -> 44.00 € | E27: =INDEX(MarketingPlan[],MATCH(INDEX(MarketingAbweichungen[],ROW()-ROW(MarketingAbweichungen[[#Headers],[Mrz]]),1),INDEX(MarketingPlan[],,1),0),MATCH(MarketingAbweichungen[[#Headers],[Mrz]],MarketingPlan[#Headers],0))-INDEX(MarketingTatsächlich[],MATCH(INDEX(MarketingAbweichungen[],ROW()-ROW(MarketingAbweichungen[[#Headers],[Mrz]]),1),INDEX(MarketingPlan[],,1),0),MATCH(MarketingAbweichungen[[#Headers],[Mrz]],MarketingTatsächlich[#Headers],0)) -> 77.00 € | F27: =INDEX(MarketingPlan[],MATCH(INDEX(MarketingAbweichungen[],ROW()-ROW(MarketingAbweichungen[[#Headers],[Apr]]),1),INDEX(MarketingPlan[],,1),0),MATCH(MarketingAbweichungen[[#Headers],[Apr]],MarketingPlan[#Headers],0))-INDEX(MarketingTatsächlich[],MATCH(INDEX(MarketingAbweichungen[],ROW()-ROW(MarketingAbweichungen[[#Headers],[Apr]]),1),INDEX(MarketingPlan[],,1),0),MATCH(MarketingAbweichungen[[#Headers],[Apr]],MarketingTatsächlich[#Headers],0)) -> -23.00 € | G27: =INDEX(MarketingPlan[],MATCH(INDEX(MarketingAbweichungen[],ROW()-ROW(MarketingAbweichungen[[#Headers],[Mai]]),1),INDEX(MarketingPlan[],,1),0),MATCH(MarketingAbweichungen[[#Headers],[Mai]],MarketingPlan[#Headers],0))-INDEX(MarketingTatsächlich[],MATCH(INDEX(MarketingAbweichungen[],ROW()-ROW(MarketingAbweichungen[[#Headers],[Mai]]),1),INDEX(MarketingPlan[],,1),0),MATCH(MarketingAbweichungen[[#Headers],[Mai]],MarketingTatsächlich[#Headers],0)) -> 13.00 € | H27: =INDEX(MarketingPlan[],MATCH(INDEX(MarketingAbweichungen[],ROW()-ROW(MarketingAbweichungen[[#Headers],[Jun]]),1),INDEX(MarketingPlan[],,1),0),MATCH(MarketingAbweichungen[[#Headers],[Jun]],MarketingPlan[#Headers],0))-INDEX(MarketingTatsächlich[],MATCH(INDEX(MarketingAbweichungen[],ROW()-ROW(MarketingAbweichungen[[#Headers],[Jun]]),1),INDEX(MarketingPlan[],,1),0),MATCH(MarketingAbweichungen[[#Headers],[Jun]],MarketingTatsächlich[#Headers],0)) -> -45.00 € | I27: =INDEX(MarketingPlan[],MATCH(INDEX(MarketingAbweichungen[],ROW()-ROW(MarketingAbweichungen[[#Headers],[Jul]]),1),INDEX(MarketingPlan[],,1),0),MATCH(MarketingAbweichungen[[#Headers],[Jul]],MarketingPlan[#Headers],0))-INDEX(MarketingTatsächlich[],MATCH(INDEX(MarketingAbweichungen[],ROW()-ROW(MarketingAbweichungen[[#Headers],[Jul]]),1),INDEX(MarketingPlan[],,1),0),MATCH(MarketingAbweichungen[[#Headers],[Jul]],MarketingTatsächlich[#Headers],0)) -> 200.00 € | J27: =INDEX(MarketingPlan[],MATCH(INDEX(MarketingAbweichungen[],ROW()-ROW(MarketingAbweichungen[[#Headers],[Aug]]),1),INDEX(MarketingPlan[],,1),0),MATCH(MarketingAbweichungen[[#Headers],[Aug]],MarketingPlan[#Headers],0))-INDEX(MarketingTatsächlich[],MATCH(INDEX(MarketingAbweichungen[],ROW()-ROW(MarketingAbweichungen[[#Headers],[Aug]]),1),INDEX(MarketingPlan[],,1),0),MATCH(MarketingAbweichungen[[#Headers],[Aug]],MarketingTatsächlich[#Headers],0)) -> 200.00 € | K27: =INDEX(MarketingPlan[],MATCH(INDEX(MarketingAbweichungen[],ROW()-ROW(MarketingAbweichungen[[#Headers],[Sep]]),1),INDEX(MarketingPlan[],,1),0),MATCH(MarketingAbweichungen[[#Headers],[Sep]],MarketingPlan[#Headers],0))-INDEX(MarketingTatsächlich[],MATCH(INDEX(MarketingAbweichungen[],ROW()-ROW(MarketingAbweichungen[[#Headers],[Sep]]),1),INDEX(MarketingPlan[],,1),0),MATCH(MarketingAbweichungen[[#Headers],[Sep]],MarketingTatsächlich[#Headers],0)) -> 200.00 € | L27: =INDEX(MarketingPlan[],MATCH(INDEX(MarketingAbweichungen[],ROW()-ROW(MarketingAbweichungen[[#Headers],[Okt]]),1),INDEX(MarketingPlan[],,1),0),MATCH(MarketingAbweichungen[[#Headers],[Okt]],MarketingPlan[#Headers],0))-INDEX(MarketingTatsächlich[],MATCH(INDEX(MarketingAbweichungen[],ROW()-ROW(MarketingAbweichungen[[#Headers],[Okt]]),1),INDEX(MarketingPlan[],,1),0),MATCH(MarketingAbweichungen[[#Headers],[Okt]],MarketingTatsächlich[#Headers],0)) -> 200.00 € | M27: =INDEX(MarketingPlan[],MATCH(INDEX(MarketingAbweichungen[],ROW()-ROW(MarketingAbweichungen[[#Headers],[Nov]]),1),INDEX(MarketingPlan[],,1),0),MATCH(MarketingAbweichungen[[#Headers],[Nov]],MarketingPlan[#Headers],0))-INDEX(MarketingTatsächlich[],MATCH(INDEX(MarketingAbweichungen[],ROW()-ROW(MarketingAbweichungen[[#Headers],[Nov]]),1),INDEX(MarketingPlan[],,1),0),MATCH(MarketingAbweichungen[[#Headers],[Nov]],MarketingTatsächlich[#Headers],0)) -> 200.00 € | N27: =INDEX(MarketingPlan[],MATCH(INDEX(MarketingAbweichungen[],ROW()-ROW(MarketingAbweichungen[[#Headers],[Dez]]),1),INDEX(MarketingPlan[],,1),0),MATCH(MarketingAbweichungen[[#Headers],[Dez]],MarketingPlan[#Headers],0))-INDEX(MarketingTatsächlich[],MATCH(INDEX(MarketingAbweichungen[],ROW()-ROW(MarketingAbweichungen[[#Headers],[Dez]]),1),INDEX(MarketingPlan[],,1),0),MATCH(MarketingAbweichungen[[#Headers],[Dez]],MarketingTatsächlich[#Headers],0)) -> 200.00 € | O27: =SUM(MarketingAbweichungen[[#This Row],[Jan]:[Dez]]) -> 1,321.00 €
B28: Zwischensumme | C28: =SUBTOTAL(109,MarketingAbweichungen[Jan]) -> 555.00 € | D28: =SUBTOTAL(109,MarketingAbweichungen[Feb]) -> -456.00 € | E28: =SUBTOTAL(109,MarketingAbweichungen[Mrz]) -> -23.00 € | F28: =SUBTOTAL(109,MarketingAbweichungen[Apr]) -> -123.00 € | G28: =SUBTOTAL(109,MarketingAbweichungen[Mai]) -> 113.00 € | H28: =SUBTOTAL(109,MarketingAbweichungen[Jun]) -> -825.00 € | I28: =SUBTOTAL(109,MarketingAbweichungen[Jul]) -> 8,100.00 € | J28: =SUBTOTAL(109,MarketingAbweichungen[Aug]) -> 6,100.00 € | K28: =SUBTOTAL(109,MarketingAbweichungen[Sep]) -> 3,100.00 € | L28: =SUBTOTAL(109,MarketingAbweichungen[Okt]) -> 8,100.00 € | M28: =SUBTOTAL(109,MarketingAbweichungen[Nov]) -> 3,100.00 € | N28: =SUBTOTAL(109,MarketingAbweichungen[Dez]) -> 6,900.00 € | O28: =SUBTOTAL(109,MarketingAbweichungen[JAHR]) -> 34,641.00 €
B30: Schulung/Reisen | C30: Jan | D30: Feb | E30: Mrz | F30: Apr | G30: Mai | H30: Jun | I30: Jul | J30: Aug | K30: Sep | L30: Okt | M30: Nov | N30: Dez | O30: JAHR
B31: Schulungskurse | C31: =INDEX(SchulungUndReisePlan[],MATCH(INDEX(SchulungsUndReiseAbweichungen[],ROW()-ROW(SchulungsUndReiseAbweichungen[[#Headers],[Jan]]),1),INDEX(SchulungUndReisePlan[],,1),0),MATCH(SchulungsUndReiseAbweichungen[[#Headers],[Jan]],SchulungUndReisePlan[#Headers],0))-INDEX(SchulungUndReiseTatsächlich[],MATCH(INDEX(SchulungsUndReiseAbweichungen[],ROW()-ROW(SchulungsUndReiseAbweichungen[[#Headers],[Jan]]),1),INDEX(SchulungUndReisePlan[],,1),0),MATCH(SchulungsUndReiseAbweichungen[[#Headers],[Jan]],SchulungUndReiseTatsächlich[#Headers],0)) -> 400.00 € | D31: =INDEX(SchulungUndReisePlan[],MATCH(INDEX(SchulungsUndReiseAbweichungen[],ROW()-ROW(SchulungsUndReiseAbweichungen[[#Headers],[Feb]]),1),INDEX(SchulungUndReisePlan[],,1),0),MATCH(SchulungsUndReiseAbweichungen[[#Headers],[Feb]],SchulungUndReisePlan[#Headers],0))-INDEX(SchulungUndReiseTatsächlich[],MATCH(INDEX(SchulungsUndReiseAbweichungen[],ROW()-ROW(SchulungsUndReiseAbweichungen[[#Headers],[Feb]]),1),INDEX(SchulungUndReisePlan[],,1),0),MATCH(SchulungsUndReiseAbweichungen[[#Headers],[Feb]],SchulungUndReiseTatsächlich[#Headers],0)) -> -400.00 € | E31: =INDEX(SchulungUndReisePlan[],MATCH(INDEX(SchulungsUndReiseAbweichungen[],ROW()-ROW(SchulungsUndReiseAbweichungen[[#Headers],[Mrz]]),1),INDEX(SchulungUndReisePlan[],,1),0),MATCH(SchulungsUndReiseAbweichungen[[#Headers],[Mrz]],SchulungUndReisePlan[#Headers],0))-INDEX(SchulungUndReiseTatsächlich[],MATCH(INDEX(SchulungsUndReiseAbweichungen[],ROW()-ROW(SchulungsUndReiseAbweichungen[[#Headers],[Mrz]]),1),INDEX(SchulungUndReisePlan[],,1),0),MATCH(SchulungsUndReiseAbweichungen[[#Headers],[Mrz]],SchulungUndReiseTatsächlich[#Headers],0)) -> 600.00 € | F31: =INDEX(SchulungUndReisePlan[],MATCH(INDEX(SchulungsUndReiseAbweichungen[],ROW()-ROW(SchulungsUndReiseAbweichungen[[#Headers],[Apr]]),1),INDEX(SchulungUndReisePlan[],,1),0),MATCH(SchulungsUndReiseAbweichungen[[#Headers],[Apr]],SchulungUndReisePlan[#Headers],0))-INDEX(SchulungUndReiseTatsächlich[],MATCH(INDEX(SchulungsUndReiseAbweichungen[],ROW()-ROW(SchulungsUndReiseAbweichungen[[#Headers],[Apr]]),1),INDEX(SchulungUndReisePlan[],,1),0),MATCH(SchulungsUndReiseAbweichungen[[#Headers],[Apr]],SchulungUndReiseTatsächlich[#Headers],0)) -> 400.00 € | G31: =INDEX(SchulungUndReisePlan[],MATCH(INDEX(SchulungsUndReiseAbweichungen[],ROW()-ROW(SchulungsUndReiseAbweichungen[[#Headers],[Mai]]),1),INDEX(SchulungUndReisePlan[],,1),0),MATCH(SchulungsUndReiseAbweichungen[[#Headers],[Mai]],SchulungUndReisePlan[#Headers],0))-INDEX(SchulungUndReiseTatsächlich[],MATCH(INDEX(SchulungsUndReiseAbweichungen[],ROW()-ROW(SchulungsUndReiseAbweichungen[[#Headers],[Mai]]),1),INDEX(SchulungUndReisePlan[],,1),0),MATCH(SchulungsUndReiseAbweichungen[[#Headers],[Mai]],SchulungUndReiseTatsächlich[#Headers],0)) -> 800.00 € | H31: =INDEX(SchulungUndReisePlan[],MATCH(INDEX(SchulungsUndReiseAbweichungen[],ROW()-ROW(SchulungsUndReiseAbweichungen[[#Headers],[Jun]]),1),INDEX(SchulungUndReisePlan[],,1),0),MATCH(SchulungsUndReiseAbweichungen[[#Headers],[Jun]],SchulungUndReisePlan[#Headers],0))-INDEX(SchulungUndReiseTatsächlich[],MATCH(INDEX(SchulungsUndReiseAbweichungen[],ROW()-ROW(SchulungsUndReiseAbweichungen[[#Headers],[Jun]]),1),INDEX(SchulungUndReisePlan[],,1),0),MATCH(SchulungsUndReiseAbweichungen[[#Headers],[Jun]],SchulungUndReiseTatsächlich[#Headers],0)) -> -800.00 € | I31: =INDEX(SchulungUndReisePlan[],MATCH(INDEX(SchulungsUndReiseAbweichungen[],ROW()-ROW(SchulungsUndReiseAbweichungen[[#Headers],[Jul]]),1),INDEX(SchulungUndReisePlan[],,1),0),MATCH(SchulungsUndReiseAbweichungen[[#Headers],[Jul]],SchulungUndReisePlan[#Headers],0))-INDEX(SchulungUndReiseTatsächlich[],MATCH(INDEX(SchulungsUndReiseAbweichungen[],ROW()-ROW(SchulungsUndReiseAbweichungen[[#Headers],[Jul]]),1),INDEX(SchulungUndReisePlan[],,1),0),MATCH(SchulungsUndReiseAbweichungen[[#Headers],[Jul]],SchulungUndReiseTatsächlich[#Headers],0)) -> 2,000.00 € | J31: =INDEX(SchulungUndReisePlan[],MATCH(INDEX(SchulungsUndReiseAbweichungen[],ROW()-ROW(SchulungsUndReiseAbweichungen[[#Headers],[Aug]]),1),INDEX(SchulungUndReisePlan[],,1),0),MATCH(SchulungsUndReiseAbweichungen[[#Headers],[Aug]],SchulungUndReisePlan[#Headers],0))-INDEX(SchulungUndReiseTatsächlich[],MATCH(INDEX(SchulungsUndReiseAbweichungen[],ROW()-ROW(SchulungsUndReiseAbweichungen[[#Headers],[Aug]]),1),INDEX(SchulungUndReisePlan[],,1),0),MATCH(SchulungsUndReiseAbweichungen[[#Headers],[Aug]],SchulungUndReiseTatsächlich[#Headers],0)) -> 2,000.00 € | K31: =INDEX(SchulungUndReisePlan[],MATCH(INDEX(SchulungsUndReiseAbweichungen[],ROW()-ROW(SchulungsUndReiseAbweichungen[[#Headers],[Sep]]),1),INDEX(SchulungUndReisePlan[],,1),0),MATCH(SchulungsUndReiseAbweichungen[[#Headers],[Sep]],SchulungUndReisePlan[#Headers],0))-INDEX(SchulungUndReiseTatsächlich[],MATCH(INDEX(SchulungsUndReiseAbweichungen[],ROW()-ROW(SchulungsUndReiseAbweichungen[[#Headers],[Sep]]),1),INDEX(SchulungUndReisePlan[],,1),0),MATCH(SchulungsUndReiseAbweichungen[[#Headers],[Sep]],SchulungUndReiseTatsächlich[#Headers],0)) -> 2,000.00 € | L31: =INDEX(SchulungUndReisePlan[],MATCH(INDEX(SchulungsUndReiseAbweichungen[],ROW()-ROW(SchulungsUndReiseAbweichungen[[#Headers],[Okt]]),1),INDEX(SchulungUndReisePlan[],,1),0),MATCH(SchulungsUndReiseAbweichungen[[#Headers],[Okt]],SchulungUndReisePlan[#Headers],0))-INDEX(SchulungUndReiseTatsächlich[],MATCH(INDEX(SchulungsUndReiseAbweichungen[],ROW()-ROW(SchulungsUndReiseAbweichungen[[#Headers],[Okt]]),1),INDEX(SchulungUndReisePlan[],,1),0),MATCH(SchulungsUndReiseAbweichungen[[#Headers],[Okt]],SchulungUndReiseTatsächlich[#Headers],0)) -> 2,000.00 € | M31: =INDEX(SchulungUndReisePlan[],MATCH(INDEX(SchulungsUndReiseAbweichungen[],ROW()-ROW(SchulungsUndReiseAbweichungen[[#Headers],[Nov]]),1),INDEX(SchulungUndReisePlan[],,1),0),MATCH(SchulungsUndReiseAbweichungen[[#Headers],[Nov]],SchulungUndReisePlan[#Headers],0))-INDEX(SchulungUndReiseTatsächlich[],MATCH(INDEX(SchulungsUndReiseAbweichungen[],ROW()-ROW(SchulungsUndReiseAbweichungen[[#Headers],[Nov]]),1),INDEX(SchulungUndReisePlan[],,1),0),MATCH(SchulungsUndReiseAbweichungen[[#Headers],[Nov]],SchulungUndReiseTatsächlich[#Headers],0)) -> 2,000.00 € | N31: =INDEX(SchulungUndReisePlan[],MATCH(INDEX(SchulungsUndReiseAbweichungen[],ROW()-ROW(SchulungsUndReiseAbweichungen[[#Headers],[Dez]]),1),INDEX(SchulungUndReisePlan[],,1),0),MATCH(SchulungsUndReiseAbweichungen[[#Headers],[Dez]],SchulungUndReisePlan[#Headers],0))-INDEX(SchulungUndReiseTatsächlich[],MATCH(INDEX(SchulungsUndReiseAbweichungen[],ROW()-ROW(SchulungsUndReiseAbweichungen[[#Headers],[Dez]]),1),INDEX(SchulungUndReisePlan[],,1),0),MATCH(SchulungsUndReiseAbweichungen[[#Headers],[Dez]],SchulungUndReiseTatsächlich[#Headers],0)) -> 2,000.00 € | O31: =SUM(SchulungsUndReiseAbweichungen[[#This Row],[Jan]:[Dez]]) -> 13,000.00 €
B32: Schulungsbezogene Reisekosten | C32: =INDEX(SchulungUndReisePlan[],MATCH(INDEX(SchulungsUndReiseAbweichungen[],ROW()-ROW(SchulungsUndReiseAbweichungen[[#Headers],[Jan]]),1),INDEX(SchulungUndReisePlan[],,1),0),MATCH(SchulungsUndReiseAbweichungen[[#Headers],[Jan]],SchulungUndReisePlan[#Headers],0))-INDEX(SchulungUndReiseTatsächlich[],MATCH(INDEX(SchulungsUndReiseAbweichungen[],ROW()-ROW(SchulungsUndReiseAbweichungen[[#Headers],[Jan]]),1),INDEX(SchulungUndReisePlan[],,1),0),MATCH(SchulungsUndReiseAbweichungen[[#Headers],[Jan]],SchulungUndReiseTatsächlich[#Headers],0)) -> 800.00 € | D32: =INDEX(SchulungUndReisePlan[],MATCH(INDEX(SchulungsUndReiseAbweichungen[],ROW()-ROW(SchulungsUndReiseAbweichungen[[#Headers],[Feb]]),1),INDEX(SchulungUndReisePlan[],,1),0),MATCH(SchulungsUndReiseAbweichungen[[#Headers],[Feb]],SchulungUndReisePlan[#Headers],0))-INDEX(SchulungUndReiseTatsächlich[],MATCH(INDEX(SchulungsUndReiseAbweichungen[],ROW()-ROW(SchulungsUndReiseAbweichungen[[#Headers],[Feb]]),1),INDEX(SchulungUndReisePlan[],,1),0),MATCH(SchulungsUndReiseAbweichungen[[#Headers],[Feb]],SchulungUndReiseTatsächlich[#Headers],0)) -> -200.00 € | E32: =INDEX(SchulungUndReisePlan[],MATCH(INDEX(SchulungsUndReiseAbweichungen[],ROW()-ROW(SchulungsUndReiseAbweichungen[[#Headers],[Mrz]]),1),INDEX(SchulungUndReisePlan[],,1),0),MATCH(SchulungsUndReiseAbweichungen[[#Headers],[Mrz]],SchulungUndReisePlan[#Headers],0))-INDEX(SchulungUndReiseTatsächlich[],MATCH(INDEX(SchulungsUndReiseAbweichungen[],ROW()-ROW(SchulungsUndReiseAbweichungen[[#Headers],[Mrz]]),1),INDEX(SchulungUndReisePlan[],,1),0),MATCH(SchulungsUndReiseAbweichungen[[#Headers],[Mrz]],SchulungUndReiseTatsächlich[#Headers],0)) -> 600.00 € | F32: =INDEX(SchulungUndReisePlan[],MATCH(INDEX(SchulungsUndReiseAbweichungen[],ROW()-ROW(SchulungsUndReiseAbweichungen[[#Headers],[Apr]]),1),INDEX(SchulungUndReisePlan[],,1),0),MATCH(SchulungsUndReiseAbweichungen[[#Headers],[Apr]],SchulungUndReisePlan[#Headers],0))-INDEX(SchulungUndReiseTatsächlich[],MATCH(INDEX(SchulungsUndReiseAbweichungen[],ROW()-ROW(SchulungsUndReiseAbweichungen[[#Headers],[Apr]]),1),INDEX(SchulungUndReisePlan[],,1),0),MATCH(SchulungsUndReiseAbweichungen[[#Headers],[Apr]],SchulungUndReiseTatsächlich[#Headers],0)) -> 800.00 € | G32: =INDEX(SchulungUndReisePlan[],MATCH(INDEX(SchulungsUndReiseAbweichungen[],ROW()-ROW(SchulungsUndReiseAbweichungen[[#Headers],[Mai]]),1),INDEX(SchulungUndReisePlan[],,1),0),MATCH(SchulungsUndReiseAbweichungen[[#Headers],[Mai]],SchulungUndReisePlan[#Headers],0))-INDEX(SchulungUndReiseTatsächlich[],MATCH(INDEX(SchulungsUndReiseAbweichungen[],ROW()-ROW(SchulungsUndReiseAbweichungen[[#Headers],[Mai]]),1),INDEX(SchulungUndReisePlan[],,1),0),MATCH(SchulungsUndReiseAbweichungen[[#Headers],[Mai]],SchulungUndReiseTatsächlich[#Headers],0)) -> 1,200.00 € | H32: =INDEX(SchulungUndReisePlan[],MATCH(INDEX(SchulungsUndReiseAbweichungen[],ROW()-ROW(SchulungsUndReiseAbweichungen[[#Headers],[Jun]]),1),INDEX(SchulungUndReisePlan[],,1),0),MATCH(SchulungsUndReiseAbweichungen[[#Headers],[Jun]],SchulungUndReisePlan[#Headers],0))-INDEX(SchulungUndReiseTatsächlich[],MATCH(INDEX(SchulungsUndReiseAbweichungen[],ROW()-ROW(SchulungsUndReiseAbweichungen[[#Headers],[Jun]]),1),INDEX(SchulungUndReisePlan[],,1),0),MATCH(SchulungsUndReiseAbweichungen[[#Headers],[Jun]],SchulungUndReiseTatsächlich[#Headers],0)) -> -1,500.00 € | I32: =INDEX(SchulungUndReisePlan[],MATCH(INDEX(SchulungsUndReiseAbweichungen[],ROW()-ROW(SchulungsUndReiseAbweichungen[[#Headers],[Jul]]),1),INDEX(SchulungUndReisePlan[],,1),0),MATCH(SchulungsUndReiseAbweichungen[[#Headers],[Jul]],SchulungUndReisePlan[#Headers],0))-INDEX(SchulungUndReiseTatsächlich[],MATCH(INDEX(SchulungsUndReiseAbweichungen[],ROW()-ROW(SchulungsUndReiseAbweichungen[[#Headers],[Jul]]),1),INDEX(SchulungUndReisePlan[],,1),0),MATCH(SchulungsUndReiseAbweichungen[[#Headers],[Jul]],SchulungUndReiseTatsächlich[#Headers],0)) -> 2,000.00 € | J32: =INDEX(SchulungUndReisePlan[],MATCH(INDEX(SchulungsUndReiseAbweichungen[],ROW()-ROW(SchulungsUndReiseAbweichungen[[#Headers],[Aug]]),1),INDEX(SchulungUndReisePlan[],,1),0),MATCH(SchulungsUndReiseAbweichungen[[#Headers],[Aug]],SchulungUndReisePlan[#Headers],0))-INDEX(SchulungUndReiseTatsächlich[],MATCH(INDEX(SchulungsUndReiseAbweichungen[],ROW()-ROW(SchulungsUndReiseAbweichungen[[#Headers],[Aug]]),1),INDEX(SchulungUndReisePlan[],,1),0),MATCH(SchulungsUndReiseAbweichungen[[#Headers],[Aug]],SchulungUndReiseTatsächlich[#Headers],0)) -> 2,000.00 € | K32: =INDEX(SchulungUndReisePlan[],MATCH(INDEX(SchulungsUndReiseAbweichungen[],ROW()-ROW(SchulungsUndReiseAbweichungen[[#Headers],[Sep]]),1),INDEX(SchulungUndReisePlan[],,1),0),MATCH(SchulungsUndReiseAbweichungen[[#Headers],[Sep]],SchulungUndReisePlan[#Headers],0))-INDEX(SchulungUndReiseTatsächlich[],MATCH(INDEX(SchulungsUndReiseAbweichungen[],ROW()-ROW(SchulungsUndReiseAbweichungen[[#Headers],[Sep]]),1),INDEX(SchulungUndReisePlan[],,1),0),MATCH(SchulungsUndReiseAbweichungen[[#Headers],[Sep]],SchulungUndReiseTatsächlich[#Headers],0)) -> 2,000.00 € | L32: =INDEX(SchulungUndReisePlan[],MATCH(INDEX(SchulungsUndReiseAbweichungen[],ROW()-ROW(SchulungsUndReiseAbweichungen[[#Headers],[Okt]]),1),INDEX(SchulungUndReisePlan[],,1),0),MATCH(SchulungsUndReiseAbweichungen[[#Headers],[Okt]],SchulungUndReisePlan[#Headers],0))-INDEX(SchulungUndReiseTatsächlich[],MATCH(INDEX(SchulungsUndReiseAbweichungen[],ROW()-ROW(SchulungsUndReiseAbweichungen[[#Headers],[Okt]]),1),INDEX(SchulungUndReisePlan[],,1),0),MATCH(SchulungsUndReiseAbweichungen[[#Headers],[Okt]],SchulungUndReiseTatsächlich[#Headers],0)) -> 2,000.00 € | M32: =INDEX(SchulungUndReisePlan[],MATCH(INDEX(SchulungsUndReiseAbweichungen[],ROW()-ROW(SchulungsUndReiseAbweichungen[[#Headers],[Nov]]),1),INDEX(SchulungUndReisePlan[],,1),0),MATCH(SchulungsUndReiseAbweichungen[[#Headers],[Nov]],SchulungUndReisePlan[#Headers],0))-INDEX(SchulungUndReiseTatsächlich[],MATCH(INDEX(SchulungsUndReiseAbweichungen[],ROW()-ROW(SchulungsUndReiseAbweichungen[[#Headers],[Nov]]),1),INDEX(SchulungUndReisePlan[],,1),0),MATCH(SchulungsUndReiseAbweichungen[[#Headers],[Nov]],SchulungUndReiseTatsächlich[#Headers],0)) -> 2,000.00 € | N32: =INDEX(SchulungUndReisePlan[],MATCH(INDEX(SchulungsUndReiseAbweichungen[],ROW()-ROW(SchulungsUndReiseAbweichungen[[#Headers],[Dez]]),1),INDEX(SchulungUndReisePlan[],,1),0),MATCH(SchulungsUndReiseAbweichungen[[#Headers],[Dez]],SchulungUndReisePlan[#Headers],0))-INDEX(SchulungUndReiseTatsächlich[],MATCH(INDEX(SchulungsUndReiseAbweichungen[],ROW()-ROW(SchulungsUndReiseAbweichungen[[#Headers],[Dez]]),1),INDEX(SchulungUndReisePlan[],,1),0),MATCH(SchulungsUndReiseAbweichungen[[#Headers],[Dez]],SchulungUndReiseTatsächlich[#Headers],0)) -> 2,000.00 € | O32: =SUM(SchulungsUndReiseAbweichungen[[#This Row],[Jan]:[Dez]]) -> 13,700.00 €
B33: Zwischensumme | C33: =SUBTOTAL(109,SchulungsUndReiseAbweichungen[Jan]) -> 1,200.00 € | D33: =SUBTOTAL(109,SchulungsUndReiseAbweichungen[Feb]) -> -600.00 € | E33: =SUBTOTAL(109,SchulungsUndReiseAbweichungen[Mrz]) -> 1,200.00 € | F33: =SUBTOTAL(109,SchulungsUndReiseAbweichungen[Apr]) -> 1,200.00 € | G33: =SUBTOTAL(109,SchulungsUndReiseAbweichungen[Mai]) -> 2,000.00 € | H33: =SUBTOTAL(109,SchulungsUndReiseAbweichungen[Jun]) -> -2,300.00 € | I33: =SUBTOTAL(109,SchulungsUndReiseAbweichungen[Jul]) -> 4,000.00 € | J33: =SUBTOTAL(109,SchulungsUndReiseAbweichungen[Aug]) -> 4,000.00 € | K33: =SUBTOTAL(109,SchulungsUndReiseAbweichungen[Sep]) -> 4,000.00 € | L33: =SUBTOTAL(109,SchulungsUndReiseAbweichungen[Okt]) -> 4,000.00 € | M33: =SUBTOTAL(109,SchulungsUndReiseAbweichungen[Nov]) -> 4,000.00 € | N33: =SUBTOTAL(109,SchulungsUndReiseAbweichungen[Dez]) -> 4,000.00 € | O33: =SUBTOTAL(109,SchulungsUndReiseAbweichungen[JAHR]) -> 26,700.00 €
B35: SUMMEN | C35: Jan | D35: Feb | E35: Mrz | F35: Apr | G35: Mai | H35: Jun | I35: Jul | J35: Aug | K35: Sep | L35: Okt | M35: Nov | N35: Dez | O35: Jahr
B36: Tatsächliche monatliche Kosten | C36: =SchulungsUndReiseAbweichungen[[#Totals],[Jan]]+MarketingAbweichungen[[#Totals],[Jan]]+BüroAbweichungen[[#Totals],[Jan]]+MitarbeiterAbweichungen[[#Totals],[Jan]] -> 1,738.00 € | D36: =SchulungsUndReiseAbweichungen[[#Totals],[Feb]]+MarketingAbweichungen[[#Totals],[Feb]]+BüroAbweichungen[[#Totals],[Feb]]+MitarbeiterAbweichungen[[#Totals],[Feb]] -> -984.00 € | E36: =SchulungsUndReiseAbweichungen[[#Totals],[Mrz]]+MarketingAbweichungen[[#Totals],[Mrz]]+BüroAbweichungen[[#Totals],[Mrz]]+MitarbeiterAbweichungen[[#Totals],[Mrz]] -> 1,255.00 € | F36: =SchulungsUndReiseAbweichungen[[#Totals],[Apr]]+MarketingAbweichungen[[#Totals],[Apr]]+BüroAbweichungen[[#Totals],[Apr]]+MitarbeiterAbweichungen[[#Totals],[Apr]] -> 301.00 € | G36: =SchulungsUndReiseAbweichungen[[#Totals],[Mai]]+MarketingAbweichungen[[#Totals],[Mai]]+BüroAbweichungen[[#Totals],[Mai]]+MitarbeiterAbweichungen[[#Totals],[Mai]] -> 1,440.00 € | H36: =SchulungsUndReiseAbweichungen[[#Totals],[Jun]]+MarketingAbweichungen[[#Totals],[Jun]]+BüroAbweichungen[[#Totals],[Jun]]+MitarbeiterAbweichungen[[#Totals],[Jun]] -> -3,744.00 € | I36: =SchulungsUndReiseAbweichungen[[#Totals],[Jul]]+MarketingAbweichungen[[#Totals],[Jul]]+BüroAbweichungen[[#Totals],[Jul]]+MitarbeiterAbweichungen[[#Totals],[Jul]] -> 134,695.00 € | J36: =SchulungsUndReiseAbweichungen[[#Totals],[Aug]]+MarketingAbweichungen[[#Totals],[Aug]]+BüroAbweichungen[[#Totals],[Aug]]+MitarbeiterAbweichungen[[#Totals],[Aug]] -> 138,918.00 € | K36: =SchulungsUndReiseAbweichungen[[#Totals],[Sep]]+MarketingAbweichungen[[#Totals],[Sep]]+BüroAbweichungen[[#Totals],[Sep]]+MitarbeiterAbweichungen[[#Totals],[Sep]] -> 135,918.00 € | L36: =SchulungsUndReiseAbweichungen[[#Totals],[Okt]]+MarketingAbweichungen[[#Totals],[Okt]]+BüroAbweichungen[[#Totals],[Okt]]+MitarbeiterAbweichungen[[#Totals],[Okt]] -> 140,918.00 € | M36: =SchulungsUndReiseAbweichungen[[#Totals],[Nov]]+MarketingAbweichungen[[#Totals],[Nov]]+BüroAbweichungen[[#Totals],[Nov]]+MitarbeiterAbweichungen[[#Totals],[Nov]] -> 136,218.00 € | N36: =SchulungsUndReiseAbweichungen[[#Totals],[Dez]]+MarketingAbweichungen[[#Totals],[Dez]]+BüroAbweichungen[[#Totals],[Dez]]+MitarbeiterAbweichungen[[#Totals],[Dez]] -> 140,018.00 € | O36: =SchulungsUndReiseAbweichungen[[#Totals],[JAHR]]+MarketingAbweichungen[[#Totals],[JAHR]]+BüroAbweichungen[[#Totals],[JAHR]]+MitarbeiterAbweichungen[[#Totals],[JAHR]] -> 826,691.00 €
B37: SUMME der tatsächlichen Kosten | C37: =SUM($C$36:C36) -> 1,738.00 € | D37: =SUM($C$36:D36) -> 754.00 € | E37: =SUM($C$36:E36) -> 2,009.00 € | F37: =SUM($C$36:F36) -> 2,310.00 € | G37: =SUM($C$36:G36) -> 3,750.00 € | H37: =SUM($C$36:H36) -> 6.00 € | I37: =SUM($C$36:I36) -> 134,701.00 € | J37: =SUM($C$36:J36) -> 273,619.00 € | K37: =SUM($C$36:K36) -> 409,537.00 € | L37: =SUM($C$36:L36) -> 550,455.00 € | M37: =SUM($C$36:M36) -> 686,673.00 € | N37: =SUM($C$36:N36) -> 826,691.00 €

Sheet AUSGABENANALYSE
B2: ='GEPLANTE KOSTEN'!B2:D3 -> Firmenname
E3: =worksheet_title -> Detaillierte Kostenschätzungen
B5: Kostenkategorie | C5: Geplante Kosten | D5: Tatsächliche Kosten | E5: Kostenabweichungen | F5: Prozentsatz der Abweichung
B6: Mitarbeiterkosten | C6: =MitarbeiterPlan[[#Totals],[JAHR]] -> 1,355,090.00 € | D6: =MitarbeiterTatsächlich[[#Totals],[JAHR]] -> 659,130.00 € | E6: =C6-D6 -> 695,960.00 € | F6: =E6/C6 -> 51%
B7: ='GEPLANTE KOSTEN'!B10 -> Bürokosten | C7: =BüroPlan[[#Totals],[JAHR]] -> 138,740.00 € | D7: =BüroTatsächlich[[#Totals],[JAHR]] -> 69,350.00 € | E7: =C7-D7 -> 69,390.00 € | F7: =E7/C7 -> 50%
B8: ='GEPLANTE KOSTEN'!B21 -> Marketingkosten | C8: =MarketingPlan[[#Totals],[JAHR]] -> 67,800.00 € | D8: =MarketingTatsächlich[[#Totals],[JAHR]] -> 33,159.00 € | E8: =C8-D8 -> 34,641.00 € | F8: =E8/C8 -> 51%
B9: ='GEPLANTE KOSTEN'!B30 -> Schulung/Reisen | C9: =SchulungUndReisePlan[[#Totals],[JAHR]] -> 48,000.00 € | D9: =SchulungUndReiseTatsächlich[[#Totals],[JAHR]] -> 21,300.00 € | E9: =C9-D9 -> 26,700.00 € | F9: =E9/C9 -> 56%
B10: ='GEPLANTE KOSTEN'!B35 -> SUMMEN | C10: ='GEPLANTE KOSTEN'!O36 -> 1,609,630.00 € | D10: ='TATSÄCHLICHE KOSTEN'!O36 -> 782,939.00 € | E10: =C10-D10 -> 826,691.00 € | F10: =E10/C10 -> 51%
